Department family,Entity,Date,Expense Type, Expense Area , Supplier ,Transaction number, AP Amount (�) ,Purchase invoice number,Comments from NHS England
Department of Health,NHS England,24/04/2013,GPMS/APMS and PCTMS, Primary Care , GREENBROOK HEALTHCARE (HOUNSLOW) LTD ,194390," 136,330.42 ",406 ,
Department of Health,NHS England,24/04/2013,GPMS/APMS and PCTMS, Primary Care , SIMPSON MEDICAL CENTRE ,197451," 40,168.57 ",MAN000000285,
Department of Health,NHS England,24/04/2013,Purchase of healthcare from non-NHS bodies, Specialised Commissioning , ST ANDREWS HEALTHCARE ,194445," 143,291.47 ",50077840 ,
Department of Health,NHS England,24/04/2013,GPMS/APMS and PCTMS, Primary Care , WEARSIDE PRACTICE ,194470," 45,610.74 ",T012013,
Department of Health,NHS England,24/04/2013,Premises, NHS England Running Costs , WINCHESTER CITY COUNCIL ,194398," 45,687.00 ",783503805041345000,
Department of Health,NHS England,30/04/2013,Purchase of healthcare from non-NHS bodies, Public Health , 1ST RETINAL SCREEN ,202867," 157,035.55 ",473 ,
Department of Health,NHS England,30/04/2013,Services from other NHS bodies, Specialised Commissioning , 2GETHER NHS FOUNDATION TRUST ,170367," 164,000.00 ",Man RFT 1010,
Department of Health,NHS England,30/04/2013,GPMS/APMS and PCTMS, Primary Care , 4 SEASONS MEDICAL CENTRE LTD ,163577," 35,716.51 ",CH000000156,
Department of Health,NHS England,30/04/2013,Services from other NHS bodies, Public Health , 5 BOROUGHS PARTNERSHIP NHS FOUNDATION TRUST ,181306," 279,923.00 ",16028937 ,
Department of Health,NHS England,30/04/2013,Services from other NHS bodies, Specialised Commissioning , 5 BOROUGHS PARTNERSHIP NHS FOUNDATION TRUST ,156699," 747,125.00 ",16028936 ,
Department of Health,NHS England,30/04/2013,GPMS/APMS and PCTMS, Primary Care , A F FROLEY ,185259," 36,771.14 ",LNP000000432,
Department of Health,NHS England,30/04/2013,GPMS/APMS and PCTMS, Primary Care , A HAFEEZ ,148934," 35,522.91 ",LNP000000023,
Department of Health,NHS England,30/04/2013,GPMS/APMS and PCTMS, Primary Care , A MOGHAL ,144871,"-53,164.92 ",LNC000000001,
Department of Health,NHS England,30/04/2013,GPMS/APMS and PCTMS, Primary Care , A MOGHAL ,144872," 113,115.30 ",LNC000000002,
Department of Health,NHS England,30/04/2013,GPMS/APMS and PCTMS, Primary Care , ABAZIE OD & PARTNER ,204764," 36,589.67 ",EX000000770,
Department of Health,NHS England,30/04/2013,GPMS/APMS and PCTMS, Primary Care , ABAZIE OD & PARTNER ,200039," 37,905.07 ",EX000000474,
Department of Health,NHS England,30/04/2013,GPMS/APMS and PCTMS, Primary Care , ABBEY LANE SURGERY ,146502,"-26,380.85 ",SHE000000080,
Department of Health,NHS England,30/04/2013,GPMS/APMS and PCTMS, Primary Care , ABBEY LANE SURGERY ,146503," 51,009.55 ",SHE000000081,
Department of Health,NHS England,30/04/2013,GPMS/APMS and PCTMS, Primary Care , ABBEY MANOR MEDICAL PRACTICE ,149666," 39,526.52 ",SM000000023,
Department of Health,NHS England,30/04/2013,GPMS/APMS and PCTMS, Primary Care , ABBEY MEAD SURGERY ,205697," 43,369.09 ",SO000000970,
Department of Health,NHS England,30/04/2013,GPMS/APMS and PCTMS, Primary Care , ABBEY MEAD SURGERY ,178879," 78,301.31 ",SO000000359,
Department of Health,NHS England,30/04/2013,GPMS/APMS and PCTMS, Primary Care , ABBEY MEDICAL CENTER KENILWORTH ,138527," 28,799.58 ",WA000000004,
Department of Health,NHS England,30/04/2013,GPMS/APMS and PCTMS, Primary Care , ABBEY MEDICAL CENTER KENILWORTH ,197972," 83,643.48 ",WA000000208,
Department of Health,NHS England,30/04/2013,GPMS/APMS and PCTMS, Primary Care , ABBEY MEDICAL CENTER LONDON ,197665," 80,470.21 ",LND000000224,
Department of Health,NHS England,30/04/2013,GPMS/APMS and PCTMS, Primary Care , ABBEY MEDICAL PRACTICE EVESHAM ,203496,"-36,159.64 ",WR000000272,
Department of Health,NHS England,30/04/2013,GPMS/APMS and PCTMS, Primary Care , ABBEY MEDICAL PRACTICE EVESHAM ,179540," 74,799.82 ",WR000000184,
Department of Health,NHS England,30/04/2013,GPMS/APMS and PCTMS, Primary Care , ABBEY MEDICAL PRACTICE EVESHAM ,203497," 87,604.92 ",WR000000273,
Department of Health,NHS England,30/04/2013,GPMS/APMS and PCTMS, Primary Care , ABBEY MEDICAL PRACTICE WELLINGBOROUGH ,151872," 152,796.32 ",NO000000031,
Department of Health,NHS England,30/04/2013,GPMS/APMS and PCTMS, Primary Care , ABBEY ROAD HEALTH CENTRE ,179067," 70,497.78 ",LNA000000126,
Department of Health,NHS England,30/04/2013,GPMS/APMS and PCTMS, Primary Care , ABBEY SURGERY TAVISTOCK ,201204,"-31,699.56 ",DN000000930,
Department of Health,NHS England,30/04/2013,GPMS/APMS and PCTMS, Primary Care , ABBEY SURGERY TAVISTOCK ,185595,"-25,746.92 ",DN000000605,
Department of Health,NHS England,30/04/2013,GPMS/APMS and PCTMS, Primary Care , ABBEY SURGERY TAVISTOCK ,201205," 66,581.62 ",DN000000931,
Department of Health,NHS England,30/04/2013,GPMS/APMS and PCTMS, Primary Care , ABBEY SURGERY TAVISTOCK ,185596," 225,215.26 ",DN000000606,
Department of Health,NHS England,30/04/2013,GPMS/APMS and PCTMS, Primary Care , ABBEY VIEW MEDICAL CENTRE ,147254," 122,852.83 ",DO000000066,
Department of Health,NHS England,30/04/2013,GPMS/APMS and PCTMS, Primary Care , ABBEY WOOD SURGERY ,151399," 75,392.81 ",LNW000000011,
Department of Health,NHS England,30/04/2013,GPMS/APMS and PCTMS, Primary Care , ABBOTS WOOD MEDICAL CENTRE ,199294," 33,849.99 ",HT000000198,
Department of Health,NHS England,30/04/2013,GPMS/APMS and PCTMS, Primary Care , ABBOTSBURY ROAD SURGERY ,178058," 79,342.88 ",DO000000323,
Department of Health,NHS England,30/04/2013,GPMS/APMS and PCTMS, Primary Care , ABBOTT & PATEL ,191337," 53,732.02 ",DR000000261,
Department of Health,NHS England,30/04/2013,GPMS/APMS and PCTMS, Primary Care , ABBOTTSWOOD MEDICAL CENTRE ,203498,"-76,546.52 ",WR000000274,
Department of Health,NHS England,30/04/2013,GPMS/APMS and PCTMS, Primary Care , ABBOTTSWOOD MEDICAL CENTRE ,179542," 88,677.13 ",WR000000186,
Department of Health,NHS England,30/04/2013,GPMS/APMS and PCTMS, Primary Care , ABBOTTSWOOD MEDICAL CENTRE ,203499," 169,591.58 ",WR000000275,
Department of Health,NHS England,30/04/2013,GPMS/APMS and PCTMS, Primary Care , ABDI SHS ,188084," 30,549.34 ",LIP000000392,
Department of Health,NHS England,30/04/2013,GPMS/APMS and PCTMS, Primary Care , ABELL WOODCOCK CHURCH DILS & PARTNERS ,145400," 60,855.19 ",DE000000054,
Department of Health,NHS England,30/04/2013,GPMS/APMS and PCTMS, Primary Care , ABERFELDY STREET PRACTICE ,179069," 51,205.75 ",LNA000000128,
Department of Health,NHS England,30/04/2013,GPMS/APMS and PCTMS, Primary Care , ABERNETHY HOUSE ,151549," 104,927.68 ",LNE000000006,
Department of Health,NHS England,30/04/2013,Prescribing costs, Primary Care , ABEYEWARDENE A K ,200041," 8,080.85 ",EX000000476,
Department of Health,NHS England,30/04/2013,GPMS/APMS and PCTMS, Primary Care , ABEYEWARDENE A K ,200041," 36,380.57 ",EX000000476,
Department of Health,NHS England,30/04/2013,GPMS/APMS and PCTMS, Primary Care , ABINGDON HEALTH CENTRE ,186356,"-81,810.90 ",LNJ000000196,
Department of Health,NHS England,30/04/2013,GPMS/APMS and PCTMS, Primary Care , ABINGDON HEALTH CENTRE ,150067," 64,611.00 ",LNJ000000003,
Department of Health,NHS England,30/04/2013,GPMS/APMS and PCTMS, Primary Care , ABINGDON HEALTH CENTRE ,186357," 80,969.41 ",LNJ000000197,
Department of Health,NHS England,30/04/2013,GPMS/APMS and PCTMS, Primary Care , ABINGDON SURGERY ,198161," 105,501.29 ",OX000000112,
Department of Health,NHS England,30/04/2013,GPMS/APMS and PCTMS, Primary Care , ABINGTON MEDICAL CENTRE ,151874," 154,896.17 ",NO000000033,
Department of Health,NHS England,30/04/2013,GPMS/APMS and PCTMS, Primary Care , ABINGTON PARK SURGERY ,151876," 121,865.47 ",NO000000035,
Department of Health,NHS England,30/04/2013,Prescribing costs, Primary Care , ABRAHAM K K & PARTNER ,200045," 2,278.72 ",EX000000480,
Department of Health,NHS England,30/04/2013,GPMS/APMS and PCTMS, Primary Care , ABRAHAM K K & PARTNER ,200045," 58,505.48 ",EX000000480,
Department of Health,NHS England,30/04/2013,GPMS/APMS and PCTMS, Primary Care , ABRAMS S & NIKPOUR A ,191686,"-30,114.04 ",LIP000000401,
Department of Health,NHS England,30/04/2013,GPMS/APMS and PCTMS, Primary Care , ACCRINGTON VIC HAC ,149869," 165,000.00 ",LA000000008,
Department of Health,NHS England,30/04/2013,GPMS/APMS and PCTMS, Primary Care , ACORN D J & PARTNER ,204767,"-46,093.65 ",EX000000773,
Department of Health,NHS England,30/04/2013,GPMS/APMS and PCTMS, Primary Care , ACORN D J & PARTNER ,200047," 34,621.79 ",EX000000482,
Department of Health,NHS England,30/04/2013,GPMS/APMS and PCTMS, Primary Care , ACORN D J & PARTNER ,204768," 89,245.65 ",EX000000774,
Department of Health,NHS England,30/04/2013,GPMS/APMS and PCTMS, Primary Care , ACORN GROUP PRACTICE ,185741," 69,903.39 ",LNN000000157,
Department of Health,NHS England,30/04/2013,Prescribing costs, Primary Care , ACORN MEDICAL CENTRE ,180463, 554.58 ,LNK000000030,
Department of Health,NHS England,30/04/2013,GPMS/APMS and PCTMS, Primary Care , ACORN MEDICAL CENTRE ,180463," 77,293.87 ",LNK000000030,
Department of Health,NHS England,30/04/2013,GPMS/APMS and PCTMS, Primary Care , ACORNS SURGERY ,192276,"-96,253.69 ",LNS000000486,
Department of Health,NHS England,30/04/2013,GPMS/APMS and PCTMS, Primary Care , ACORNS SURGERY ,163346,"-28,669.42 ",CH000000117,
Department of Health,NHS England,30/04/2013,GPMS/APMS and PCTMS, Primary Care , ACORNS SURGERY ,163347," 32,688.85 ",CH000000118,
Department of Health,NHS England,30/04/2013,GPMS/APMS and PCTMS, Primary Care , ACORNS SURGERY ,147723," 80,581.77 ",LNS000000009,
Department of Health,NHS England,30/04/2013,GPMS/APMS and PCTMS, Primary Care , ACORNS SURGERY ,192277," 99,982.67 ",LNS000000487,
Department of Health,NHS England,30/04/2013,GPMS/APMS and PCTMS, Primary Care , ACRE SURGERY NORTHWOOD HEALTH CENTRE ,152989," 38,309.04 ",LNK000000002,
Department of Health,NHS England,30/04/2013,GPMS/APMS and PCTMS, Primary Care , ACRESWOOD SURGERY ,195880," 61,104.92 ",LA000000183,
Department of Health,NHS England,30/04/2013,GPMS/APMS and PCTMS, Primary Care , ADAM HOUSE MEDICAL CENTRE ,145402," 54,719.56 ",DE000000056,
Department of Health,NHS England,30/04/2013,GPMS/APMS and PCTMS, Primary Care , ADAM PRACTICE ,147257,"-44,751.59 ",DO000000069,
Department of Health,NHS England,30/04/2013,GPMS/APMS and PCTMS, Primary Care , ADAM PRACTICE ,198110," 8,046.46 ",DO000000409,
Department of Health,NHS England,30/04/2013,Prescribing costs, Primary Care , ADAM PRACTICE ,198110," 33,712.84 ",DO000000409,
Department of Health,NHS England,30/04/2013,GPMS/APMS and PCTMS, Primary Care , ADAM PRACTICE ,167773," 39,133.24 ",DO000000242,
Department of Health,NHS England,30/04/2013,GPMS/APMS and PCTMS, Primary Care , ADAM PRACTICE ,147258," 294,694.82 ",DO000000070,
Department of Health,NHS England,30/04/2013,GPMS/APMS and PCTMS, Primary Care , ADAMS P & PARTNERS ,180047,"-26,256.98 ",SY000000231,
Department of Health,NHS England,30/04/2013,GPMS/APMS and PCTMS, Primary Care , ADAMS P & PARTNERS ,186220," 59,572.44 ",SY000000362,
Department of Health,NHS England,30/04/2013,GPMS/APMS and PCTMS, Primary Care , ADAMS P & PARTNERS ,180048," 61,065.73 ",SY000000232,
Department of Health,NHS England,30/04/2013,GPMS/APMS and PCTMS, Primary Care , ADDINGTON ROAD SURGERY ,164742," 75,479.49 ",LNT000000007,
Department of Health,NHS England,30/04/2013,GPMS/APMS and PCTMS, Primary Care , ADELAIDE MEDICAL CENTRE ,178887," 65,962.35 ",SO000000367,
Department of Health,NHS England,30/04/2013,GPMS/APMS and PCTMS, Primary Care , ADELAIDE MEDICAL CENTRE BLAYDON ,198793," 102,402.89 ",GAT000000127,
Department of Health,NHS England,30/04/2013,GPMS/APMS and PCTMS, Primary Care , ADELAIDE MEDICAL CENTRE LONDON ,197667," 75,735.47 ",LND000000226,
Department of Health,NHS England,30/04/2013,GPMS/APMS and PCTMS, Primary Care , ADELAIDE ST SURGERY WATERFRONT LCG ,185602," 26,347.53 ",DN000000612,
Department of Health,NHS England,30/04/2013,GPMS/APMS and PCTMS, Primary Care , ADELAIDE STREET SURGERY ,149885," 118,749.66 ",LA000000014,
Department of Health,NHS England,30/04/2013,GPMS/APMS and PCTMS, Primary Care , ADLER & ROSENBERG ,198966," 26,561.70 ",LNH000000151,
Department of Health,NHS England,30/04/2013,GPMS/APMS and PCTMS, Primary Care , ADO THE ENTERPRISE PRACTICE ,187472," 29,847.39 ",LNL000000162,
Department of Health,NHS England,30/04/2013,GPMS/APMS and PCTMS, Primary Care , ADSHALL ROAD MEDICAL PRACTICE ,198628," 41,268.81 ",SPT000000042,
Department of Health,NHS England,30/04/2013,GPMS/APMS and PCTMS, Primary Care , ADSWOOD ROAD SURGERY ,147492," 32,967.09 ",SPT000000008,
Department of Health,NHS England,30/04/2013,GPMS/APMS and PCTMS, Primary Care , ADUR & PARTNERS ,144874,"-37,450.25 ",LNC000000003,
Department of Health,NHS England,30/04/2013,GPMS/APMS and PCTMS, Primary Care , ADUR & PARTNERS ,144875," 70,201.25 ",LNC000000004,
Department of Health,NHS England,30/04/2013,GPMS/APMS and PCTMS, Primary Care , ADUR MEDICAL GROUP ,175130," 57,024.91 ",TW000000440,
Department of Health,NHS England,30/04/2013,GPMS/APMS and PCTMS, Primary Care , AELFGAR SURGERY ,147477," 35,500.85 ",ST000000022,
Department of Health,NHS England,30/04/2013,GPMS/APMS and PCTMS, Primary Care , AGARWAL & PARTNERS ,191688,"-75,202.03 ",LIP000000403,
Department of Health,NHS England,30/04/2013,GPMS/APMS and PCTMS, Primary Care , AGARWAL & PARTNERS ,154085," 52,296.54 ",LIP000000016,
Department of Health,NHS England,30/04/2013,GPMS/APMS and PCTMS, Primary Care , AGARWAL & PARTNERS ,191689," 64,710.84 ",LIP000000404,
Department of Health,NHS England,30/04/2013,Prescribing costs, Primary Care , AGHA B & PARTNERS ,190439," 5,217.53 ",EX000000385,
Department of Health,NHS England,30/04/2013,GPMS/APMS and PCTMS, Primary Care , AGHA B & PARTNERS ,190439," 24,087.20 ",EX000000385,
Department of Health,NHS England,30/04/2013,GPMS/APMS and PCTMS, Primary Care , AGHA B & PARTNERS ,147126," 66,608.81 ",EX000000030,
Department of Health,NHS England,30/04/2013,GPMS/APMS and PCTMS, Primary Care , AGRAWAL ,172254," 43,977.74 ",WOM000000061,
Department of Health,NHS England,30/04/2013,GPMS/APMS and PCTMS, Primary Care , AGRAWAL & PARTNER ,158947," 51,138.25 ",WBH000000002,
Department of Health,NHS England,30/04/2013,GPMS/APMS and PCTMS, Primary Care , AGRAWAL R K & K ,144860," 28,328.59 ",LNN000000005,
Department of Health,NHS England,30/04/2013,GPMS/APMS and PCTMS, Primary Care , AHMAD & MONTEIRO ,179779," 35,523.85 ",LNC000000065,
Department of Health,NHS England,30/04/2013,GPMS/APMS and PCTMS, Primary Care , AHMAD H S ,147128," 40,075.99 ",EX000000032,
Department of Health,NHS England,30/04/2013,GPMS/APMS and PCTMS, Primary Care , AHMAD H S ,204774," 48,107.27 ",EX000000780,
Department of Health,NHS England,30/04/2013,GPMS/APMS and PCTMS, Primary Care , AHMAD M & PARTNERS ,149751," 52,258.03 ",SY000000007,
Department of Health,NHS England,30/04/2013,GPMS/APMS and PCTMS, Primary Care , AHMED & BUTT ,159386," 46,223.40 ",YW000000078,
Department of Health,NHS England,30/04/2013,GPMS/APMS and PCTMS, Primary Care , AHMED & PARTNERS ,158949," 48,110.26 ",WBH000000004,
Department of Health,NHS England,30/04/2013,GPMS/APMS and PCTMS, Primary Care , AHMED I & PTS ,180178," 77,953.38 ",DE000000241,
Department of Health,NHS England,30/04/2013,GPMS/APMS and PCTMS, Primary Care , AHMED SN ,197772," 42,588.20 ",MAN000000125,
Department of Health,NHS England,30/04/2013,GPMS/APMS and PCTMS, Primary Care , AINSWORTH BLAGDEN ANDREW & PARTNERS ,145404," 98,424.97 ",DE000000058,
Department of Health,NHS England,30/04/2013,Prescribing costs, Primary Care , AINSWORTH D & PARTNERS ,200055," 10,690.03 ",EX000000490,
Department of Health,NHS England,30/04/2013,GPMS/APMS and PCTMS, Primary Care , AINSWORTH D & PARTNERS ,200055," 65,802.97 ",EX000000490,
Department of Health,NHS England,30/04/2013,Services from other NHS bodies, Public Health , AINTREE UNIVERSITY HOSPITALS NHS FOUNDATION TRUST ,156742," 125,844.88 ",8410001464 ,
Department of Health,NHS England,30/04/2013,Services from other NHS bodies, Secondary and Community Dental Care , AINTREE UNIVERSITY HOSPITALS NHS FOUNDATION TRUST ,156742," 679,833.12 ",8410001464 ,
Department of Health,NHS England,30/04/2013,Services from other NHS bodies, Specialised Commissioning , AINTREE UNIVERSITY HOSPITALS NHS FOUNDATION TRUST ,156741," 2,572,466.00 ",8410001463 ,
Department of Health,NHS England,30/04/2013,Prescribing costs, Primary Care , AIR BALLOON SURGERY ,197463," 2,713.14 ",BRS000000276,
Department of Health,NHS England,30/04/2013,GPMS/APMS and PCTMS, Primary Care , AIR BALLOON SURGERY ,197463," 24,781.64 ",BRS000000276,
Department of Health,NHS England,30/04/2013,GPMS/APMS and PCTMS, Primary Care , AIR BALLOON SURGERY ,150594," 105,120.30 ",BRS000000039,
Department of Health,NHS England,30/04/2013,GPMS/APMS and PCTMS, Primary Care , AIREBOROUGH FAMILY PRACTICE ,147923,"-36,242.51 ",LDS000000001,
Department of Health,NHS England,30/04/2013,GPMS/APMS and PCTMS, Primary Care , AIREBOROUGH FAMILY PRACTICE ,147924," 92,320.49 ",LDS000000002,
Department of Health,NHS England,30/04/2013,Services from other NHS bodies, Social Care , AIREDALE NHS FOUNDATION TRUST ,152884," 96,663.00 ",1036241 ,
Department of Health,NHS England,30/04/2013,Services from other NHS bodies, Secondary and Community Dental Care , AIREDALE NHS FOUNDATION TRUST ,194489," 96,663.00 ",1036497 ,
Department of Health,NHS England,30/04/2013,Services from other NHS bodies, Specialised Commissioning , AIREDALE NHS FOUNDATION TRUST ,156673," 825,669.00 ",1036240 ,
Department of Health,NHS England,30/04/2013,GPMS/APMS and PCTMS, Primary Care , AK & MK SINGHAL ,190752," 28,685.13 ",STL000000332,
Department of Health,NHS England,30/04/2013,GPMS/APMS and PCTMS, Primary Care , AKERMAN MEDICAL PRACTICE ,192280,"-27,857.76 ",LNS000000490,
Department of Health,NHS England,30/04/2013,GPMS/APMS and PCTMS, Primary Care , AKERMAN MEDICAL PRACTICE ,147725," 26,817.35 ",LNS000000011,
Department of Health,NHS England,30/04/2013,GPMS/APMS and PCTMS, Primary Care , AKERMAN MEDICAL PRACTICE ,192281," 38,049.18 ",LNS000000491,
Department of Health,NHS England,30/04/2013,GPMS/APMS and PCTMS, Primary Care , AL SAYED A ,200057," 26,765.85 ",EX000000492,
Department of Health,NHS England,30/04/2013,GPMS/APMS and PCTMS, Primary Care , ALAM N ,192372," 65,181.39 ",BIK000000251,
Department of Health,NHS England,30/04/2013,GPMS/APMS and PCTMS, Primary Care , ALBANY HOUSE MEDICAL CENTRE ,151878," 160,303.50 ",NO000000037,
Department of Health,NHS England,30/04/2013,GPMS/APMS and PCTMS, Primary Care , ALBANY SURGERY NEWTON ABBOT ,210611," 71,171.73 ",DN000001130,
Department of Health,NHS England,30/04/2013,GPMS/APMS and PCTMS, Primary Care , ALBANY SURGERY NEWTON ABBOT ,185612," 92,725.70 ",DN000000622,
Department of Health,NHS England,30/04/2013,GPMS/APMS and PCTMS, Primary Care , ALBERT HOUSE CLINIC ,162713," 48,550.78 ",MID000000021,
Department of Health,NHS England,30/04/2013,GPMS/APMS and PCTMS, Primary Care , ALBERT STREET SURGERY ,150173," 39,829.50 ",WA000000078,
Department of Health,NHS England,30/04/2013,GPMS/APMS and PCTMS, Primary Care , ALBION HEALTH CENTRE ,179077," 76,700.91 ",LNA000000136,
Department of Health,NHS England,30/04/2013,GPMS/APMS and PCTMS, Primary Care , ALBION MEDICAL PRACTICE ,198130,"-90,297.70 ",GMK000000135,
Department of Health,NHS England,30/04/2013,Prescribing costs, Primary Care , ALBION MEDICAL PRACTICE ,198131," 1,235.08 ",GMK000000136,
Department of Health,NHS England,30/04/2013,GPMS/APMS and PCTMS, Primary Care , ALBION MEDICAL PRACTICE ,140693," 73,000.00 ",GMK000000002,
Department of Health,NHS England,30/04/2013,GPMS/APMS and PCTMS, Primary Care , ALBION MEDICAL PRACTICE ,198131," 89,423.84 ",GMK000000136,
Department of Health,NHS England,30/04/2013,GPMS/APMS and PCTMS, Primary Care , ALBION MOUNT MEDICAL PRACTICE ,159201," 58,448.63 ",YW000000080,
Department of Health,NHS England,30/04/2013,GPMS/APMS and PCTMS, Primary Care , ALBION STREET HEALTH CENTRE ,192282,"-87,545.80 ",LNS000000492,
Department of Health,NHS England,30/04/2013,GPMS/APMS and PCTMS, Primary Care , ALBION STREET HEALTH CENTRE ,147726," 71,273.10 ",LNS000000012,
Department of Health,NHS England,30/04/2013,GPMS/APMS and PCTMS, Primary Care , ALBION STREET HEALTH CENTRE ,192283," 91,884.29 ",LNS000000493,
Department of Health,NHS England,30/04/2013,GPMS/APMS and PCTMS, Primary Care , ALBION SURGERY ,151410,"-54,469.15 ",LNW000000016,
Department of Health,NHS England,30/04/2013,GPMS/APMS and PCTMS, Primary Care , ALBION SURGERY ,151411," 107,717.51 ",LNW000000017,
Department of Health,NHS England,30/04/2013,GPMS/APMS and PCTMS, Primary Care , ALBRIGHTON MEDICAL PRACTICE ,176024," 74,758.61 ",SA000000093,
Department of Health,NHS England,30/04/2013,GPMS/APMS and PCTMS, Primary Care , ALCESTER HEALTH CENTRE ,197966," 37,006.99 ",WA000000202,
Department of Health,NHS England,30/04/2013,Services from other NHS bodies, Specialised Commissioning , ALDER HEY CHILDRENS NHS FOUNDATION TRUST ,156752," 7,225,556.00 ",9110001547 ,
Department of Health,NHS England,30/04/2013,GPMS/APMS and PCTMS, Primary Care , ALDERMOOR SURGERY ,178865," 79,846.14 ",SO000000345,
Department of Health,NHS England,30/04/2013,GPMS/APMS and PCTMS, Primary Care , ALDERWOOD ROAD ,151261," 26,715.31 ",LNW000000002,
Department of Health,NHS England,30/04/2013,GPMS/APMS and PCTMS, Primary Care , ALEXANDER & PARTNER ,167556,"-49,306.47 ",STL000000095,
Department of Health,NHS England,30/04/2013,GPMS/APMS and PCTMS, Primary Care , ALEXANDER & PARTNER ,167557," 85,780.99 ",STL000000096,
Department of Health,NHS England,30/04/2013,GPMS/APMS and PCTMS, Primary Care , ALEXANDER GS ,197704," 41,849.67 ",MAN000000112,
Department of Health,NHS England,30/04/2013,GPMS/APMS and PCTMS, Primary Care , ALEXANDER HOUSE SURGERY ,142572,"-61,364.35 ",SO000000060,
Department of Health,NHS England,30/04/2013,GPMS/APMS and PCTMS, Primary Care , ALEXANDER HOUSE SURGERY ,142573," 123,921.52 ",SO000000061,
Department of Health,NHS England,30/04/2013,GPMS/APMS and PCTMS, Primary Care , ALEXANDRA PRACTICE ,197706," 46,345.71 ",MAN000000114,
Department of Health,NHS England,30/04/2013,GPMS/APMS and PCTMS, Primary Care , ALI A & PARTNER ,168102,"-30,631.21 ",BIK000000088,
Department of Health,NHS England,30/04/2013,GPMS/APMS and PCTMS, Primary Care , ALI A & PARTNER ,168103," 72,654.63 ",BIK000000089,
Department of Health,NHS England,30/04/2013,GPMS/APMS and PCTMS, Primary Care , ALI M ,190748," 39,863.30 ",STL000000328,
Department of Health,NHS England,30/04/2013,GPMS/APMS and PCTMS, Primary Care , ALL SAINTS MEDICAL CENTRE ,151264," 51,190.85 ",LNW000000005,
Department of Health,NHS England,30/04/2013,GPMS/APMS and PCTMS, Primary Care , ALLEN & PARTNERS ,167064,"-59,450.95 ",LIP000000144,
Department of Health,NHS England,30/04/2013,GPMS/APMS and PCTMS, Primary Care , ALLEN & PARTNERS ,167065," 108,729.90 ",LIP000000145,
Department of Health,NHS England,30/04/2013,GPMS/APMS and PCTMS, Primary Care , ALLUM MEDICAL CENTRE ,144856," 121,253.45 ",LNB000000002,
Department of Health,NHS England,30/04/2013,GPMS/APMS and PCTMS, Primary Care , ALMA MEDICAL CENTRE ,162702,"-94,839.54 ",MID000000010,
Department of Health,NHS England,30/04/2013,GPMS/APMS and PCTMS, Primary Care , ALMA MEDICAL CENTRE ,162703," 173,374.35 ",MID000000011,
Department of Health,NHS England,30/04/2013,GPMS/APMS and PCTMS, Primary Care , ALMA PARTNERSHIP ,147250," 60,668.75 ",DO000000062,
Department of Health,NHS England,30/04/2013,GPMS/APMS and PCTMS, Primary Care , ALMA ROAD SURGERY ,205691," 59,527.27 ",SO000000964,
Department of Health,NHS England,30/04/2013,GPMS/APMS and PCTMS, Primary Care , ALMA ROAD SURGERY ,178869," 102,184.93 ",SO000000349,
Department of Health,NHS England,30/04/2013,GPMS/APMS and PCTMS, Primary Care , ALMAN R & PARTNERS ,168104,"-55,765.91 ",BIK000000090,
Department of Health,NHS England,30/04/2013,GPMS/APMS and PCTMS, Primary Care , ALMAN R & PARTNERS ,168105," 119,162.95 ",BIK000000091,
Department of Health,NHS England,30/04/2013,GPMS/APMS and PCTMS, Primary Care , ALMONDSBURY SURGERY ,150585," 35,656.31 ",BRS000000031,
Department of Health,NHS England,30/04/2013,Purchase of healthcare from non-NHS bodies, Specialised Commissioning , ALPHA HOSPITAL BURY ,209479," 871,708.80 ",BUR002198,
Department of Health,NHS England,30/04/2013,GPMS/APMS and PCTMS, Primary Care , ALRESFORD SURGERY ,205692,"-31,834.80 ",SO000000965,
Department of Health,NHS England,30/04/2013,GPMS/APMS and PCTMS, Primary Care , ALRESFORD SURGERY ,205693," 64,591.57 ",SO000000966,
Department of Health,NHS England,30/04/2013,GPMS/APMS and PCTMS, Primary Care , ALRESFORD SURGERY ,178871," 72,130.35 ",SO000000351,
Department of Health,NHS England,30/04/2013,GPMS/APMS and PCTMS, Primary Care , ALSTON MEDICAL PRACTICE ,203280," 28,403.31 ",CU000000257,
Department of Health,NHS England,30/04/2013,GPMS/APMS and PCTMS, Primary Care , ALTON STREET SURGERY ,179538," 74,832.43 ",WR000000182,
Department of Health,NHS England,30/04/2013,GPMS/APMS and PCTMS, Primary Care , ALTY & PARTNERS ,191675,"-43,441.79 ",LIP000000389,
Department of Health,NHS England,30/04/2013,GPMS/APMS and PCTMS, Primary Care , ALTY & PARTNERS ,154071," 28,459.17 ",LIP000000002,
Department of Health,NHS England,30/04/2013,GPMS/APMS and PCTMS, Primary Care , ALTY & PARTNERS ,191676," 36,335.94 ",LIP000000390,
Department of Health,NHS England,30/04/2013,GPMS/APMS and PCTMS, Primary Care , ALVANLEY FAMILY PRACTICE ,147488," 29,419.47 ",SPT000000004,
Department of Health,NHS England,30/04/2013,GPMS/APMS and PCTMS, Primary Care , ALYMER LODGE COOKLEY PARTNERSHIP ,146864,"-26,835.32 ",WR000000056,
Department of Health,NHS England,30/04/2013,GPMS/APMS and PCTMS, Primary Care , ALYMER LODGE COOKLEY PARTNERSHIP ,203520,"-25,436.52 ",WR000000270,
Department of Health,NHS England,30/04/2013,GPMS/APMS and PCTMS, Primary Care , ALYMER LODGE COOKLEY PARTNERSHIP ,203495," 60,589.04 ",WR000000271,
Department of Health,NHS England,30/04/2013,GPMS/APMS and PCTMS, Primary Care , ALYMER LODGE COOKLEY PARTNERSHIP ,146865," 145,807.49 ",WR000000057,
Department of Health,NHS England,30/04/2013,GPMS/APMS and PCTMS, Primary Care , AMERSHAM HEALTH CENTRE ,167958," 84,449.04 ",BU000000083,
Department of Health,NHS England,30/04/2013,GPMS/APMS and PCTMS, Primary Care , AMERSHAM VALE TRAINING PRACTICE ,192271,"-52,910.33 ",LNS000000480,
Department of Health,NHS England,30/04/2013,GPMS/APMS and PCTMS, Primary Care , AMERSHAM VALE TRAINING PRACTICE ,147720," 43,383.35 ",LNS000000006,
Department of Health,NHS England,30/04/2013,GPMS/APMS and PCTMS, Primary Care , AMERSHAM VALE TRAINING PRACTICE ,192272," 57,281.79 ",LNS000000481,
Department of Health,NHS England,30/04/2013,GPMS/APMS and PCTMS, Primary Care , AMHERST MEDICAL ,203928," 58,621.53 ",KC000000814,
Department of Health,NHS England,30/04/2013,GPMS/APMS and PCTMS, Primary Care , AMHERST MEDICAL ,164821," 103,391.76 ",KC000000323,
Department of Health,NHS England,30/04/2013,GPMS/APMS and PCTMS, Primary Care , AMPLEFORTH SURGERY ,185910,"-40,381.62 ",YN000000215,
Department of Health,NHS England,30/04/2013,GPMS/APMS and PCTMS, Primary Care , AMPLEFORTH SURGERY ,185911," 127,764.93 ",YN000000216,
Department of Health,NHS England,30/04/2013,GPMS/APMS and PCTMS, Primary Care , AMPTHILL PRACTICE ,197659," 47,016.48 ",LND000000218,
Department of Health,NHS England,30/04/2013,GPMS/APMS and PCTMS, Primary Care , AMWELL PRACTICE ,163341," 38,509.38 ",LND000000046,
Department of Health,NHS England,30/04/2013,GPMS/APMS and PCTMS, Primary Care , AMWELL PRACTICE ,197661," 140,551.98 ",LND000000220,
Department of Health,NHS England,30/04/2013,GPMS/APMS and PCTMS, Primary Care , AMWELL STREET SURGERY ,199290," 83,796.22 ",HT000000194,
Department of Health,NHS England,30/04/2013,GPMS/APMS and PCTMS, Primary Care , ANDERSON MATTHEWS MADDEN FLANN & PARTNERS ,145398," 97,868.50 ",DE000000052,
Department of Health,NHS England,30/04/2013,GPMS/APMS and PCTMS, Primary Care , ANDOVER HEALTH CENTRE MEDICAL PRACTICE ,178877," 97,704.71 ",SO000000357,
Department of Health,NHS England,30/04/2013,GPMS/APMS and PCTMS, Primary Care , ANDOVER MEDICAL CENTRE ,163342," 27,024.67 ",LND000000047,
Department of Health,NHS England,30/04/2013,GPMS/APMS and PCTMS, Primary Care , ANDOVER MEDICAL CENTRE ,197663," 37,565.74 ",LND000000222,
Department of Health,NHS England,30/04/2013,GPMS/APMS and PCTMS, Primary Care , ANDREOU & PARTNERS ,175443," 116,165.82 ",WBH000000130,
Department of Health,NHS England,30/04/2013,GPMS/APMS and PCTMS, Primary Care , ANGEL MEDICAL PRACTICE ,151969," 61,360.00 ",LND000000001,
Department of Health,NHS England,30/04/2013,GPMS/APMS and PCTMS, Primary Care , ANGEL SURGERY ,151547," 27,266.84 ",LNE000000004,
Department of Health,NHS England,30/04/2013,Purchase of healthcare from non-NHS bodies, NHS England Running Costs , ANGLIAN COMMUNITY ENTERPRISE CIC ,156650," 30,004.33 ",AC7000005210,
Department of Health,NHS England,30/04/2013,Purchase of healthcare from non-NHS bodies, NHS England Running Costs , ANGLIAN COMMUNITY ENTERPRISE CIC ,156652," 33,860.16 ",AC7000005208,
Department of Health,NHS England,30/04/2013,Purchase of healthcare from non-NHS bodies, NHS England Running Costs , ANGLIAN COMMUNITY ENTERPRISE CIC ,156649," 37,798.67 ",AC7000005211,
Department of Health,NHS England,30/04/2013,Purchase of healthcare from non-NHS bodies, NHS England Running Costs , ANGLIAN COMMUNITY ENTERPRISE CIC ,156651," 39,221.52 ",AC7000005209,
Department of Health,NHS England,30/04/2013,Purchase of healthcare from non-NHS bodies, NHS England Running Costs , ANGLIAN COMMUNITY ENTERPRISE CIC ,156648," 44,209.42 ",AC7000005212,
Department of Health,NHS England,30/04/2013,GPMS/APMS and PCTMS, Primary Care , ANNANDALE MEDICAL CENTRE ,187079,"-35,754.31 ",CH000000413,
Department of Health,NHS England,30/04/2013,GPMS/APMS and PCTMS, Primary Care , ANNANDALE MEDICAL CENTRE ,187080," 49,833.04 ",CH000000414,
Department of Health,NHS England,30/04/2013,GPMS/APMS and PCTMS, Primary Care , ANNANDALE SURGERY ,199292," 78,197.96 ",HT000000196,
Department of Health,NHS England,30/04/2013,GPMS/APMS and PCTMS, Primary Care , ANSDELL MEDICAL CENTRE ,195878," 66,050.89 ",LA000000181,
Department of Health,NHS England,30/04/2013,Purchase of healthcare from non-NHS bodies, Specialised Commissioning , ANSEL LTD ,160307," 40,590.00 ",L900000412,
Department of Health,NHS England,30/04/2013,Purchase of healthcare from non-NHS bodies, Specialised Commissioning , ANSEL LTD ,194411," 40,590.00 ",L900000419,
Department of Health,NHS England,30/04/2013,Purchase of healthcare from non-NHS bodies, Specialised Commissioning , ANSEL LTD ,156604," 178,507.44 ",L900000411,
Department of Health,NHS England,30/04/2013,GPMS/APMS and PCTMS, Primary Care , APEX MEDICAL PRACTICE ,164827," 49,465.73 ",KC000000329,
Department of Health,NHS England,30/04/2013,GPMS/APMS and PCTMS, Primary Care , APPLEBY HEALTH CENTRE ,171661," 34,855.19 ",CU000000099,
Department of Health,NHS England,30/04/2013,GPMS/APMS and PCTMS, Primary Care , APPLES MEDICAL CENTRE ,198109," 33,896.46 ",DO000000408,
Department of Health,NHS England,30/04/2013,GPMS/APMS and PCTMS, Primary Care , APPLES MEDICAL CENTRE ,147256," 45,532.61 ",DO000000068,
Department of Health,NHS England,30/04/2013,GPMS/APMS and PCTMS, Primary Care , APSLEY SURGERY ,147475," 83,993.78 ",ST000000020,
Department of Health,NHS England,30/04/2013,GPMS/APMS and PCTMS, Primary Care , ARBURY MEDICAL PRACTICE ,197974," 53,181.43 ",WA000000210,
Department of Health,NHS England,30/04/2013,GPMS/APMS and PCTMS, Primary Care , ARCHWAY PRIMARY CARE TEAM ,151677," 67,034.88 ",LND000000003,
Department of Health,NHS England,30/04/2013,GPMS/APMS and PCTMS, Primary Care , ARCHWAY SURGERY ,147216," 29,962.45 ",HT000000060,
Department of Health,NHS England,30/04/2013,GPMS/APMS and PCTMS, Primary Care , ARCHWOOD MEDICAL PRACTICE ,147490," 45,448.81 ",SPT000000006,
Department of Health,NHS England,30/04/2013,Prescribing costs, Primary Care , ARGYLE SURGERY ,190191," 1,773.83 ",LNM000000004,
Department of Health,NHS England,30/04/2013,GPMS/APMS and PCTMS, Primary Care , ARGYLE SURGERY ,190191," 73,498.29 ",LNM000000004,
Department of Health,NHS England,30/04/2013,GPMS/APMS and PCTMS, Primary Care , ARGYLL HOUSE SURGERY ,178883," 32,939.31 ",SO000000363,
Department of Health,NHS England,30/04/2013,GPMS/APMS and PCTMS, Primary Care , ARLESEY MEDICAL CENTRE - SUNNY HILL CIC ,149395," 28,333.33 ",BD000000038,
Department of Health,NHS England,30/04/2013,Prescribing costs, Primary Care , ARMADA FAMILY PRACTICE ,197462," 1,140.66 ",BRS000000275,
Department of Health,NHS England,30/04/2013,GPMS/APMS and PCTMS, Primary Care , ARMADA FAMILY PRACTICE ,197462," 27,829.78 ",BRS000000275,
Department of Health,NHS England,30/04/2013,GPMS/APMS and PCTMS, Primary Care , ARMADA FAMILY PRACTICE ,150592," 109,639.92 ",BRS000000037,
Department of Health,NHS England,30/04/2013,GPMS/APMS and PCTMS, Primary Care , ARNEWOOD PRACTICE ,178885," 118,580.92 ",SO000000365,
Department of Health,NHS England,30/04/2013,GPMS/APMS and PCTMS, Primary Care , ARNOLD MEDICAL CENTRE ,149874," 25,538.71 ",LA000000010,
Department of Health,NHS England,30/04/2013,GPMS/APMS and PCTMS, Primary Care , ARORA SC ,151900," 73,153.48 ",MAN000000002,
Department of Health,NHS England,30/04/2013,GPMS/APMS and PCTMS, Primary Care , ARRIVAL PRACTICE ,162708,"-25,110.66 ",MID000000016,
Department of Health,NHS England,30/04/2013,GPMS/APMS and PCTMS, Primary Care , ARRIVAL PRACTICE ,162709," 45,095.31 ",MID000000017,
Department of Health,NHS England,30/04/2013,GPMS/APMS and PCTMS, Primary Care , ARROW LODGE MEDICAL CENTRE ,197976," 35,653.07 ",WA000000212,
Department of Health,NHS England,30/04/2013,GPMS/APMS and PCTMS, Primary Care , ARUN MEDICAL CENTRE ,148270," 72,295.50 ",TW000000095,
Department of Health,NHS England,30/04/2013,GPMS/APMS and PCTMS, Primary Care , ARUNDEL SURGERY ,140443," 46,101.74 ",TW000000002,
Department of Health,NHS England,30/04/2013,GPMS/APMS and PCTMS, Primary Care , ARUNDEL SURGERY ,175128," 46,503.09 ",TW000000438,
Department of Health,NHS England,30/04/2013,Prescribing costs, Primary Care , AS GILL & P CHEEMA ,191006, 343.78 ,WAL000000052,
Department of Health,NHS England,30/04/2013,GPMS/APMS and PCTMS, Primary Care , AS GILL & P CHEEMA ,191006," 33,169.68 ",WAL000000052,
Department of Health,NHS England,30/04/2013,GPMS/APMS and PCTMS, Primary Care , AS JAWAD ,179777," 33,165.02 ",LNC000000063,
Department of Health,NHS England,30/04/2013,GPMS/APMS and PCTMS, Primary Care , ASH TREE HOUSE SURGERY ,195886," 94,121.69 ",LA000000189,
Department of Health,NHS England,30/04/2013,Prescribing costs, Primary Care , ASHBY TURN PRIMARY CARE PARTNERS ,192070," 2,316.21 ",KHU000000166,
Department of Health,NHS England,30/04/2013,GPMS/APMS and PCTMS, Primary Care , ASHBY TURN PRIMARY CARE PARTNERS ,192070," 121,900.01 ",KHU000000166,
Department of Health,NHS England,30/04/2013,GPMS/APMS and PCTMS, Primary Care , ASHCROFT ROAD MEDICAL PRACTICE ,149399," 36,205.25 ",BD000000040,
Department of Health,NHS England,30/04/2013,GPMS/APMS and PCTMS, Primary Care , ASHCROFT SURGERY ,167960," 30,605.17 ",BU000000085,
Department of Health,NHS England,30/04/2013,GPMS/APMS and PCTMS, Primary Care , ASHDOWN FOREST HEALTH CENTRE ,180526,"-49,429.09 ",TE000000490,
Department of Health,NHS England,30/04/2013,GPMS/APMS and PCTMS, Primary Care , ASHDOWN FOREST HEALTH CENTRE ,177146," 70,860.65 ",TE000000277,
Department of Health,NHS England,30/04/2013,GPMS/APMS and PCTMS, Primary Care , ASHDOWN FOREST HEALTH CENTRE ,180527," 98,893.48 ",TE000000491,
Department of Health,NHS England,30/04/2013,GPMS/APMS and PCTMS, Primary Care , ASHFIELD MEDICAL CENTRE BLACKPOOL ,149897," 30,120.69 ",LA000000018,
Department of Health,NHS England,30/04/2013,GPMS/APMS and PCTMS, Primary Care , ASHFIELD MEDICAL CENTRE MILTON KEYNES ,148774," 137,954.01 ",BU000000008,
Department of Health,NHS England,30/04/2013,GPMS/APMS and PCTMS, Primary Care , ASHFIELDS PRIMARY CARE CENTRE ,163348,"-132,256.05 ",CH000000119,
Department of Health,NHS England,30/04/2013,GPMS/APMS and PCTMS, Primary Care , ASHFIELDS PRIMARY CARE CENTRE ,163349," 159,114.24 ",CH000000120,
Department of Health,NHS England,30/04/2013,GPMS/APMS and PCTMS, Primary Care , ASHFORD A L & PARTNERS ,147130," 142,751.93 ",EX000000034,
Department of Health,NHS England,30/04/2013,GPMS/APMS and PCTMS, Primary Care , ASHFORD BOROUGH COUNCIL ,212761," 39,564.00 ",101941-24-APR-2013,
Department of Health,NHS England,30/04/2013,General Opthalmic services, Primary Care , ASHMORE PARK OPTICIANS ,163641," 26,342.78 ",3815006_S,
Department of Health,NHS England,30/04/2013,GPMS/APMS and PCTMS, Primary Care , ASHTON GP SERVICE ,198128,"-132,537.00 ",GMK000000133,
Department of Health,NHS England,30/04/2013,GPMS/APMS and PCTMS, Primary Care , ASHTON GP SERVICE ,140692," 132,500.00 ",GMK000000001,
Department of Health,NHS England,30/04/2013,GPMS/APMS and PCTMS, Primary Care , ASHTON GP SERVICE ,198129," 133,714.50 ",GMK000000134,
Department of Health,NHS England,30/04/2013,GPMS/APMS and PCTMS, Primary Care , ASHURST PRIMARY CARE ,195864," 31,268.74 ",LA000000167,
Department of Health,NHS England,30/04/2013,GPMS/APMS and PCTMS, Primary Care , ASHWELL SURGERY ,204850,"-31,144.14 ",HT000000416,
Department of Health,NHS England,30/04/2013,GPMS/APMS and PCTMS, Primary Care , ASHWELL SURGERY ,204851," 64,624.53 ",HT000000417,
Department of Health,NHS England,30/04/2013,GPMS/APMS and PCTMS, Primary Care , ASHWELL SURGERY ,199284," 82,301.01 ",HT000000188,
Department of Health,NHS England,30/04/2013,GPMS/APMS and PCTMS, Primary Care , ASHWOOD SURGERY ,144406," 45,099.60 ",KHU000000002,
Department of Health,NHS England,30/04/2013,GPMS/APMS and PCTMS, Primary Care , ASHWORTH HM ,197702," 36,695.23 ",MAN000000110,
Department of Health,NHS England,30/04/2013,GPMS/APMS and PCTMS, Primary Care , ASHWORTH STREET SURGERY ,190409," 84,218.39 ",ROC000000076,
Department of Health,NHS England,30/04/2013,GPMS/APMS and PCTMS, Primary Care , ASKARI & PARTNER ,167063," 45,229.61 ",LIP000000143,
Department of Health,NHS England,30/04/2013,Prescribing costs, Primary Care , ASKEY & PARTNERS ,191001," 3,686.87 ",WAL000000047,
Department of Health,NHS England,30/04/2013,GPMS/APMS and PCTMS, Primary Care , ASKEY & PARTNERS ,191001," 75,096.59 ",WAL000000047,
Department of Health,NHS England,30/04/2013,GPMS/APMS and PCTMS, Primary Care , ASPATRIA MEDICAL GROUP ,171630," 66,267.29 ",CU000000093,
Department of Health,NHS England,30/04/2013,GPMS/APMS and PCTMS, Primary Care , ASPLANDS MEDICAL CENTRE ,145089,"-152,455.89 ",BD000000035,
Department of Health,NHS England,30/04/2013,GPMS/APMS and PCTMS, Primary Care , ASPLANDS MEDICAL CENTRE ,204439,"-35,324.05 ",BD000000269,
Department of Health,NHS England,30/04/2013,GPMS/APMS and PCTMS, Primary Care , ASPLANDS MEDICAL CENTRE ,204440," 81,212.64 ",BD000000270,
Department of Health,NHS England,30/04/2013,GPMS/APMS and PCTMS, Primary Care , ASPLANDS MEDICAL CENTRE ,145090," 303,868.66 ",BD000000036,
Department of Health,NHS England,30/04/2013,GPMS/APMS and PCTMS, Primary Care , ASPLEY MEDICAL CENTRE ,147896," 63,580.26 ",NN000000009,
Department of Health,NHS England,30/04/2013,GPMS/APMS and PCTMS, Primary Care , ASQUITH SURGERY ,140547," 31,092.26 ",LD000000036,
Department of Health,NHS England,30/04/2013,GPMS/APMS and PCTMS, Primary Care , ASTLEY & LEVICK ,146631,"-51,339.32 ",DR000000001,
Department of Health,NHS England,30/04/2013,GPMS/APMS and PCTMS, Primary Care , ASTLEY & LEVICK ,146632," 97,700.75 ",DR000000002,
Department of Health,NHS England,30/04/2013,GPMS/APMS and PCTMS, Primary Care , ASTON HEALTHCARE LTD ,167558,"-255,663.58 ",STL000000097,
Department of Health,NHS England,30/04/2013,GPMS/APMS and PCTMS, Primary Care , ASTON HEALTHCARE LTD ,185136," 29,913.98 ",BFS24,
Department of Health,NHS England,30/04/2013,GPMS/APMS and PCTMS, Primary Care , ASTON HEALTHCARE LTD ,185135," 30,590.06 ",BFS25,
Department of Health,NHS England,30/04/2013,GPMS/APMS and PCTMS, Primary Care , ASTON HEALTHCARE LTD ,167559," 496,543.47 ",STL000000098,
Department of Health,NHS England,30/04/2013,GPMS/APMS and PCTMS, Primary Care , AT ACE AT APMS PRACTICE ,144882," 214,460.42 ",EX000000022,
Department of Health,NHS England,30/04/2013,GPMS/APMS and PCTMS, Primary Care , AT MEDICS LTD BARLBY ROAD ,186354,"-74,589.38 ",LNJ000000194,
Department of Health,NHS England,30/04/2013,GPMS/APMS and PCTMS, Primary Care , AT MEDICS LTD BARLBY ROAD ,150065," 58,896.00 ",LNJ000000002,
Department of Health,NHS England,30/04/2013,GPMS/APMS and PCTMS, Primary Care , AT MEDICS LTD BARLBY ROAD ,186355," 79,002.17 ",LNJ000000195,
Department of Health,NHS England,30/04/2013,GPMS/APMS and PCTMS, Primary Care , AT MEDICS LTD MERRIAM AVENUE ,146320,"-36,757.62 ",LNA000000001,
Department of Health,NHS England,30/04/2013,GPMS/APMS and PCTMS, Primary Care , AT MEDICS LTD MERRIAM AVENUE ,146100," 70,993.78 ",LNA000000002,
Department of Health,NHS England,30/04/2013,GPMS/APMS and PCTMS, Primary Care , ATHENA MEDICAL CENTRE ,179065," 40,655.07 ",LNA000000124,
Department of Health,NHS England,30/04/2013,GPMS/APMS and PCTMS, Primary Care , ATHERLEY HOUSE SURGERY ,178875," 52,301.80 ",SO000000355,
Department of Health,NHS England,30/04/2013,GPMS/APMS and PCTMS, Primary Care , ATRIUM HEALTH CENTRE ,198105," 54,163.17 ",DO000000404,
Department of Health,NHS England,30/04/2013,GPMS/APMS and PCTMS, Primary Care , ATRIUM HEALTH CENTRE ,147252," 69,578.41 ",DO000000064,
Department of Health,NHS England,30/04/2013,GPMS/APMS and PCTMS, Primary Care , ATTENBOROUGH SURGERY ,199288," 158,498.70 ",HT000000192,
Department of Health,NHS England,30/04/2013,GPMS/APMS and PCTMS, Primary Care , AUCKLAND MEDICAL GROUP ,197014,"-26,404.40 ",DR000000301,
Department of Health,NHS England,30/04/2013,GPMS/APMS and PCTMS, Primary Care , AUCKLAND MEDICAL GROUP ,197015," 62,803.88 ",DR000000302,
Department of Health,NHS England,30/04/2013,GPMS/APMS and PCTMS, Primary Care , AUCKLAND MEDICAL GROUP ,191333," 120,133.58 ",DR000000257,
Department of Health,NHS England,30/04/2013,GPMS/APMS and PCTMS, Primary Care , AUCKLAND SURGERY ,148161," 48,360.82 ",LNR000000002,
Department of Health,NHS England,30/04/2013,GPMS/APMS and PCTMS, Primary Care , AUDLEM MEDICAL PRACTICE ,187077,"-34,816.35 ",CH000000411,
Department of Health,NHS England,30/04/2013,GPMS/APMS and PCTMS, Primary Care , AUDLEM MEDICAL PRACTICE ,187078," 36,573.97 ",CH000000412,
Department of Health,NHS England,30/04/2013,GPMS/APMS and PCTMS, Primary Care , AUGHTON SURGERY ,195874," 45,036.96 ",LA000000177,
Department of Health,NHS England,30/04/2013,GPMS/APMS and PCTMS, Primary Care , AVENUE MEDICAL CENTRE DENESIDE SEAHAM ,191335," 46,426.13 ",DR000000259,
Department of Health,NHS England,30/04/2013,GPMS/APMS and PCTMS, Primary Care , AVENUE MEDICAL CENTRE SHEFFIELD ,146500,"-63,716.68 ",SHE000000078,
Department of Health,NHS England,30/04/2013,GPMS/APMS and PCTMS, Primary Care , AVENUE MEDICAL CENTRE SHEFFIELD ,146501," 114,822.33 ",SHE000000079,
Department of Health,NHS England,30/04/2013,GPMS/APMS and PCTMS, Primary Care , AVENUE MEDICAL CENTRE SLOUGH ,145799," 56,042.47 ",BE000000020,
Department of Health,NHS England,30/04/2013,Prescribing costs, Primary Care , AVENUES MEDICAL CENTRE ,192068," 2,338.05 ",KHU000000164,
Department of Health,NHS England,30/04/2013,GPMS/APMS and PCTMS, Primary Care , AVENUES MEDICAL CENTRE ,192068," 52,281.11 ",KHU000000164,
Department of Health,NHS England,30/04/2013,GPMS/APMS and PCTMS, Primary Care , AVICENNA HEALTH CENTRE ,192273," 30,145.96 ",LNS000000483,
Department of Health,NHS England,30/04/2013,GPMS/APMS and PCTMS, Primary Care , AVISFORD MEDICAL GROUP ,203069,"-33,476.91 ",TW000000565,
Department of Health,NHS England,30/04/2013,GPMS/APMS and PCTMS, Primary Care , AVISFORD MEDICAL GROUP ,203070," 70,075.89 ",TW000000566,
Department of Health,NHS England,30/04/2013,GPMS/APMS and PCTMS, Primary Care , AVISFORD MEDICAL GROUP ,148268," 107,881.34 ",TW000000093,
Department of Health,NHS England,30/04/2013,Services from other NHS bodies, Specialised Commissioning , AVON AND WILTSHIRE MENTAL HEALTH PARTNERSHIP NHS TRUST ,170368," 2,083,000.00 ",Man RFT 1011,
Department of Health,NHS England,30/04/2013,GPMS/APMS and PCTMS, Primary Care , AVONSIDE HEALTH CENTRE ,197970," 46,374.94 ",WA000000206,
Department of Health,NHS England,30/04/2013,GPMS/APMS and PCTMS, Primary Care , AVONSIDE HEALTH CENTRE ,138526," 59,453.79 ",WA000000003,
Department of Health,NHS England,30/04/2013,Prescribing costs, Primary Care , AW SURGERIES ,178956," 3,398.01 ",DUD000000028,
Department of Health,NHS England,30/04/2013,GPMS/APMS and PCTMS, Primary Care , AW SURGERIES ,178956," 173,414.46 ",DUD000000028,
Department of Health,NHS England,30/04/2013,Prescribing costs, Primary Care , AWBURN HOUSE MEDICAL PRACTICE ,199037, 540.35 ,GMK000000018,
Department of Health,NHS England,30/04/2013,GPMS/APMS and PCTMS, Primary Care , AWBURN HOUSE MEDICAL PRACTICE ,199037," 52,624.09 ",GMK000000018,
Department of Health,NHS England,30/04/2013,GPMS/APMS and PCTMS, Primary Care , AYLESBURY MEDICAL CENTRE ,192274,"-158,804.98 ",LNS000000484,
Department of Health,NHS England,30/04/2013,GPMS/APMS and PCTMS, Primary Care , AYLESBURY MEDICAL CENTRE ,147722," 137,743.71 ",LNS000000008,
Department of Health,NHS England,30/04/2013,GPMS/APMS and PCTMS, Primary Care , AYLESBURY MEDICAL CENTRE ,192275," 177,747.78 ",LNS000000485,
Department of Health,NHS England,30/04/2013,GPMS/APMS and PCTMS, Primary Care , AYLESFORD MEDICAL CENTRE ,164823," 49,441.25 ",KC000000325,
Department of Health,NHS England,30/04/2013,GPMS/APMS and PCTMS, Primary Care , AYLESHAM PRACTICE ,164825," 46,218.58 ",KC000000327,
Department of Health,NHS England,30/04/2013,GPMS/APMS and PCTMS, Primary Care , B HUDSON ,148938," 70,148.57 ",LNP000000027,
Department of Health,NHS England,30/04/2013,GPMS/APMS and PCTMS, Primary Care , BA PATTOO ,197710," 30,226.59 ",MAN000000118,
Department of Health,NHS England,30/04/2013,GPMS/APMS and PCTMS, Primary Care , BACKWELL&NAILSEA MEDICAL GROUP ,150590," 112,930.49 ",BRS000000035,
Department of Health,NHS England,30/04/2013,GPMS/APMS and PCTMS, Primary Care , BADGERSWOOD SURGERY ,178881," 95,237.71 ",SO000000361,
Department of Health,NHS England,30/04/2013,GPMS/APMS and PCTMS, Primary Care , BAFFINS SURGERY ,142576,"-59,919.47 ",SO000000064,
Department of Health,NHS England,30/04/2013,GPMS/APMS and PCTMS, Primary Care , BAFFINS SURGERY ,142577," 159,901.54 ",SO000000065,
Department of Health,NHS England,30/04/2013,GPMS/APMS and PCTMS, Primary Care , BAGARY & BAGARY ,142444," 43,394.39 ",WOM000000002,
Department of Health,NHS England,30/04/2013,GPMS/APMS and PCTMS, Primary Care , BAILEY M C & PARTNERS ,204766," 41,715.08 ",EX000000772,
Department of Health,NHS England,30/04/2013,GPMS/APMS and PCTMS, Primary Care , BAILEY M C & PARTNERS ,200043," 64,997.84 ",EX000000478,
Department of Health,NHS England,30/04/2013,GPMS/APMS and PCTMS, Primary Care , BAINBRIDGE & PARTNERS ,191680,"-35,805.68 ",LIP000000395,
Department of Health,NHS England,30/04/2013,GPMS/APMS and PCTMS, Primary Care , BAINBRIDGE & PARTNERS ,154077," 29,375.72 ",LIP000000008,
Department of Health,NHS England,30/04/2013,GPMS/APMS and PCTMS, Primary Care , BAINBRIDGE & PARTNERS ,191681," 46,849.29 ",LIP000000396,
Department of Health,NHS England,30/04/2013,GPMS/APMS and PCTMS, Primary Care , BAIRD & PARTNERS ,191682,"-57,815.77 ",LIP000000397,
Department of Health,NHS England,30/04/2013,GPMS/APMS and PCTMS, Primary Care , BAIRD & PARTNERS ,154079," 51,239.17 ",LIP000000010,
Department of Health,NHS England,30/04/2013,GPMS/APMS and PCTMS, Primary Care , BAIRD & PARTNERS ,191683," 69,474.85 ",LIP000000398,
Department of Health,NHS England,30/04/2013,GPMS/APMS and PCTMS, Primary Care , BAJAJ & PARTNER ,191685," 28,792.53 ",LIP000000400,
Department of Health,NHS England,30/04/2013,GPMS/APMS and PCTMS, Primary Care , BAJEN J M & PARTNER ,147120," 51,531.39 ",EX000000024,
Department of Health,NHS England,30/04/2013,GPMS/APMS and PCTMS, Primary Care , BAKERSFIELD MEDICAL CENTRE ,147898," 46,184.73 ",NN000000011,
Department of Health,NHS England,30/04/2013,GPMS/APMS and PCTMS, Primary Care , BAKHAT A ,197767," 62,109.77 ",MAN000000120,
Department of Health,NHS England,30/04/2013,GPMS/APMS and PCTMS, Primary Care , BALAAM STREET PRACTICE ,147840,"-56,364.58 ",LNA000000003,
Department of Health,NHS England,30/04/2013,GPMS/APMS and PCTMS, Primary Care , BALAAM STREET PRACTICE ,147902," 97,966.74 ",LNA000000004,
Department of Health,NHS England,30/04/2013,GPMS/APMS and PCTMS, Primary Care , BALDWINS LANE SURGERY ,199296," 41,809.32 ",HT000000200,
Department of Health,NHS England,30/04/2013,GPMS/APMS and PCTMS, Primary Care , BALFOUR ROAD SURGERY ,178596," 34,921.90 ",LNB000000084,
Department of Health,NHS England,30/04/2013,GPMS/APMS and PCTMS, Primary Care , BALHAM PARK SURGERY ,148939,"-25,120.00 ",LNP000000028,
Department of Health,NHS England,30/04/2013,GPMS/APMS and PCTMS, Primary Care , BALHAM PARK SURGERY ,148940," 130,727.95 ",LNP000000029,
Department of Health,NHS England,30/04/2013,GPMS/APMS and PCTMS, Primary Care , BALIGA KS ,146634," 36,200.13 ",DR000000004,
Department of Health,NHS England,30/04/2013,GPMS/APMS and PCTMS, Primary Care , BALL TREE SURGERY ,175126," 57,439.47 ",TW000000436,
Department of Health,NHS England,30/04/2013,GPMS/APMS and PCTMS, Primary Care , BALLATER ,164740," 56,917.75 ",LNT000000005,
Department of Health,NHS England,30/04/2013,GPMS/APMS and PCTMS, Primary Care , BALMORAL GARDENS ,164829," 31,430.28 ",KC000000331,
Department of Health,NHS England,30/04/2013,GPMS/APMS and PCTMS, Primary Care , BALMORAL SURGERY ,165204," 86,623.95 ",KC000000537,
Department of Health,NHS England,30/04/2013,GPMS/APMS and PCTMS, Primary Care , BALMORE PARK SURGERY ,145803," 140,222.56 ",BE000000024,
Department of Health,NHS England,30/04/2013,GPMS/APMS and PCTMS, Primary Care , BAMPTON MEDICAL PRACTICE ,203144," 45,924.39 ",OX000000257,
Department of Health,NHS England,30/04/2013,GPMS/APMS and PCTMS, Primary Care , BAMPTON MEDICAL PRACTICE ,198163," 73,928.41 ",OX000000114,
Department of Health,NHS England,30/04/2013,GPMS/APMS and PCTMS, Primary Care , BAMPTON SURGERY ,210605," 36,876.26 ",DN000001122,
Department of Health,NHS England,30/04/2013,GPMS/APMS and PCTMS, Primary Care , BAMPTON SURGERY ,185600," 40,670.95 ",DN000000610,
Department of Health,NHS England,30/04/2013,GPMS/APMS and PCTMS, Primary Care , BANBURY ROAD MEDICAL CENTRE ,198221," 55,451.77 ",OX000000116,
Department of Health,NHS England,30/04/2013,GPMS/APMS and PCTMS, Primary Care , BANGOR STREET HEALTH CENTRE ,149879," 39,422.82 ",LA000000012,
Department of Health,NHS England,30/04/2013,GPMS/APMS and PCTMS, Primary Care , BANK HOUSE SURGERY HARTLEPOOL ,162711," 65,665.10 ",MID000000019,
Department of Health,NHS England,30/04/2013,GPMS/APMS and PCTMS, Primary Care , BANKS SURGERY ,199395," 42,950.16 ",LD000000202,
Department of Health,NHS England,30/04/2013,GPMS/APMS and PCTMS, Primary Care , BANNOCKBURN SURGERY ,151401," 42,072.69 ",LNW000000013,
Department of Health,NHS England,30/04/2013,GPMS/APMS and PCTMS, Primary Care , BANSAL & READE ,152923," 26,452.33 ",STL000000006,
Department of Health,NHS England,30/04/2013,GPMS/APMS and PCTMS, Primary Care , BANSAL & READE ,190750," 59,919.54 ",STL000000330,
Department of Health,NHS England,30/04/2013,GPMS/APMS and PCTMS, Primary Care , BANSAL A & PARTNER ,147124," 49,251.71 ",EX000000028,
Department of Health,NHS England,30/04/2013,GPMS/APMS and PCTMS, Primary Care , BARCLAY A G & PARTNER ,204769,"-32,185.25 ",EX000000775,
Department of Health,NHS England,30/04/2013,GPMS/APMS and PCTMS, Primary Care , BARCLAY A G & PARTNER ,200051," 29,827.18 ",EX000000486,
Department of Health,NHS England,30/04/2013,GPMS/APMS and PCTMS, Primary Care , BARCLAY A G & PARTNER ,204770," 70,457.34 ",EX000000776,
Department of Health,NHS England,30/04/2013,GPMS/APMS and PCTMS, Primary Care , BARGATE MEDICAL CENTRE ,178889," 35,996.94 ",SO000000369,
Department of Health,NHS England,30/04/2013,GPMS/APMS and PCTMS, Primary Care , BARING ROAD MEDICAL CENTRE ,192278,"-43,760.18 ",LNS000000488,
Department of Health,NHS England,30/04/2013,GPMS/APMS and PCTMS, Primary Care , BARING ROAD MEDICAL CENTRE ,147724," 37,228.83 ",LNS000000010,
Department of Health,NHS England,30/04/2013,GPMS/APMS and PCTMS, Primary Care , BARING ROAD MEDICAL CENTRE ,192279," 61,902.26 ",LNS000000489,
Department of Health,NHS England,30/04/2013,GPMS/APMS and PCTMS, Primary Care , BARKANTINE PRACTICE ,148061,"-238,190.50 ",LNA000000005,
Department of Health,NHS England,30/04/2013,GPMS/APMS and PCTMS, Primary Care , BARKANTINE PRACTICE ,148139," 377,181.29 ",LNA000000006,
Department of Health,NHS England,30/04/2013,GPMS/APMS and PCTMS, Primary Care , BARKHAM J D T & PARTNER ,200053," 49,376.94 ",EX000000488,
Department of Health,NHS England,30/04/2013,Services from other NHS bodies, Specialised Commissioning , BARKING HAVERING AND REDBRIDGE HOSPITALS NHS TRUST ,181342," 4,666,667.00 ",8396988 ,
Department of Health,NHS England,30/04/2013,GPMS/APMS and PCTMS, Primary Care , BARKINGSIDE MEDICAL CENTRE ,144858," 46,358.47 ",LNB000000004,
Department of Health,NHS England,30/04/2013,GPMS/APMS and PCTMS, Primary Care , BARMSTON MEDICAL CENTRE ,146979," 62,083.34 ",SUN000000002,
Department of Health,NHS England,30/04/2013,GPMS/APMS and PCTMS, Primary Care , BARN SURGERY ,175132," 30,036.45 ",TW000000442,
Department of Health,NHS England,30/04/2013,GPMS/APMS and PCTMS, Primary Care , BARN SURGERY ,147259," 75,130.47 ",DO000000071,
Department of Health,NHS England,30/04/2013,GPMS/APMS and PCTMS, Primary Care , BARNARD CASTLE SURGERY ,146635,"-103,173.47 ",DR000000005,
Department of Health,NHS England,30/04/2013,GPMS/APMS and PCTMS, Primary Care , BARNARD CASTLE SURGERY ,197016,"-33,693.35 ",DR000000303,
Department of Health,NHS England,30/04/2013,GPMS/APMS and PCTMS, Primary Care , BARNARD CASTLE SURGERY ,197017," 78,302.39 ",DR000000304,
Department of Health,NHS England,30/04/2013,GPMS/APMS and PCTMS, Primary Care , BARNARD CASTLE SURGERY ,146636," 196,189.64 ",DR000000006,
Department of Health,NHS England,30/04/2013,GPMS/APMS and PCTMS, Primary Care , BARNARD PRACTICE ,151403," 81,417.41 ",LNW000000015,
Department of Health,NHS England,30/04/2013,Services from other NHS bodies, Specialised Commissioning , BARNET & CHASE FARM HOSPITALS NHS TRUST ,156670," 1,463,840.00 ",I0057155,
Department of Health,NHS England,30/04/2013,Services from other NHS bodies, Specialised Commissioning , BARNET ENFIELD AND HARINGEY MENTAL HEALTH NHS TRUST ,166607," 320,544.00 ",41415957 ,
Department of Health,NHS England,30/04/2013,Services from other NHS bodies, Specialised Commissioning , BARNET ENFIELD AND HARINGEY MENTAL HEALTH NHS TRUST ,166606," 363,709.00 ",41415956 ,
Department of Health,NHS England,30/04/2013,Services from other NHS bodies, Specialised Commissioning , BARNET ENFIELD AND HARINGEY MENTAL HEALTH NHS TRUST ,166605," 2,905,087.00 ",41415955 ,
Department of Health,NHS England,30/04/2013,GPMS/APMS and PCTMS, Primary Care , BARNETT & PARTNERS ,191690,"-43,740.28 ",LIP000000405,
Department of Health,NHS England,30/04/2013,GPMS/APMS and PCTMS, Primary Care , BARNETT & PARTNERS ,154087," 33,157.34 ",LIP000000018,
Department of Health,NHS England,30/04/2013,GPMS/APMS and PCTMS, Primary Care , BARNETT & PARTNERS ,191691," 38,487.64 ",LIP000000406,
Department of Health,NHS England,30/04/2013,GPMS/APMS and PCTMS, Primary Care , BARNFIELD HILL SURGERY ,185604," 54,886.96 ",DN000000614,
Department of Health,NHS England,30/04/2013,GPMS/APMS and PCTMS, Primary Care , BARNFIELD HILL SURGERY ,210607," 63,137.36 ",DN000001124,
Department of Health,NHS England,30/04/2013,GPMS/APMS and PCTMS, Primary Care , BARNOLDSWICK MEDICAL CENTRE ,195884," 77,038.66 ",LA000000187,
Department of Health,NHS England,30/04/2013,Services from other NHS bodies, Specialised Commissioning , BARNSLEY HOSPITAL NHS FOUNDATION TRUST ,156860," 816,551.42 ",100065-10-APR-2013,
Department of Health,NHS England,30/04/2013,Establishment, NHS England Running Costs , BARNSLEY PRIMARY CARE TRUST ,208221," 2,770.93 ",INV016091,
Department of Health,NHS England,30/04/2013,GPMS/APMS and PCTMS, Primary Care , BARNSLEY ROAD SURGERY ,146505," 25,679.50 ",SHE000000083,
Department of Health,NHS England,30/04/2013,GPMS/APMS and PCTMS, Primary Care , BARNT GREEN SURGERY ,146869," 54,952.57 ",WR000000061,
Department of Health,NHS England,30/04/2013,GPMS/APMS and PCTMS, Primary Care , BARR LANE SURGERY ,209089,"-32,330.53 ",WA000000375,
Department of Health,NHS England,30/04/2013,GPMS/APMS and PCTMS, Primary Care , BARR LANE SURGERY ,197978," 37,257.34 ",WA000000214,
Department of Health,NHS England,30/04/2013,GPMS/APMS and PCTMS, Primary Care , BARR LANE SURGERY ,209090," 74,539.62 ",WA000000376,
Department of Health,NHS England,30/04/2013,GPMS/APMS and PCTMS, Primary Care , BARRACK LANE MEDICAL CENTRE ,146023,"-108,686.70 ",SU000000044,
Department of Health,NHS England,30/04/2013,GPMS/APMS and PCTMS, Primary Care , BARRACK LANE MEDICAL CENTRE ,146024," 223,175.93 ",SU000000045,
Department of Health,NHS England,30/04/2013,GPMS/APMS and PCTMS, Primary Care , BARRETT CHATTERJEE DAY & PARTNERS ,145405,"-27,790.57 ",DE000000059,
Department of Health,NHS England,30/04/2013,GPMS/APMS and PCTMS, Primary Care , BARRETT CHATTERJEE DAY & PARTNERS ,145406," 124,766.02 ",DE000000060,
Department of Health,NHS England,30/04/2013,GPMS/APMS and PCTMS, Primary Care , BARROWFORD SURGERY ,149892," 34,158.74 ",LA000000016,
Department of Health,NHS England,30/04/2013,GPMS/APMS and PCTMS, Primary Care , BARTLEMAS SURGERY ,198223," 71,328.01 ",OX000000118,
Department of Health,NHS England,30/04/2013,GPMS/APMS and PCTMS, Primary Care , BARTON HOUSE GROUP PRACTICE ,179075," 92,792.33 ",LNA000000134,
Department of Health,NHS England,30/04/2013,GPMS/APMS and PCTMS, Primary Care , BARTON HOUSE SURGERY ,198112,"-28,084.83 ",DO000000411,
Department of Health,NHS England,30/04/2013,GPMS/APMS and PCTMS, Primary Care , BARTON HOUSE SURGERY ,178059," 42,183.34 ",DO000000325,
Department of Health,NHS England,30/04/2013,GPMS/APMS and PCTMS, Primary Care , BARTON HOUSE SURGERY ,198113," 64,505.59 ",DO000000412,
Department of Health,NHS England,30/04/2013,GPMS/APMS and PCTMS, Primary Care , BARTON SURGERY (DAWLISH) ,210608," 123,411.07 ",DN000001126,
Department of Health,NHS England,30/04/2013,GPMS/APMS and PCTMS, Primary Care , BARTON SURGERY (DAWLISH) ,185606," 158,747.77 ",DN000000616,
Department of Health,NHS England,30/04/2013,GPMS/APMS and PCTMS, Primary Care , BARTON SURGERY (TORQUAY) ,185608," 26,076.64 ",DN000000618,
Department of Health,NHS England,30/04/2013,GPMS/APMS and PCTMS, Primary Care , BARTON SURGERY (TORQUAY) ,210609," 85,201.13 ",DN000001128,
Department of Health,NHS England,30/04/2013,GPMS/APMS and PCTMS, Primary Care , BARTON SURGERY PLYMSTOCK RIVERSIDE LCG ,185610," 30,273.89 ",DN000000620,
Department of Health,NHS England,30/04/2013,GPMS/APMS and PCTMS, Primary Care , BARTON WEBB PEPLOE PARTNERSHIP ,178891," 95,410.83 ",SO000000371,
Department of Health,NHS England,30/04/2013,Services from other NHS bodies, Specialised Commissioning , BARTS AND THE LONDON NHS TRUST ,160400," 21,542,938.00 ",162160 ,
Department of Health,NHS England,30/04/2013,GPMS/APMS and PCTMS, Primary Care , BARUCH & PARTNERS ,185743," 37,353.10 ",LNN000000159,
Department of Health,NHS England,30/04/2013,Services from other NHS bodies, NHS England Running Costs , BASILDON & THURROCK UNIVERSITY HOSPITALS NHS FOUNDATION TRUST ,156981," 153,000.00 ",RFT rej 1017,
Department of Health,NHS England,30/04/2013,Services from other NHS bodies, Specialised Commissioning , BASILDON & THURROCK UNIVERSITY HOSPITALS NHS FOUNDATION TRUST ,160343," 3,916,667.00 ",56497 ,
Department of Health,NHS England,30/04/2013,GPMS/APMS and PCTMS, Primary Care , BASILDON DISTRICT COUNCIL ,170344," 105,817.55 ",100938-17-APR-2013,
Department of Health,NHS England,30/04/2013,Prescribing costs, Primary Care , BASLOW ROAD & SHOREHAM STREET SURGERIES ,200031, 562.00 ,SHE000000179,
Department of Health,NHS England,30/04/2013,GPMS/APMS and PCTMS, Primary Care , BASLOW ROAD & SHOREHAM STREET SURGERIES ,200031," 72,172.11 ",SHE000000179,
Department of Health,NHS England,30/04/2013,GPMS/APMS and PCTMS, Primary Care , BASSAN ,158953," 25,594.19 ",WBH000000008,
Department of Health,NHS England,30/04/2013,GPMS/APMS and PCTMS, Primary Care , BASSETLAW DISTRICT COUNCIL ,212585," 43,332.00 ",450060739410041000000 ,
Department of Health,NHS England,30/04/2013,GPMS/APMS and PCTMS, Primary Care , BASSETLAW DISTRICT COUNCIL ,212588," 45,216.00 ",450060743810041000000 ,
Department of Health,NHS England,30/04/2013,GPMS/APMS and PCTMS, Primary Care , BASSETT ROAD MEDICAL PRACTICE ,196854,"-213,973.01 ",BD000000186,
Department of Health,NHS England,30/04/2013,GPMS/APMS and PCTMS, Primary Care , BASSETT ROAD MEDICAL PRACTICE ,204443," 38,875.39 ",BD000000273,
Department of Health,NHS England,30/04/2013,GPMS/APMS and PCTMS, Primary Care , BASSETT ROAD MEDICAL PRACTICE ,196855," 373,300.86 ",BD000000187,
Department of Health,NHS England,30/04/2013,GPMS/APMS and PCTMS, Primary Care , BATES & PARTNERS RICHMOND ,185745," 63,376.91 ",LNN000000161,
Department of Health,NHS England,30/04/2013,GPMS/APMS and PCTMS, Primary Care , BATES & PARTNERS WIRRAL ,192373,"-49,403.61 ",BIK000000252,
Department of Health,NHS England,30/04/2013,GPMS/APMS and PCTMS, Primary Care , BATES & PARTNERS WIRRAL ,153809," 41,069.16 ",BIK000000004,
Department of Health,NHS England,30/04/2013,GPMS/APMS and PCTMS, Primary Care , BATES & PARTNERS WIRRAL ,192374," 69,142.66 ",BIK000000253,
Department of Health,NHS England,30/04/2013,GPMS/APMS and PCTMS, Primary Care , BATESON & PARTNERS ,191692,"-63,765.02 ",LIP000000407,
Department of Health,NHS England,30/04/2013,GPMS/APMS and PCTMS, Primary Care , BATESON & PARTNERS ,154089," 43,030.25 ",LIP000000020,
Department of Health,NHS England,30/04/2013,GPMS/APMS and PCTMS, Primary Care , BATESON & PARTNERS ,191693," 55,632.41 ",LIP000000408,
Department of Health,NHS England,30/04/2013,GPMS/APMS and PCTMS, Primary Care , BATH LODGE PRACTICE ,178893," 118,282.07 ",SO000000373,
Department of Health,NHS England,30/04/2013,GPMS/APMS and PCTMS, Primary Care , BATH ROAD SURGERY SLOUGH ,176567," 30,312.04 ",BE000000186,
Department of Health,NHS England,30/04/2013,GPMS/APMS and PCTMS, Primary Care , BATHEASTON MEDICAL CENTRE ,150597," 44,129.64 ",BRS000000042,
Department of Health,NHS England,30/04/2013,GPMS/APMS and PCTMS, Primary Care , BATTLEHILL HEALTH CENTRE ,145239," 113,977.81 ",NEW000000002,
Department of Health,NHS England,30/04/2013,General Opthalmic services, Primary Care , BATTY & DEXTER ,179942," 27,691.88 ",3836550_S,
Department of Health,NHS England,30/04/2013,GPMS/APMS and PCTMS, Primary Care , BAYLIS T M & PARTNERS ,200035," 43,624.10 ",EX000000470,
Department of Health,NHS England,30/04/2013,GPMS/APMS and PCTMS, Primary Care , BAYSWATER MEDICAL CENTRE ,186350,"-71,583.38 ",LNJ000000190,
Department of Health,NHS England,30/04/2013,GPMS/APMS and PCTMS, Primary Care , BAYSWATER MEDICAL CENTRE ,150063," 58,194.00 ",LNJ000000001,
Department of Health,NHS England,30/04/2013,GPMS/APMS and PCTMS, Primary Care , BAYSWATER MEDICAL CENTRE ,186351," 71,884.78 ",LNJ000000191,
Department of Health,NHS England,30/04/2013,GPMS/APMS and PCTMS, Primary Care , BEACON SURGERY ,164922," 86,343.02 ",TE000000009,
Department of Health,NHS England,30/04/2013,GPMS/APMS and PCTMS, Primary Care , BEARSTED MEDICAL PRACTICE ,203923,"-31,360.84 ",KC000000809,
Department of Health,NHS England,30/04/2013,GPMS/APMS and PCTMS, Primary Care , BEARSTED MEDICAL PRACTICE ,203924," 83,634.38 ",KC000000810,
Department of Health,NHS England,30/04/2013,GPMS/APMS and PCTMS, Primary Care , BEARSTED MEDICAL PRACTICE ,164817," 89,053.13 ",KC000000319,
Department of Health,NHS England,30/04/2013,GPMS/APMS and PCTMS, Primary Care , BEARWOOD MEDICAL CENTRE ,147248," 141,634.59 ",DO000000060,
Department of Health,NHS England,30/04/2013,GPMS/APMS and PCTMS, Primary Care , BEAUFORT ROAD SURGERY ,178056," 67,731.03 ",DO000000319,
Department of Health,NHS England,30/04/2013,GPMS/APMS and PCTMS, Primary Care , BEAUMONT LEYS HEALTH CENTRE ,140545," 50,017.70 ",LD000000034,
Department of Health,NHS England,30/04/2013,GPMS/APMS and PCTMS, Primary Care , BEAUMONT STREET SURGERY ,198157," 40,339.95 ",OX000000108,
Department of Health,NHS England,30/04/2013,GPMS/APMS and PCTMS, Primary Care , BEAUMONT VILLA SURGERY ,185592," 28,802.53 ",DN000000602,
Department of Health,NHS England,30/04/2013,GPMS/APMS and PCTMS, Primary Care , BEAUMONT VILLA SURGERY ,210603," 99,698.62 ",DN000001118,
Department of Health,NHS England,30/04/2013,GPMS/APMS and PCTMS, Primary Care , BECCLES MEDICAL CENTRE ,148690,"-28,970.90 ",NF000000001,
Department of Health,NHS England,30/04/2013,Prescribing costs, Primary Care , BECCLES MEDICAL CENTRE ,186710," 7,482.73 ",NF000000198,
Department of Health,NHS England,30/04/2013,GPMS/APMS and PCTMS, Primary Care , BECCLES MEDICAL CENTRE ,186710," 41,831.73 ",NF000000198,
Department of Health,NHS England,30/04/2013,GPMS/APMS and PCTMS, Primary Care , BECCLES MEDICAL CENTRE ,148691," 159,079.21 ",NF000000002,
Department of Health,NHS England,30/04/2013,GPMS/APMS and PCTMS, Primary Care , BECKETT HOUSE PRACTICE ,192261,"-43,502.48 ",LNS000000470,
Department of Health,NHS England,30/04/2013,GPMS/APMS and PCTMS, Primary Care , BECKETT HOUSE PRACTICE ,147715," 38,539.75 ",LNS000000001,
Department of Health,NHS England,30/04/2013,GPMS/APMS and PCTMS, Primary Care , BECKETT HOUSE PRACTICE ,192262," 47,392.30 ",LNS000000471,
Department of Health,NHS England,30/04/2013,GPMS/APMS and PCTMS, Primary Care , BECKINGTON FAMILY PRACTICE ,197029,"-70,668.87 ",SM000000120,
Department of Health,NHS England,30/04/2013,GPMS/APMS and PCTMS, Primary Care , BECKINGTON FAMILY PRACTICE ,197030," 207,263.41 ",SM000000121,
Department of Health,NHS England,30/04/2013,GPMS/APMS and PCTMS, Primary Care , BEDFORD BOROUGH COUNCIL ,162303," 46,158.00 ",100383-12-APR-2013,
Department of Health,NHS England,30/04/2013,Services from other NHS bodies, Specialised Commissioning , BEDFORD HOSPITAL NHS TRUST ,161228," 750,000.00 ",I0126695,
Department of Health,NHS England,30/04/2013,Prescribing costs, Primary Care , BEDFORD HOUSE MEDICAL CENTRE ,199035, 571.73 ,GMK000000016,
Department of Health,NHS England,30/04/2013,GPMS/APMS and PCTMS, Primary Care , BEDFORD HOUSE MEDICAL CENTRE ,199035," 55,769.41 ",GMK000000016,
Department of Health,NHS England,30/04/2013,GPMS/APMS and PCTMS, Primary Care , BEDFORD SQUARE MEDICAL CENTRE ,197655," 28,224.14 ",LND000000214,
Department of Health,NHS England,30/04/2013,GPMS/APMS and PCTMS, Primary Care , BEDFORD STREET SURGERY ,148770," 91,939.76 ",BU000000004,
Department of Health,NHS England,30/04/2013,GPMS/APMS and PCTMS, Primary Care , BEDFORDSHIRE AND HERTFORDSHIRE LMC LTD (STAT LEVY) ,194553," 56,917.34 ",101595-24-APR-2013,
Department of Health,NHS England,30/04/2013,GPMS/APMS and PCTMS, Primary Care , BEDFORDSHIRE&HERTFORDSHIRE LOCAL MEDICAL COMMITTEE ,166825," 56,917.34 ",100863-16-APR-2013,
Department of Health,NHS England,30/04/2013,GPMS/APMS and PCTMS, Primary Care , BEDLINGTONSHIRE MEDICAL GROUP ,147459," 80,861.24 ",NR000000002,
Department of Health,NHS England,30/04/2013,GPMS/APMS and PCTMS, Primary Care , BEDMINSTER FAMILY PRACTICE ,197455," 43,616.58 ",BRS000000268,
Department of Health,NHS England,30/04/2013,GPMS/APMS and PCTMS, Primary Care , BEDMINSTER FAMILY PRACTICE ,150583," 99,925.56 ",BRS000000029,
Department of Health,NHS England,30/04/2013,GPMS/APMS and PCTMS, Primary Care , BEDSIDE MANOR ,151262," 36,940.28 ",LNW000000003,
Department of Health,NHS England,30/04/2013,GPMS/APMS and PCTMS, Primary Care , BEDWELL MEDICAL CENTRE ,199286," 98,831.29 ",HT000000190,
Department of Health,NHS England,30/04/2013,GPMS/APMS and PCTMS, Primary Care , BEEBY ,190746," 58,639.61 ",STL000000326,
Department of Health,NHS England,30/04/2013,GPMS/APMS and PCTMS, Primary Care , BEECH GROVE MEDICAL PRACTICE ,185901," 29,704.82 ",YN000000206,
Department of Health,NHS England,30/04/2013,GPMS/APMS and PCTMS, Primary Care , BEECH GROVE SURGERY ,178867," 40,842.60 ",SO000000347,
Department of Health,NHS England,30/04/2013,GPMS/APMS and PCTMS, Primary Care , BEECH HILL MEDICAL CENTRE ,149340,"-43,820.09 ",WIG000000025,
Department of Health,NHS England,30/04/2013,GPMS/APMS and PCTMS, Primary Care , BEECH HILL MEDICAL CENTRE ,149341," 100,986.13 ",WIG000000026,
Department of Health,NHS England,30/04/2013,GPMS/APMS and PCTMS, Primary Care , BEECH HOUSE BEAWORTHY ,201203," 44,678.90 ",DN000000929,
Department of Health,NHS England,30/04/2013,GPMS/APMS and PCTMS, Primary Care , BEECH HOUSE MEDICAL PRACTICE ,147486," 68,942.32 ",SPT000000002,
Department of Health,NHS England,30/04/2013,GPMS/APMS and PCTMS, Primary Care , BEECH HOUSE SURGERY ,185902,"-38,959.01 ",YN000000207,
Department of Health,NHS England,30/04/2013,GPMS/APMS and PCTMS, Primary Care , BEECH HOUSE SURGERY ,185903," 134,678.85 ",YN000000208,
Department of Health,NHS England,30/04/2013,GPMS/APMS and PCTMS, Primary Care , BEECH TREE SURGERY ,185904,"-53,037.78 ",YN000000209,
Department of Health,NHS England,30/04/2013,GPMS/APMS and PCTMS, Primary Care , BEECH TREE SURGERY ,185905," 212,928.30 ",YN000000210,
Department of Health,NHS England,30/04/2013,GPMS/APMS and PCTMS, Primary Care , BEECHCROFT SURGERY ,148693," 42,125.76 ",NF000000004,
Department of Health,NHS England,30/04/2013,GPMS/APMS and PCTMS, Primary Care , BEECHDALE SURGERY ,147894," 32,091.10 ",NN000000007,
Department of Health,NHS England,30/04/2013,GPMS/APMS and PCTMS, Primary Care , BEECHES MEDICAL PRACTICE ,179378," 47,420.85 ",SA000000229,
Department of Health,NHS England,30/04/2013,GPMS/APMS and PCTMS, Primary Care , BEECHWOOD GROUP PRACTICE ,171657," 48,907.60 ",CU000000095,
Department of Health,NHS England,30/04/2013,GPMS/APMS and PCTMS, Primary Care , BEECHWOOD MEDICAL CENTRE ,179061," 25,653.56 ",LNA000000120,
Department of Health,NHS England,30/04/2013,Prescribing costs, Primary Care , BEECHWOOD MEDICAL PRACTICE ,197457, 547.46 ,BRS000000270,
Department of Health,NHS England,30/04/2013,GPMS/APMS and PCTMS, Primary Care , BEECHWOOD MEDICAL PRACTICE ,197457," 118,217.65 ",BRS000000270,
Department of Health,NHS England,30/04/2013,GPMS/APMS and PCTMS, Primary Care , BEGGARWOOD SURGERY (THE) ,142574,"-60,183.09 ",SO000000062,
Department of Health,NHS England,30/04/2013,GPMS/APMS and PCTMS, Primary Care , BEGGARWOOD SURGERY (THE) ,142575," 123,936.87 ",SO000000063,
Department of Health,NHS England,30/04/2013,GPMS/APMS and PCTMS, Primary Care , BEHESHTI & PARTNERS ,179773," 40,507.38 ",LNC000000059,
Department of Health,NHS England,30/04/2013,GPMS/APMS and PCTMS, Primary Care , BELFORD MEDICAL PRACTICE ,147463," 46,036.50 ",NR000000006,
Department of Health,NHS England,30/04/2013,GPMS/APMS and PCTMS, Primary Care , BELFORD MEDICAL PRACTICE ,197283," 57,839.02 ",NR000000136,
Department of Health,NHS England,30/04/2013,GPMS/APMS and PCTMS, Primary Care , BELGRAVE SURGERY ,185907," 48,603.20 ",YN000000212,
Department of Health,NHS England,30/04/2013,GPMS/APMS and PCTMS, Primary Care , BELGRAVIA SURGERY ,186353," 57,374.66 ",LNJ000000193,
Department of Health,NHS England,30/04/2013,GPMS/APMS and PCTMS, Primary Care , BELL HOUSE MEDICAL PRACTICE ,196853," 174,249.99 ",BD000000185,
Department of Health,NHS England,30/04/2013,GPMS/APMS and PCTMS, Primary Care , BELL SURGERY ,198159," 63,829.75 ",OX000000110,
Department of Health,NHS England,30/04/2013,GPMS/APMS and PCTMS, Primary Care , BELLEGROVE ROAD SURGERY ,151266," 69,981.94 ",LNW000000007,
Department of Health,NHS England,30/04/2013,GPMS/APMS and PCTMS, Primary Care , BELLINGHAM GREEN SURGERY ,192263,"-45,831.69 ",LNS000000472,
Department of Health,NHS England,30/04/2013,GPMS/APMS and PCTMS, Primary Care , BELLINGHAM GREEN SURGERY ,147716," 39,436.75 ",LNS000000002,
Department of Health,NHS England,30/04/2013,GPMS/APMS and PCTMS, Primary Care , BELLINGHAM GREEN SURGERY ,192264," 52,880.28 ",LNS000000473,
Department of Health,NHS England,30/04/2013,GPMS/APMS and PCTMS, Primary Care , BELLINGHAM J M & PARTNERS ,147116," 76,423.52 ",EX000000018,
Department of Health,NHS England,30/04/2013,GPMS/APMS and PCTMS, Primary Care , BELLINGHAM MEDICAL GROUP ,147465," 32,691.34 ",NR000000008,
Department of Health,NHS England,30/04/2013,Prescribing costs, Primary Care , BELLWORTHY S V ,200037," 3,557.41 ",EX000000472,
Department of Health,NHS England,30/04/2013,GPMS/APMS and PCTMS, Primary Care , BELLWORTHY S V ,200037," 38,142.46 ",EX000000472,
Department of Health,NHS England,30/04/2013,GPMS/APMS and PCTMS, Primary Care , BELMONT & SHERBURN MEDICAL GROUP ,191331," 71,676.37 ",DR000000255,
Department of Health,NHS England,30/04/2013,GPMS/APMS and PCTMS, Primary Care , BELMONT HILL SURGERY ,192265,"-43,242.42 ",LNS000000474,
Department of Health,NHS England,30/04/2013,GPMS/APMS and PCTMS, Primary Care , BELMONT HILL SURGERY ,147717," 37,279.85 ",LNS000000003,
Department of Health,NHS England,30/04/2013,GPMS/APMS and PCTMS, Primary Care , BELMONT HILL SURGERY ,192266," 46,751.04 ",LNS000000475,
Department of Health,NHS England,30/04/2013,Prescribing costs, Primary Care , BELMONT MEDICAL CENTRE ,180458, 753.52 ,LNK000000025,
Department of Health,NHS England,30/04/2013,GPMS/APMS and PCTMS, Primary Care , BELMONT MEDICAL CENTRE ,180458," 52,741.12 ",LNK000000025,
Department of Health,NHS England,30/04/2013,GPMS/APMS and PCTMS, Primary Care , BELSIZE PRIORY MEDICAL PRACTICE ,197657," 31,022.55 ",LND000000216,
Department of Health,NHS England,30/04/2013,GPMS/APMS and PCTMS, Primary Care , BELVEDERE MEDICAL CENTRE ,151365," 51,386.31 ",LNW000000009,
Department of Health,NHS England,30/04/2013,GPMS/APMS and PCTMS, Primary Care , BELVIDERE MEDICAL PRACTICE ,179380," 37,869.03 ",SA000000231,
Department of Health,NHS England,30/04/2013,GPMS/APMS and PCTMS, Primary Care , BENFIELD PARK MEDICAL GROUP ,199909," 65,250.74 ",NEW000000116,
Department of Health,NHS England,30/04/2013,GPMS/APMS and PCTMS, Primary Care , BENNETT WAY SURGERY ,203926," 39,267.69 ",KC000000812,
Department of Health,NHS England,30/04/2013,GPMS/APMS and PCTMS, Primary Care , BENNETTS END SURGERY ,147214," 171,624.49 ",HT000000058,
Department of Health,NHS England,30/04/2013,GPMS/APMS and PCTMS, Primary Care , BENNFIELD SURGERY ,138525," 44,742.92 ",WA000000002,
Department of Health,NHS England,30/04/2013,GPMS/APMS and PCTMS, Primary Care , BENNFIELD SURGERY ,197968," 50,147.97 ",WA000000204,
Department of Health,NHS England,30/04/2013,GPMS/APMS and PCTMS, Primary Care , BENTHAM MEDICAL PRACTICE ,185908,"-37,011.13 ",YN000000213,
Department of Health,NHS England,30/04/2013,GPMS/APMS and PCTMS, Primary Care , BENTHAM MEDICAL PRACTICE ,185909," 138,011.96 ",YN000000214,
Department of Health,NHS England,30/04/2013,GPMS/APMS and PCTMS, Primary Care , BENTHAM ROAD HEALTH CENTRE ,149860," 79,194.75 ",LA000000002,
Department of Health,NHS England,30/04/2013,GPMS/APMS and PCTMS, Primary Care , BENTLEY MEDICAL PRACTICE ,162704,"-47,991.56 ",MID000000012,
Department of Health,NHS England,30/04/2013,GPMS/APMS and PCTMS, Primary Care , BENTLEY MEDICAL PRACTICE ,162705," 97,403.62 ",MID000000013,
Department of Health,NHS England,30/04/2013,GPMS/APMS and PCTMS, Primary Care , BENTLEY VILLAGE SURGERY ,178873," 28,777.63 ",SO000000353,
Department of Health,NHS England,30/04/2013,GPMS/APMS and PCTMS, Primary Care , BENTLEY VILLAGE SURGERY ,205695," 49,687.90 ",SO000000968,
Department of Health,NHS England,30/04/2013,GPMS/APMS and PCTMS, Primary Care , BENTS GREEN SURGERY ,146499," 33,195.18 ",SHE000000077,
Department of Health,NHS England,30/04/2013,GPMS/APMS and PCTMS, Primary Care , BERE REGIS PRACTICE ,198102,"-39,695.15 ",DO000000401,
Department of Health,NHS England,30/04/2013,GPMS/APMS and PCTMS, Primary Care , BERE REGIS PRACTICE ,178057," 27,332.49 ",DO000000321,
Department of Health,NHS England,30/04/2013,GPMS/APMS and PCTMS, Primary Care , BERE REGIS PRACTICE ,198103," 87,481.80 ",DO000000402,
Department of Health,NHS England,30/04/2013,Services from other NHS bodies, Health & Justice , BERKSHIRE HEALTHCARE NHS FOUNDATION TRUST ,160356," 95,341.00 ",761354 ,
Department of Health,NHS England,30/04/2013,Services from other NHS bodies, Secondary and Community Dental Care , BERKSHIRE HEALTHCARE NHS FOUNDATION TRUST ,161223," 213,996.00 ",761355 ,
Department of Health,NHS England,30/04/2013,Services from other NHS bodies, Public Health , BERKSHIRE HEALTHCARE NHS FOUNDATION TRUST ,160356," 925,696.00 ",761354 ,
Department of Health,NHS England,30/04/2013,GPMS/APMS and PCTMS, Primary Care , BERMONDSEY & LANSDOWNE MEDICAL MISSION ,192267,"-112,792.52 ",LNS000000476,
Department of Health,NHS England,30/04/2013,GPMS/APMS and PCTMS, Primary Care , BERMONDSEY & LANSDOWNE MEDICAL MISSION ,147718," 91,516.97 ",LNS000000004,
Department of Health,NHS England,30/04/2013,GPMS/APMS and PCTMS, Primary Care , BERMONDSEY & LANSDOWNE MEDICAL MISSION ,192268," 116,244.10 ",LNS000000477,
Department of Health,NHS England,30/04/2013,GPMS/APMS and PCTMS, Primary Care , BERMONDSEY SPA MEDICAL CENTRE ,192269,"-61,214.57 ",LNS000000478,
Department of Health,NHS England,30/04/2013,GPMS/APMS and PCTMS, Primary Care , BERMONDSEY SPA MEDICAL CENTRE ,147719," 49,737.22 ",LNS000000005,
Department of Health,NHS England,30/04/2013,GPMS/APMS and PCTMS, Primary Care , BERMONDSEY SPA MEDICAL CENTRE ,192270," 61,214.57 ",LNS000000479,
Department of Health,NHS England,30/04/2013,GPMS/APMS and PCTMS, Primary Care , BERRY & PARTNERS ,199039," 103,365.41 ",DCR000000048,
Department of Health,NHS England,30/04/2013,GPMS/APMS and PCTMS, Primary Care , BERRY LANE MEDICAL CENTRE ,149862," 86,608.06 ",LA000000004,
Department of Health,NHS England,30/04/2013,GPMS/APMS and PCTMS, Primary Care , BERRYFIELDS MEDICAL CENTRE ,148772," 38,511.88 ",BU000000006,
Department of Health,NHS England,30/04/2013,GPMS/APMS and PCTMS, Primary Care , BERSTED GREEN SURGERY ,175124," 77,864.01 ",TW000000434,
Department of Health,NHS England,30/04/2013,GPMS/APMS and PCTMS, Primary Care , BEST M & PARTNER ,147118," 56,640.62 ",EX000000020,
Department of Health,NHS England,30/04/2013,GPMS/APMS and PCTMS, Primary Care , BETHNAL GREEN HEALTH CENTRE ,179063," 72,117.19 ",LNA000000122,
Department of Health,NHS England,30/04/2013,GPMS/APMS and PCTMS, Primary Care , BEVAN ,190753,"-29,536.05 ",STL000000333,
Department of Health,NHS England,30/04/2013,GPMS/APMS and PCTMS, Primary Care , BEVAN ,190754," 43,081.41 ",STL000000334,
Department of Health,NHS England,30/04/2013,GPMS/APMS and PCTMS, Primary Care , BEVAN HEALTHCARE CIC ,148614," 126,215.25 ",BRA000000002,
Department of Health,NHS England,30/04/2013,GPMS/APMS and PCTMS, Primary Care , BEWBUSH MEDICAL CENTRE ,175134," 43,946.03 ",TW000000444,
Department of Health,NHS England,30/04/2013,GPMS/APMS and PCTMS, Primary Care , BEWDLEY MEDICAL CENTRE ,146870,"-30,525.57 ",WR000000062,
Department of Health,NHS England,30/04/2013,GPMS/APMS and PCTMS, Primary Care , BEWDLEY MEDICAL CENTRE ,146871," 136,288.12 ",WR000000063,
Department of Health,NHS England,30/04/2013,GPMS/APMS and PCTMS, Primary Care , BEXLEY GROUP PRACTICE ,151413," 84,886.43 ",LNW000000019,
Department of Health,NHS England,30/04/2013,GPMS/APMS and PCTMS, Primary Care , BEXLEY MEDICAL GROUP ,151419," 123,826.62 ",LNW000000021,
Department of Health,NHS England,30/04/2013,GPMS/APMS and PCTMS, Primary Care , BHARANI MEDICAL CENTRE ,145809," 125,953.08 ",BE000000030,
Department of Health,NHS England,30/04/2013,GPMS/APMS and PCTMS, Primary Care , BHISHMA ,197774," 52,982.70 ",MAN000000127,
Department of Health,NHS England,30/04/2013,GPMS/APMS and PCTMS, Primary Care , BIDEFORD MEDICAL CENTRE BIDEFORD ,210613," 112,598.30 ",DN000001132,
Department of Health,NHS England,30/04/2013,GPMS/APMS and PCTMS, Primary Care , BIDEFORD MEDICAL CENTRE BIDEFORD ,185614," 135,824.27 ",DN000000624,
Department of Health,NHS England,30/04/2013,GPMS/APMS and PCTMS, Primary Care , BIDFORD ON AVON HEALTH CENTRE ,209092,"-46,829.45 ",WA000000378,
Department of Health,NHS England,30/04/2013,GPMS/APMS and PCTMS, Primary Care , BIDFORD ON AVON HEALTH CENTRE ,150174," 83,288.11 ",WA000000079,
Department of Health,NHS England,30/04/2013,GPMS/APMS and PCTMS, Primary Care , BIDFORD ON AVON HEALTH CENTRE ,209093," 128,413.87 ",WA000000379,
Department of Health,NHS England,30/04/2013,GPMS/APMS and PCTMS, Primary Care , BIDWELL & DAVIDSON ,146637,"-36,378.09 ",DR000000007,
Department of Health,NHS England,30/04/2013,GPMS/APMS and PCTMS, Primary Care , BIDWELL & DAVIDSON ,146638," 76,613.63 ",DR000000008,
Department of Health,NHS England,30/04/2013,GPMS/APMS and PCTMS, Primary Care , BIGGIN HILL SURGERY ,164746," 90,168.26 ",LNT000000011,
Department of Health,NHS England,30/04/2013,GPMS/APMS and PCTMS, Primary Care , BILAS & THOMAS ,172256," 32,074.35 ",WOM000000063,
Department of Health,NHS England,30/04/2013,GPMS/APMS and PCTMS, Primary Care , BILLINGSHURST SURGERY ,203071,"-44,814.96 ",TW000000567,
Department of Health,NHS England,30/04/2013,GPMS/APMS and PCTMS, Primary Care , BILLINGSHURST SURGERY ,175136," 79,864.96 ",TW000000446,
Department of Health,NHS England,30/04/2013,GPMS/APMS and PCTMS, Primary Care , BILLINGSHURST SURGERY ,203072," 87,081.67 ",TW000000568,
Department of Health,NHS England,30/04/2013,GPMS/APMS and PCTMS, Primary Care , BILSTON URBAN VILLAGE MEDICAL CENTRE ,142446," 71,002.73 ",WOM000000004,
Department of Health,NHS England,30/04/2013,GPMS/APMS and PCTMS, Primary Care , BINCOTE ROAD SURGERY ,151553," 43,370.68 ",LNE000000010,
Department of Health,NHS England,30/04/2013,GPMS/APMS and PCTMS, Primary Care , BINFIELD ROAD SURGERY ,192284,"-45,627.37 ",LNS000000494,
Department of Health,NHS England,30/04/2013,GPMS/APMS and PCTMS, Primary Care , BINFIELD ROAD SURGERY ,147727," 45,592.13 ",LNS000000013,
Department of Health,NHS England,30/04/2013,GPMS/APMS and PCTMS, Primary Care , BINFIELD ROAD SURGERY ,192285," 62,160.21 ",LNS000000495,
Department of Health,NHS England,30/04/2013,GPMS/APMS and PCTMS, Primary Care , BINFIELD SURGERY ,145811," 74,619.74 ",BE000000032,
Department of Health,NHS England,30/04/2013,GPMS/APMS and PCTMS, Primary Care , BINGLEY MEDICAL PRACTICE ,148615,"-387,056.64 ",BRA000000003,
Department of Health,NHS England,30/04/2013,GPMS/APMS and PCTMS, Primary Care , BINGLEY MEDICAL PRACTICE ,148616," 646,945.09 ",BRA000000004,
Department of Health,NHS England,30/04/2013,GPMS/APMS and PCTMS, Primary Care , BIRBECK MEDICAL GROUP ,171665," 122,070.64 ",CU000000103,
Department of Health,NHS England,30/04/2013,GPMS/APMS and PCTMS, Primary Care , BIRCHDALE ROAD MEDICAL CENTRE ,148517,"-37,145.74 ",LNA000000007,
Department of Health,NHS England,30/04/2013,GPMS/APMS and PCTMS, Primary Care , BIRCHDALE ROAD MEDICAL CENTRE ,148828," 69,264.81 ",LNA000000008,
Department of Health,NHS England,30/04/2013,GPMS/APMS and PCTMS, Primary Care , BIRCHES MEDICAL CENTRE ,146025,"-55,272.65 ",SU000000046,
Department of Health,NHS England,30/04/2013,GPMS/APMS and PCTMS, Primary Care , BIRCHES MEDICAL CENTRE ,190411," 30,571.71 ",ROC000000078,
Department of Health,NHS England,30/04/2013,GPMS/APMS and PCTMS, Primary Care , BIRCHES MEDICAL CENTRE ,146027," 114,047.10 ",SU000000047,
Department of Health,NHS England,30/04/2013,Prescribing costs, Primary Care , BIRCHES MEDICAL PRACTICE ,192072," 1,344.51 ",KHU000000168,
Department of Health,NHS England,30/04/2013,GPMS/APMS and PCTMS, Primary Care , BIRCHES MEDICAL PRACTICE ,192072," 70,393.03 ",KHU000000168,
Department of Health,NHS England,30/04/2013,GPMS/APMS and PCTMS, Primary Care , BIRCHINGTON MEDICAL CENTRE ,164831," 74,517.67 ",KC000000333,
Department of Health,NHS England,30/04/2013,GPMS/APMS and PCTMS, Primary Care , BIRCHTREE PRACTICE ,162714,"-44,193.69 ",MID000000022,
Department of Health,NHS England,30/04/2013,GPMS/APMS and PCTMS, Primary Care , BIRCHTREE PRACTICE ,162715," 88,833.61 ",MID000000023,
Department of Health,NHS England,30/04/2013,GPMS/APMS and PCTMS, Primary Care , BIRCHWOOD MEDICAL CENTRE POOLE ,147262," 83,379.64 ",DO000000073,
Department of Health,NHS England,30/04/2013,GPMS/APMS and PCTMS, Primary Care , BIRCHWOOD MEDICAL CENTRE WARRINGTON ,163352,"-69,530.72 ",CH000000123,
Department of Health,NHS England,30/04/2013,GPMS/APMS and PCTMS, Primary Care , BIRCHWOOD MEDICAL CENTRE WARRINGTON ,163353," 95,122.08 ",CH000000124,
Department of Health,NHS England,30/04/2013,Prescribing costs, Primary Care , BIRCHWOOD MEDICAL PRACTICE BRISTOL ,197467," 1,482.25 ",BRS000000280,
Department of Health,NHS England,30/04/2013,GPMS/APMS and PCTMS, Primary Care , BIRCHWOOD MEDICAL PRACTICE BRISTOL ,197467," 44,678.03 ",BRS000000280,
Department of Health,NHS England,30/04/2013,GPMS/APMS and PCTMS, Primary Care , BIRCHWOOD MEDICAL PRACTICE HORLEY ,186222," 154,978.49 ",SY000000364,
Department of Health,NHS England,30/04/2013,GPMS/APMS and PCTMS, Primary Care , BIRCHWOOD SURGERY ,199298," 106,135.16 ",HT000000202,
Department of Health,NHS England,30/04/2013,GPMS/APMS and PCTMS, Primary Care , BIRD IN EYE SURGERY ,164926," 54,776.82 ",TE000000013,
Department of Health,NHS England,30/04/2013,GPMS/APMS and PCTMS, Primary Care , BIRLEY HEALTH CENTRE ,146506,"-79,427.94 ",SHE000000084,
Department of Health,NHS England,30/04/2013,GPMS/APMS and PCTMS, Primary Care , BIRLEY HEALTH CENTRE ,146507," 140,409.97 ",SHE000000085,
Department of Health,NHS England,30/04/2013,Services from other NHS bodies, Specialised Commissioning , BIRMINGHAM & SOLIHULL MENTAL HEALTH NHS FOUNDATION TRUST ,156760," 4,634,567.00 ",24947 ,
Department of Health,NHS England,30/04/2013,Services from other NHS bodies, Specialised Commissioning , BIRMINGHAM CHILDRENS HOSPITAL NHS FOUNDATION TRUST ,156721," 12,500,000.00 ",15661192 ,
Department of Health,NHS England,30/04/2013,Services from other NHS bodies, Secondary and Community Dental Care , BIRMINGHAM COMMUNITY HEALTHCARE NHS TRUST ,166593," 748,386.00 ",44994724 ,
Department of Health,NHS England,30/04/2013,Services from other NHS bodies, Secondary and Community Dental Care , BIRMINGHAM COMMUNITY HEALTHCARE NHS TRUST ,166592," 843,009.00 ",44994723 ,
Department of Health,NHS England,30/04/2013,Services from other NHS bodies, Public Health , BIRMINGHAM COMMUNITY HEALTHCARE NHS TRUST ,162153," 1,500,000.00 ",44994730 ,
Department of Health,NHS England,30/04/2013,Services from other NHS bodies, Specialised Commissioning , BIRMINGHAM COMMUNITY HEALTHCARE NHS TRUST ,156970," 1,522,802.00 ",RFT rej 1005,
Department of Health,NHS England,30/04/2013,Services from other NHS bodies, Specialised Commissioning , BIRMINGHAM WOMENS NHS FOUNDATION TRUST ,156645," 2,333,333.00 ",OPI125200,
Department of Health,NHS England,30/04/2013,GPMS/APMS and PCTMS, Primary Care , BISHOPGATE MEDICAL CENTRE ,146639,"-136,617.81 ",DR000000009,
Department of Health,NHS England,30/04/2013,GPMS/APMS and PCTMS, Primary Care , BISHOPGATE MEDICAL CENTRE ,146640," 238,250.23 ",DR000000010,
Department of Health,NHS England,30/04/2013,GPMS/APMS and PCTMS, Primary Care , BISHOPS CASTLE MEDICAL PRACTICE ,179382," 44,638.49 ",SA000000233,
Department of Health,NHS England,30/04/2013,GPMS/APMS and PCTMS, Primary Care , BISHOPS PLACE SURGERY ,185616," 33,685.17 ",DN000000626,
Department of Health,NHS England,30/04/2013,GPMS/APMS and PCTMS, Primary Care , BISHOPS WALTHAM SURGERY ,142578,"-95,193.08 ",SO000000068,
Department of Health,NHS England,30/04/2013,GPMS/APMS and PCTMS, Primary Care , BISHOPS WALTHAM SURGERY ,205700,"-47,983.43 ",SO000000973,
Department of Health,NHS England,30/04/2013,GPMS/APMS and PCTMS, Primary Care , BISHOPS WALTHAM SURGERY ,205701," 112,980.94 ",SO000000974,
Department of Health,NHS England,30/04/2013,GPMS/APMS and PCTMS, Primary Care , BISHOPS WALTHAM SURGERY ,142579," 170,075.46 ",SO000000069,
Department of Health,NHS England,30/04/2013,GPMS/APMS and PCTMS, Primary Care , BITTERNE PARK SURGERY ,178895," 107,154.12 ",SO000000375,
Department of Health,NHS England,30/04/2013,GPMS/APMS and PCTMS, Primary Care , BITTERNE SURGERY ,178897," 99,597.88 ",SO000000377,
Department of Health,NHS England,30/04/2013,GPMS/APMS and PCTMS, Primary Care , BK JAISWAL ,179781," 30,117.93 ",LNC000000067,
Department of Health,NHS England,30/04/2013,Services from other NHS bodies, Specialised Commissioning , BLACK COUNTRY PARTNERSHIP NHS FOUNDATION TRUST ,156966," 252,747.00 ",RFT rej 1001,
Department of Health,NHS England,30/04/2013,GPMS/APMS and PCTMS, Primary Care , BLACK JEB ,197776," 30,928.80 ",MAN000000129,
Department of Health,NHS England,30/04/2013,GPMS/APMS and PCTMS, Primary Care , BLACK LONG THOMAS DAS WRIGHT VELTMAN & PARTNERS ,180180," 103,414.55 ",DE000000243,
Department of Health,NHS England,30/04/2013,Prescribing costs, Primary Care , BLACKBROOK SURGERY LISIEUX WAY TAUNTON ,197033," 2,620.46 ",SM000000124,
Department of Health,NHS England,30/04/2013,GPMS/APMS and PCTMS, Primary Care , BLACKBROOK SURGERY LISIEUX WAY TAUNTON ,197033," 99,704.11 ",SM000000124,
Department of Health,NHS England,30/04/2013,GPMS/APMS and PCTMS, Primary Care , BLACKBURN ROAD MEDICAL PRACTICE ,195888," 31,740.51 ",LA000000191,
Department of Health,NHS England,30/04/2013,GPMS/APMS and PCTMS, Primary Care , BLACKDOWN COUNTRY PRACTICE HEMYOCK ,201214,"-81,730.50 ",DN000000941,
Department of Health,NHS England,30/04/2013,GPMS/APMS and PCTMS, Primary Care , BLACKDOWN COUNTRY PRACTICE HEMYOCK ,185618," 72,487.00 ",DN000000628,
Department of Health,NHS England,30/04/2013,GPMS/APMS and PCTMS, Primary Care , BLACKDOWN COUNTRY PRACTICE HEMYOCK ,210615," 75,238.81 ",DN000001134,
Department of Health,NHS England,30/04/2013,GPMS/APMS and PCTMS, Primary Care , BLACKDOWN COUNTRY PRACTICE HEMYOCK ,201215," 174,733.65 ",DN000000942,
Department of Health,NHS England,30/04/2013,GPMS/APMS and PCTMS, Primary Care , BLACKETTS MEDICAL PRACTICE ,146641,"-84,437.13 ",DR000000011,
Department of Health,NHS England,30/04/2013,GPMS/APMS and PCTMS, Primary Care , BLACKETTS MEDICAL PRACTICE ,146642," 173,938.39 ",DR000000012,
Department of Health,NHS England,30/04/2013,GPMS/APMS and PCTMS, Primary Care , BLACKFIELD HEALTH CENTRE ,178898,"-32,635.31 ",SO000000378,
Department of Health,NHS England,30/04/2013,GPMS/APMS and PCTMS, Primary Care , BLACKFIELD HEALTH CENTRE ,178899," 203,494.60 ",SO000000379,
Department of Health,NHS England,30/04/2013,GPMS/APMS and PCTMS, Primary Care , BLACKFORD HOUSE MEDICAL CENTRE ,190413," 58,500.26 ",ROC000000080,
Department of Health,NHS England,30/04/2013,GPMS/APMS and PCTMS, Primary Care , BLACKFRIARS MEDICAL PRACTICE ,192286,"-39,965.00 ",LNS000000496,
Department of Health,NHS England,30/04/2013,GPMS/APMS and PCTMS, Primary Care , BLACKFRIARS MEDICAL PRACTICE ,147728," 36,022.54 ",LNS000000014,
Department of Health,NHS England,30/04/2013,GPMS/APMS and PCTMS, Primary Care , BLACKFRIARS MEDICAL PRACTICE ,192287," 48,186.01 ",LNS000000497,
Department of Health,NHS England,30/04/2013,GPMS/APMS and PCTMS, Primary Care , BLACKMORE HEALTH CENTRE SIDMOUTH ,210616," 132,046.75 ",DN000001136,
Department of Health,NHS England,30/04/2013,GPMS/APMS and PCTMS, Primary Care , BLACKMORE HEALTH CENTRE SIDMOUTH ,185620," 163,679.93 ",DN000000630,
Department of Health,NHS England,30/04/2013,Services from other NHS bodies, Specialised Commissioning , BLACKPOOL TEACHING HOSPITALS NHS FOUNDATION TRUST ,160374," 4,585,219.00 ",1110000011 ,
Department of Health,NHS England,30/04/2013,GPMS/APMS and PCTMS, Primary Care , BLACKTHORN HEALTH CENTRE ,178901," 104,208.89 ",SO000000381,
Department of Health,NHS England,30/04/2013,GPMS/APMS and PCTMS, Primary Care , BLACKTHORN MEDICAL CENTRE ,164833," 57,573.45 ",KC000000335,
Department of Health,NHS England,30/04/2013,GPMS/APMS and PCTMS, Primary Care , BLAKE HOUSE BLACK TORRINGTOM ,201217,"-27,560.32 ",DN000000944,
Department of Health,NHS England,30/04/2013,GPMS/APMS and PCTMS, Primary Care , BLAKE HOUSE BLACK TORRINGTOM ,201218," 60,945.29 ",DN000000945,
Department of Health,NHS England,30/04/2013,GPMS/APMS and PCTMS, Primary Care , BLAYDON GP LED HEALTH CENTRE ,146261," 86,000.01 ",GAT000000002,
Department of Health,NHS England,30/04/2013,GPMS/APMS and PCTMS, Primary Care , BLENHEIM MEDICAL CENTRE ,149402," 92,377.05 ",BD000000042,
Department of Health,NHS England,30/04/2013,GPMS/APMS and PCTMS, Primary Care , BLETCHINGTON ROAD SURGERY ,203148,"-51,897.91 ",OX000000261,
Department of Health,NHS England,30/04/2013,GPMS/APMS and PCTMS, Primary Care , BLETCHINGTON ROAD SURGERY ,198225," 69,132.99 ",OX000000120,
Department of Health,NHS England,30/04/2013,GPMS/APMS and PCTMS, Primary Care , BLETCHINGTON ROAD SURGERY ,203149," 99,715.92 ",OX000000262,
Department of Health,NHS England,30/04/2013,GPMS/APMS and PCTMS, Primary Care , BLITHEHALE MEDICAL CENTRE ,149068,"-71,743.97 ",LNA000000009,
Department of Health,NHS England,30/04/2013,GPMS/APMS and PCTMS, Primary Care , BLITHEHALE MEDICAL CENTRE ,150586," 134,276.50 ",LNA000000010,
Department of Health,NHS England,30/04/2013,GPMS/APMS and PCTMS, Primary Care , BLOOMFIELD MEDICAL CENTRE ,149901," 119,750.39 ",LA000000020,
Department of Health,NHS England,30/04/2013,GPMS/APMS and PCTMS, Primary Care , BLOOMSBURY HEALTH CENTRE ,176510," 40,534.90 ",BIR000000171,
Department of Health,NHS England,30/04/2013,GPMS/APMS and PCTMS, Primary Care , BLOOMSBURY SURGERY ,197713," 38,226.21 ",LND000000232,
Department of Health,NHS England,30/04/2013,Prescribing costs, Primary Care , BLUEBELL MEDICAL CENTRE ,194826," 1,611.74 ",SHE000000182,
Department of Health,NHS England,30/04/2013,GPMS/APMS and PCTMS, Primary Care , BLUEBELL MEDICAL CENTRE ,194826," 46,101.89 ",SHE000000182,
Department of Health,NHS England,30/04/2013,GPMS/APMS and PCTMS, Primary Care , BOAT HOUSE SURGERY ,203382,"-25,978.91 ",BE000000369,
Department of Health,NHS England,30/04/2013,GPMS/APMS and PCTMS, Primary Care , BOAT HOUSE SURGERY ,203383," 56,265.77 ",BE000000370,
Department of Health,NHS England,30/04/2013,GPMS/APMS and PCTMS, Primary Care , BOAT HOUSE SURGERY ,145807," 96,967.95 ",BE000000028,
Department of Health,NHS England,30/04/2013,GPMS/APMS and PCTMS, Primary Care , BOCKHAMPTON ROAD SURGERY ,203385," 48,801.09 ",BE000000372,
Department of Health,NHS England,30/04/2013,GPMS/APMS and PCTMS, Primary Care , BOCKHAMPTON ROAD SURGERY ,176571," 61,458.66 ",BE000000190,
Department of Health,NHS England,30/04/2013,GPMS/APMS and PCTMS, Primary Care , BOGNOR MEDICAL PRACTICE ,148272," 79,797.92 ",TW000000097,
Department of Health,NHS England,30/04/2013,GPMS/APMS and PCTMS, Primary Care , BOKAHRI AA ,151901,"-43,887.19 ",MAN000000003,
Department of Health,NHS England,30/04/2013,GPMS/APMS and PCTMS, Primary Care , BOKAHRI AA ,151902," 69,298.98 ",MAN000000004,
Department of Health,NHS England,30/04/2013,GPMS/APMS and PCTMS, Primary Care , BOLLINGTON MEDICAL CENTRE ,163350,"-79,218.69 ",CH000000121,
Department of Health,NHS England,30/04/2013,GPMS/APMS and PCTMS, Primary Care , BOLLINGTON MEDICAL CENTRE ,163351," 95,209.80 ",CH000000122,
Department of Health,NHS England,30/04/2013,GPMS/APMS and PCTMS, Primary Care , BOLTON COMMUNITY PRACTICE ,163973," 147,356.16 ",WIG000000148,
Department of Health,NHS England,30/04/2013,GPMS/APMS and PCTMS, Primary Care , BOND M D ,167660," 47,791.82 ",SOP000000078,
Department of Health,NHS England,30/04/2013,GPMS/APMS and PCTMS, Primary Care , BONDGATE SURGERY ,197287," 51,825.11 ",NR000000140,
Department of Health,NHS England,30/04/2013,GPMS/APMS and PCTMS, Primary Care , BONDGATE SURGERY ,147467," 92,786.43 ",NR000000010,
Department of Health,NHS England,30/04/2013,GPMS/APMS and PCTMS, Primary Care , BOOTH J T & PARTNERS ,200059," 51,308.29 ",EX000000494,
Department of Health,NHS England,30/04/2013,General Opthalmic services, Primary Care , BOOTS CO PLC ,171514," 25,145.35 ",3835959_S,
Department of Health,NHS England,30/04/2013,General Opthalmic services, Primary Care , BOOTS CO PLC ,142300," 25,669.52 ",3819307_S,
Department of Health,NHS England,30/04/2013,General Opthalmic services, Primary Care , BOOTS CO PLC ,167543," 28,195.74 ",3833956_S,
Department of Health,NHS England,30/04/2013,General Opthalmic services, Primary Care , BOOTS CO PLC ,172229," 28,468.75 ",3836444_S,
Department of Health,NHS England,30/04/2013,General Opthalmic services, Primary Care , BOOTS CO PLC ,143376," 29,757.55 ",3821388_S,
Department of Health,NHS England,30/04/2013,General Opthalmic services, Primary Care , BOOTS CO PLC ,145652," 32,941.44 ",3824282_S,
Department of Health,NHS England,30/04/2013,General Opthalmic services, Primary Care , BOOTS CO PLC ,212978," 36,932.47 ",3841195_S,
Department of Health,NHS England,30/04/2013,GPMS/APMS and PCTMS, Primary Care , BORDER PRACTICE ,142582,"-58,493.14 ",SO000000072,
Department of Health,NHS England,30/04/2013,GPMS/APMS and PCTMS, Primary Care , BORDER PRACTICE ,142583," 126,499.91 ",SO000000073,
Department of Health,NHS England,30/04/2013,GPMS/APMS and PCTMS, Primary Care , BOROUGH GREEN MEDICAL PRACTICE ,203931,"-53,775.00 ",KC000000822,
Department of Health,NHS England,30/04/2013,GPMS/APMS and PCTMS, Primary Care , BOROUGH GREEN MEDICAL PRACTICE ,164866," 109,602.11 ",KC000000339,
Department of Health,NHS England,30/04/2013,GPMS/APMS and PCTMS, Primary Care , BOROUGH GREEN MEDICAL PRACTICE ,203932," 133,922.10 ",KC000000823,
Department of Health,NHS England,30/04/2013,GPMS/APMS and PCTMS, Primary Care , BOROUGH ROAD & NUNTHORPE MEDICAL GROUP ,162717," 86,746.89 ",MID000000025,
Department of Health,NHS England,30/04/2013,GPMS/APMS and PCTMS, Primary Care , BORSTAL VILLAGE ,201103," 29,449.00 ",KC000000825,
Department of Health,NHS England,30/04/2013,GPMS/APMS and PCTMS, Primary Care , BOSCOMBE MANOR MEDICAL CENTRE ,178060," 29,579.51 ",DO000000327,
Department of Health,NHS England,30/04/2013,GPMS/APMS and PCTMS, Primary Care , BOSMERE MEDICAL PRACTICE ,142584,"-116,384.31 ",SO000000074,
Department of Health,NHS England,30/04/2013,GPMS/APMS and PCTMS, Primary Care , BOSMERE MEDICAL PRACTICE ,142585," 238,007.95 ",SO000000075,
Department of Health,NHS England,30/04/2013,GPMS/APMS and PCTMS, Primary Care , BOTLEY MEDICAL CENTRE ,198227," 70,706.30 ",OX000000122,
Department of Health,NHS England,30/04/2013,GPMS/APMS and PCTMS, Primary Care , BOTOLPH COMMUNITY HEALTH CENTRE ,149508," 97,648.89 ",CB000000062,
Department of Health,NHS England,30/04/2013,GPMS/APMS and PCTMS, Primary Care , BOUGHTON MEDICAL CENTRE ,203935," 38,170.81 ",KC000000827,
Department of Health,NHS England,30/04/2013,GPMS/APMS and PCTMS, Primary Care , BOUGHTON MEDICAL GROUP ,187081,"-61,578.65 ",CH000000415,
Department of Health,NHS England,30/04/2013,GPMS/APMS and PCTMS, Primary Care , BOUGHTON MEDICAL GROUP ,187082," 81,905.72 ",CH000000416,
Department of Health,NHS England,30/04/2013,GPMS/APMS and PCTMS, Primary Care , BOUNDARIES SURGERY ,178905," 30,239.03 ",SO000000385,
Department of Health,NHS England,30/04/2013,GPMS/APMS and PCTMS, Primary Care , BOUNDARY HOUSE SURGERY BRACKNELL ,176573," 63,332.80 ",BE000000192,
Department of Health,NHS England,30/04/2013,GPMS/APMS and PCTMS, Primary Care , BOUNDARY HOUSE SURGERY LONDON ,151555," 29,281.14 ",LNE000000012,
Department of Health,NHS England,30/04/2013,GPMS/APMS and PCTMS, Primary Care , BOUNDS GREEN GROUP PRACTICE ,151557," 105,938.53 ",LNE000000014,
Department of Health,NHS England,30/04/2013,GPMS/APMS and PCTMS, Primary Care , BOURKE M & PARTNERS ,186224," 77,451.96 ",SY000000366,
Department of Health,NHS England,30/04/2013,GPMS/APMS and PCTMS, Primary Care , BOUTPORT MEDICAL CENTRE ,185628," 80,694.65 ",DN000000638,
Department of Health,NHS England,30/04/2013,GPMS/APMS and PCTMS, Primary Care , BOVEY TRACEY & CHUDLEIGH PRACTICE ,210622," 118,772.68 ",DN000001143,
Department of Health,NHS England,30/04/2013,GPMS/APMS and PCTMS, Primary Care , BOVEY TRACEY & CHUDLEIGH PRACTICE ,185630," 125,966.95 ",DN000000640,
Department of Health,NHS England,30/04/2013,GPMS/APMS and PCTMS, Primary Care , BOW MEDICAL PRACTICE ,210623," 37,975.14 ",DN000001145,
Department of Health,NHS England,30/04/2013,GPMS/APMS and PCTMS, Primary Care , BOW MEDICAL PRACTICE ,201224," 49,640.45 ",DN000000951,
Department of Health,NHS England,30/04/2013,GPMS/APMS and PCTMS, Primary Care , BOWERS S & PARTNERS ,191694,"-43,697.12 ",LIP000000409,
Department of Health,NHS England,30/04/2013,GPMS/APMS and PCTMS, Primary Care , BOWERS S & PARTNERS ,154091," 34,426.22 ",LIP000000022,
Department of Health,NHS England,30/04/2013,GPMS/APMS and PCTMS, Primary Care , BOWERS S & PARTNERS ,191695," 53,906.84 ",LIP000000410,
Department of Health,NHS England,30/04/2013,GPMS/APMS and PCTMS, Primary Care , BOWLAND MEDICAL PRACTICE ,197778," 62,802.70 ",MAN000000131,
Department of Health,NHS England,30/04/2013,GPMS/APMS and PCTMS, Primary Care , BOWLEY C ,197780," 65,722.28 ",MAN000000133,
Department of Health,NHS England,30/04/2013,GPMS/APMS and PCTMS, Primary Care , BOWLING HALL MEDICAL PRACTICE ,148617,"-306,999.09 ",BRA000000005,
Department of Health,NHS England,30/04/2013,GPMS/APMS and PCTMS, Primary Care , BOWLING HALL MEDICAL PRACTICE ,148618," 545,422.23 ",BRA000000006,
Department of Health,NHS England,30/04/2013,GPMS/APMS and PCTMS, Primary Care , BOWTON P A & PARTNER ,204780," 45,119.26 ",EX000000786,
Department of Health,NHS England,30/04/2013,GPMS/APMS and PCTMS, Primary Care , BOWTON P A & PARTNER ,200061," 52,865.30 ",EX000000496,
Department of Health,NHS England,30/04/2013,GPMS/APMS and PCTMS, Primary Care , BOX SURGERY ,153873," 51,227.05 ",WL000000061,
Department of Health,NHS England,30/04/2013,GPMS/APMS and PCTMS, Primary Care , BOXWELL ROAD SURGERY ,199300," 48,872.67 ",HT000000204,
Department of Health,NHS England,30/04/2013,GPMS/APMS and PCTMS, Primary Care , BOYATT WOOD SURGERY ,178907," 33,804.97 ",SO000000387,
Department of Health,NHS England,30/04/2013,GPMS/APMS and PCTMS, Primary Care , BRACKLEY HEALTH CENTRE ,195123," 27,121.31 ",NO000000184,
Department of Health,NHS England,30/04/2013,GPMS/APMS and PCTMS, Primary Care , BRACONDALE MEDICAL CENTRE ,198632," 43,675.36 ",SPT000000046,
Department of Health,NHS England,30/04/2013,Services from other NHS bodies, Specialised Commissioning , BRADFORD DISTRICT CARE TRUST ,156874," 367,627.33 ",100071-10-APR-2013,
Department of Health,NHS England,30/04/2013,Services from other NHS bodies, Social Care , BRADFORD DISTRICT CARE TRUST ,156724," 409,293.00 ",182401 ,
Department of Health,NHS England,30/04/2013,Services from other NHS bodies, Social Care , BRADFORD DISTRICT CARE TRUST ,156723," 1,031,838.00 ",182400 ,
Department of Health,NHS England,30/04/2013,Services from other NHS bodies, Specialised Commissioning , BRADFORD TEACHING HOSPITALS NHS FOUNDATION TRUST ,156877," 3,046,785.17 ",100073-10-APR-2013,
Department of Health,NHS England,30/04/2013,Prescribing costs, Primary Care , BRADGATE SURGERY ,197470," 2,475.17 ",BRS000000283,
Department of Health,NHS England,30/04/2013,GPMS/APMS and PCTMS, Primary Care , BRADGATE SURGERY ,197470," 40,186.40 ",BRS000000283,
Department of Health,NHS England,30/04/2013,GPMS/APMS and PCTMS, Primary Care , BRADGATE SURGERY ,150601," 81,405.91 ",BRS000000046,
Department of Health,NHS England,30/04/2013,GPMS/APMS and PCTMS, Primary Care , BRADLEY & PARTNERS ,185749," 89,157.13 ",LNN000000165,
Department of Health,NHS England,30/04/2013,GPMS/APMS and PCTMS, Primary Care , BRADLEY GEDGE BARRON BARRON & PARTNERS ,145410," 90,052.95 ",DE000000064,
Department of Health,NHS England,30/04/2013,GPMS/APMS and PCTMS, Primary Care , BRADLEY STOKE SURGERY ,150599," 112,050.60 ",BRS000000044,
Department of Health,NHS England,30/04/2013,GPMS/APMS and PCTMS, Primary Care , BRADY & PARTNERS ,185747," 74,749.38 ",LNN000000163,
Department of Health,NHS England,30/04/2013,GPMS/APMS and PCTMS, Primary Care , BRAILSFORD & HULLAND MEDICAL PRACTICE ,196519,"-51,721.73 ",DE000000477,
Department of Health,NHS England,30/04/2013,GPMS/APMS and PCTMS, Primary Care , BRAILSFORD & HULLAND MEDICAL PRACTICE ,180182," 69,869.16 ",DE000000245,
Department of Health,NHS England,30/04/2013,GPMS/APMS and PCTMS, Primary Care , BRAILSFORD & HULLAND MEDICAL PRACTICE ,196520," 119,243.97 ",DE000000478,
Department of Health,NHS England,30/04/2013,GPMS/APMS and PCTMS, Primary Care , BRAINTREE DISTRICT COUNCIL ,174643," 352,197.15 ",100942-17-APR-2013,
Department of Health,NHS England,30/04/2013,General Opthalmic services, Primary Care , BRAINTREE SPECSAVERS ,143516," 29,508.43 ",3820195_S,
Department of Health,NHS England,30/04/2013,GPMS/APMS and PCTMS, Primary Care , BRAITHWAITE SURGERY ,163975," 42,093.95 ",WIG000000150,
Department of Health,NHS England,30/04/2013,Other professional fees, Primary Care , BRAMBLE.CC LTD ,166628," 47,379.91 ",2691 ,
Department of Health,NHS England,30/04/2013,GPMS/APMS and PCTMS, Primary Care , BRAMBLEHAIES SURGERY CULLOMPTON ,210618," 55,454.02 ",DN000001139,
Department of Health,NHS England,30/04/2013,GPMS/APMS and PCTMS, Primary Care , BRAMBLEHAIES SURGERY CULLOMPTON ,185624," 61,289.29 ",DN000000634,
Department of Health,NHS England,30/04/2013,GPMS/APMS and PCTMS, Primary Care , BRAMBLYS GRANGE MEDICAL PRACTICE ,178903," 96,285.92 ",SO000000383,
Department of Health,NHS England,30/04/2013,GPMS/APMS and PCTMS, Primary Care , BRAMHALL HEALTH CENTRE ,198630," 86,301.26 ",SPT000000044,
Department of Health,NHS England,30/04/2013,GPMS/APMS and PCTMS, Primary Care , BRAMHALL PARK MEDICAL CENTRE ,147494," 97,853.52 ",SPT000000010,
Department of Health,NHS England,30/04/2013,GPMS/APMS and PCTMS, Primary Care , BRAMPTON MEDICAL PRACTICE ,203285,"-91,444.56 ",CU000000262,
Department of Health,NHS England,30/04/2013,GPMS/APMS and PCTMS, Primary Care , BRAMPTON MEDICAL PRACTICE ,171666,"-28,975.85 ",CU000000104,
Department of Health,NHS England,30/04/2013,GPMS/APMS and PCTMS, Primary Care , BRAMPTON MEDICAL PRACTICE ,171667," 138,600.65 ",CU000000105,
Department of Health,NHS England,30/04/2013,GPMS/APMS and PCTMS, Primary Care , BRAMPTON MEDICAL PRACTICE ,203286," 201,438.31 ",CU000000263,
Department of Health,NHS England,30/04/2013,GPMS/APMS and PCTMS, Primary Care , BRANCH END SURGERY ,197289," 41,394.60 ",NR000000142,
Department of Health,NHS England,30/04/2013,GPMS/APMS and PCTMS, Primary Care , BRANCH END SURGERY ,147469," 42,552.18 ",NR000000012,
Department of Health,NHS England,30/04/2013,GPMS/APMS and PCTMS, Primary Care , BRANDON MEDICAL PRACTICE ,146028,"-54,404.42 ",SU000000048,
Department of Health,NHS England,30/04/2013,GPMS/APMS and PCTMS, Primary Care , BRANDON MEDICAL PRACTICE ,146029," 105,493.56 ",SU000000049,
Department of Health,NHS England,30/04/2013,GPMS/APMS and PCTMS, Primary Care , BRANKSOMEWOOD HEALTHCARE CENTRE ,142580,"-78,640.74 ",SO000000070,
Department of Health,NHS England,30/04/2013,GPMS/APMS and PCTMS, Primary Care , BRANKSOMEWOOD HEALTHCARE CENTRE ,142581," 165,966.48 ",SO000000071,
Department of Health,NHS England,30/04/2013,GPMS/APMS and PCTMS, Primary Care , BRANN & PARTNERS ,204778," 31,634.09 ",EX000000784,
Department of Health,NHS England,30/04/2013,GPMS/APMS and PCTMS, Primary Care , BRANN & PARTNERS ,147138," 125,077.42 ",EX000000042,
Department of Health,NHS England,30/04/2013,GPMS/APMS and PCTMS, Primary Care , BRANNAM MEDICAL CENTRE ,210620," 115,118.49 ",DN000001141,
Department of Health,NHS England,30/04/2013,GPMS/APMS and PCTMS, Primary Care , BRANNAM MEDICAL CENTRE ,185626," 145,330.93 ",DN000000636,
Department of Health,NHS England,30/04/2013,GPMS/APMS and PCTMS, Primary Care , BRANT ROAD SURGERY LINCOLN ,142813," 57,841.28 ",LL000000004,
Department of Health,NHS England,30/04/2013,GPMS/APMS and PCTMS, Primary Care , BREACH & PARTNERS ,190755,"-61,527.08 ",STL000000335,
Department of Health,NHS England,30/04/2013,GPMS/APMS and PCTMS, Primary Care , BREACH & PARTNERS ,152929," 48,726.40 ",STL000000012,
Department of Health,NHS England,30/04/2013,GPMS/APMS and PCTMS, Primary Care , BREACH & PARTNERS ,190756," 118,912.35 ",STL000000336,
Department of Health,NHS England,30/04/2013,GPMS/APMS and PCTMS, Primary Care , BREDBURY MEDICAL PRACTICE ,147496," 39,186.08 ",SPT000000012,
Department of Health,NHS England,30/04/2013,GPMS/APMS and PCTMS, Primary Care , BREEZE HILL NEIGHBOURHOOD HEALTH CENTRE ,206145," 61,290.09 ",LIP000000151,
Department of Health,NHS England,30/04/2013,GPMS/APMS and PCTMS, Primary Care , BREMNER & PARTNERS ,167066,"-53,975.05 ",LIP000000146,
Department of Health,NHS England,30/04/2013,GPMS/APMS and PCTMS, Primary Care , BREMNER & PARTNERS ,167067," 94,348.73 ",LIP000000147,
Department of Health,NHS England,30/04/2013,GPMS/APMS and PCTMS, Primary Care , BRENDON HILLS SURGERY TORRE WASHFORD ,197035," 41,163.31 ",SM000000126,
Department of Health,NHS England,30/04/2013,GPMS/APMS and PCTMS, Primary Care , BRENNAN & PARTNERS ,168106,"-79,309.48 ",BIK000000092,
Department of Health,NHS England,30/04/2013,GPMS/APMS and PCTMS, Primary Care , BRENNAN & PARTNERS ,168107," 142,391.17 ",BIK000000093,
Department of Health,NHS England,30/04/2013,GPMS/APMS and PCTMS, Primary Care , BRENT AREA MEDICAL CENTRE ANVIL HOUSE EAST BRENT ,197037," 62,811.25 ",SM000000128,
Department of Health,NHS England,30/04/2013,GPMS/APMS and PCTMS, Primary Care , BRENTWOOD BOROUGH COUNCIL ,170346," 131,291.25 ",100937-17-APR-2013,
Department of Health,NHS England,30/04/2013,GPMS/APMS and PCTMS, Primary Care , BRIARWOOD MEDICAL CENTRE ,149904," 49,304.59 ",LA000000022,
Department of Health,NHS England,30/04/2013,GPMS/APMS and PCTMS, Primary Care , BRIDGE COTTAGE SURGERY ,204865,"-34,746.00 ",HT000000431,
Department of Health,NHS England,30/04/2013,GPMS/APMS and PCTMS, Primary Care , BRIDGE COTTAGE SURGERY ,204866," 72,636.96 ",HT000000432,
Department of Health,NHS England,30/04/2013,GPMS/APMS and PCTMS, Primary Care , BRIDGE COTTAGE SURGERY ,199308," 125,571.64 ",HT000000212,
Department of Health,NHS England,30/04/2013,GPMS/APMS and PCTMS, Primary Care , BRIDGE HEALTH CENTRE ,204008," 16,676.33 ",KC000000923,
Department of Health,NHS England,30/04/2013,Prescribing costs, Primary Care , BRIDGE HEALTH CENTRE ,204008," 20,499.39 ",KC000000923,
Department of Health,NHS England,30/04/2013,GPMS/APMS and PCTMS, Primary Care , BRIDGE HEALTH CENTRE ,165141," 76,321.74 ",KC000000470,
Department of Health,NHS England,30/04/2013,GPMS/APMS and PCTMS, Primary Care , BRIDGE HOUSE MEDICAL CENTRE ,209099," 25,280.95 ",WA000000385,
Department of Health,NHS England,30/04/2013,GPMS/APMS and PCTMS, Primary Care , BRIDGE HOUSE MEDICAL CENTRE ,197984," 55,731.95 ",WA000000220,
Department of Health,NHS England,30/04/2013,GPMS/APMS and PCTMS, Primary Care , BRIDGE HOUSE SURGERY ,151559," 70,396.43 ",LNE000000016,
Department of Health,NHS England,30/04/2013,GPMS/APMS and PCTMS, Primary Care , BRIDGE LANE GROUP PRACTICE ,148952," 116,263.40 ",LNP000000041,
Department of Health,NHS England,30/04/2013,GPMS/APMS and PCTMS, Primary Care , BRIDGE MEDICAL CENTRE ,140448," 27,318.00 ",TW000000007,
Department of Health,NHS England,30/04/2013,GPMS/APMS and PCTMS, Primary Care , BRIDGE MEDICAL CENTRE ,175138," 70,378.53 ",TW000000448,
Department of Health,NHS England,30/04/2013,GPMS/APMS and PCTMS, Primary Care , BRIDGE STREET SURGERY ,192075,"-36,262.88 ",KHU000000171,
Department of Health,NHS England,30/04/2013,GPMS/APMS and PCTMS, Primary Care , BRIDGE STREET SURGERY ,192076," 113,007.19 ",KHU000000172,
Department of Health,NHS England,30/04/2013,GPMS/APMS and PCTMS, Primary Care , BRIDGEGATE MEDICAL CENTRE ,171673," 72,486.65 ",CU000000111,
Department of Health,NHS England,30/04/2013,GPMS/APMS and PCTMS, Primary Care , BRIDGEGATE SURGERY ,162859," 25,367.01 ",NN000000180,
Department of Health,NHS England,30/04/2013,GPMS/APMS and PCTMS, Primary Care , BRIDGEGATE SURGERY ,170539," 52,684.27 ",NN000000335,
Department of Health,NHS England,30/04/2013,GPMS/APMS and PCTMS, Primary Care , BRIDGEMARY MEDICAL CENTRE ,142590,"-60,387.41 ",SO000000080,
Department of Health,NHS England,30/04/2013,GPMS/APMS and PCTMS, Primary Care , BRIDGEMARY MEDICAL CENTRE ,142591," 115,519.63 ",SO000000081,
Department of Health,NHS England,30/04/2013,GPMS/APMS and PCTMS, Primary Care , BRIDGES MEDICAL CENTRE ,147271," 122,530.60 ",DO000000081,
Department of Health,NHS England,30/04/2013,GPMS/APMS and PCTMS, Primary Care , BRIDGES MEDICAL PRACTICE ,146262,"-42,107.97 ",GAT000000003,
Department of Health,NHS England,30/04/2013,GPMS/APMS and PCTMS, Primary Care , BRIDGES MEDICAL PRACTICE ,146263," 72,811.51 ",GAT000000004,
Department of Health,NHS England,30/04/2013,Services from other NHS bodies, Public Health , BRIDGEWATER COMMUNITY HEALTHCARE NHS TRUST ,202910,"-65,617.00 ",26278503 ,
Department of Health,NHS England,30/04/2013,Services from other NHS bodies, Public Health , BRIDGEWATER COMMUNITY HEALTHCARE NHS TRUST ,202869," 65,617.00 ",26278434 ,
Department of Health,NHS England,30/04/2013,Services from other NHS bodies, Secondary and Community Dental Care , BRIDGEWATER COMMUNITY HEALTHCARE NHS TRUST ,208311," 166,457.00 ",26278438 ,
Department of Health,NHS England,30/04/2013,Services from other NHS bodies, Public Health , BRIDGEWATER COMMUNITY HEALTHCARE NHS TRUST ,181305," 378,407.00 ",26278292 ,
Department of Health,NHS England,30/04/2013,Services from other NHS bodies, Public Health , BRIDGEWATER COMMUNITY HEALTHCARE NHS TRUST ,181341," 451,000.00 ",26278426 ,
Department of Health,NHS England,30/04/2013,GPMS/APMS and PCTMS, Primary Care , BRIDGEWATER FAMILY MEDICAL PRACTICE ,179384," 34,985.47 ",SA000000235,
Department of Health,NHS England,30/04/2013,GPMS/APMS and PCTMS, Primary Care , BRIDGNORTH MEDICAL PRACTICE ,179386," 107,142.03 ",SA000000237,
Department of Health,NHS England,30/04/2013,GPMS/APMS and PCTMS, Primary Care , BRIDPORT MEDICAL CENTRE ,144837," 157,001.63 ",DO000000083,
Department of Health,NHS England,30/04/2013,GPMS/APMS and PCTMS, Primary Care , BRIERFIELD P M S ,149908," 28,987.63 ",LA000000024,
Department of Health,NHS England,30/04/2013,Services from other NHS bodies, Secondary and Community Dental Care , BRIGHTON AND SUSSEX UNIVERSITY HOSPITALS NHS TRUST ,170263," 383,000.00 ",136050 ,
Department of Health,NHS England,30/04/2013,Services from other NHS bodies, Specialised Commissioning , BRIGHTON AND SUSSEX UNIVERSITY HOSPITALS NHS TRUST ,170263," 8,759,500.00 ",136050 ,
Department of Health,NHS England,30/04/2013,GPMS/APMS and PCTMS, Primary Care , BRINNINGTON HEALTH CENTRE BRINNINGTON ,147500," 38,512.34 ",SPT000000016,
Department of Health,NHS England,30/04/2013,GPMS/APMS and PCTMS, Primary Care , BRINNINGTON HEALTH CENTRE STOCKPORT ,147502," 37,115.39 ",SPT000000018,
Department of Health,NHS England,30/04/2013,Supplies and services � clinical, Health & Justice , BRISTOL COMMUNITY HEALTH CIC ,214600," 6,250.00 ",41261540 ,
Department of Health,NHS England,30/04/2013,Purchase of healthcare from non-NHS bodies, Public Health , BRISTOL COMMUNITY HEALTH CIC ,156948," 42,187.00 ",100199-11-APR-2013,
Department of Health,NHS England,30/04/2013,Purchase of healthcare from non-NHS bodies, Health & Justice , BRISTOL COMMUNITY HEALTH CIC ,214600," 129,637.60 ",41261540 ,
Department of Health,NHS England,30/04/2013,Purchase of healthcare from non-NHS bodies, Health & Justice , BRISTOL COMMUNITY HEALTH CIC ,170233," 135,887.60 ",41261411 ,
Department of Health,NHS England,30/04/2013,GPMS/APMS and PCTMS, Primary Care , BRIXTON HILL GROUP PRACTICE ,192292,"-60,827.38 ",LNS000000502,
Department of Health,NHS England,30/04/2013,GPMS/APMS and PCTMS, Primary Care , BRIXTON HILL GROUP PRACTICE ,147731," 60,642.01 ",LNS000000017,
Department of Health,NHS England,30/04/2013,GPMS/APMS and PCTMS, Primary Care , BRIXTON HILL GROUP PRACTICE ,192293," 88,431.87 ",LNS000000503,
Department of Health,NHS England,30/04/2013,GPMS/APMS and PCTMS, Primary Care , BROAD LANE SURGERY ,184232,"-36,000.00 ",COV000000188,
Department of Health,NHS England,30/04/2013,GPMS/APMS and PCTMS, Primary Care , BROAD LANE SURGERY ,148907," 36,000.00 ",COV000000002,
Department of Health,NHS England,30/04/2013,GPMS/APMS and PCTMS, Primary Care , BROAD LANE SURGERY ,186527," 40,483.94 ",COV000000189,
Department of Health,NHS England,30/04/2013,GPMS/APMS and PCTMS, Primary Care , BROADMAYNE SURGERY ,198124," 28,834.34 ",DO000000423,
Department of Health,NHS England,30/04/2013,GPMS/APMS and PCTMS, Primary Care , BROADMEAD MEDICAL CENTRE ,150603," 83,042.67 ",BRS000000048,
Department of Health,NHS England,30/04/2013,GPMS/APMS and PCTMS, Primary Care , BROADMEAD SURGERY ,190192,"-36,290.09 ",LNM000000005,
Department of Health,NHS England,30/04/2013,Prescribing costs, Primary Care , BROADMEAD SURGERY ,190193, 100.03 ,LNM000000006,
Department of Health,NHS England,30/04/2013,GPMS/APMS and PCTMS, Primary Care , BROADMEAD SURGERY ,190193," 69,908.22 ",LNM000000006,
Department of Health,NHS England,30/04/2013,GPMS/APMS and PCTMS, Primary Care , BROADSHIRES HEALTH CENTRE ,198231," 82,970.82 ",OX000000126,
Department of Health,NHS England,30/04/2013,GPMS/APMS and PCTMS, Primary Care , BROADWATER FARM ,151561," 33,085.40 ",LNE000000018,
Department of Health,NHS England,30/04/2013,GPMS/APMS and PCTMS, Primary Care , BROADWATER MEDICAL CENTRE ,140449," 30,169.41 ",TW000000008,
Department of Health,NHS England,30/04/2013,GPMS/APMS and PCTMS, Primary Care , BROADWATER MEDICAL CENTRE ,175140," 67,339.40 ",TW000000450,
Department of Health,NHS England,30/04/2013,GPMS/APMS and PCTMS, Primary Care , BROADWAY MEDICAL CENTRE ,195898," 79,472.32 ",LA000000201,
Department of Health,NHS England,30/04/2013,GPMS/APMS and PCTMS, Primary Care , BROADWAY PRACTICE ,164873," 37,037.00 ",KC000000346,
Department of Health,NHS England,30/04/2013,GPMS/APMS and PCTMS, Primary Care , BROADWAY SURGERY ,178597," 40,574.65 ",LNB000000085,
Department of Health,NHS England,30/04/2013,GPMS/APMS and PCTMS, Primary Care , BROCKHURST MEDICAL CENTRE ,177982," 36,982.07 ",SO000000399,
Department of Health,NHS England,30/04/2013,GPMS/APMS and PCTMS, Primary Care , BROCKLEY SURGERY ,192294,"-26,279.07 ",LNS000000504,
Department of Health,NHS England,30/04/2013,GPMS/APMS and PCTMS, Primary Care , BROCKLEY SURGERY ,192295," 30,567.54 ",LNS000000505,
Department of Health,NHS England,30/04/2013,GPMS/APMS and PCTMS, Primary Care , BROCKWELL MEDICAL GROUP ,147472,"-25,720.56 ",NR000000015,
Department of Health,NHS England,30/04/2013,GPMS/APMS and PCTMS, Primary Care , BROCKWELL MEDICAL GROUP ,147473," 113,752.88 ",NR000000016,
Department of Health,NHS England,30/04/2013,GPMS/APMS and PCTMS, Primary Care , BROCKWELL PARK ,192296,"-43,249.87 ",LNS000000506,
Department of Health,NHS England,30/04/2013,GPMS/APMS and PCTMS, Primary Care , BROCKWELL PARK ,147733," 35,621.92 ",LNS000000019,
Department of Health,NHS England,30/04/2013,GPMS/APMS and PCTMS, Primary Care , BROCKWELL PARK ,192297," 43,410.85 ",LNS000000507,
Department of Health,NHS England,30/04/2013,GPMS/APMS and PCTMS, Primary Care , BROCKWOOD MEDICAL PRACTICE ,180055,"-65,543.34 ",SY000000239,
Department of Health,NHS England,30/04/2013,GPMS/APMS and PCTMS, Primary Care , BROCKWOOD MEDICAL PRACTICE ,149755," 104,366.83 ",SY000000011,
Department of Health,NHS England,30/04/2013,GPMS/APMS and PCTMS, Primary Care , BROCKWOOD MEDICAL PRACTICE ,180056," 136,181.48 ",SY000000240,
Department of Health,NHS England,30/04/2013,GPMS/APMS and PCTMS, Primary Care , BRODBIN & PARTNERS ,192377,"-34,527.21 ",BIK000000256,
Department of Health,NHS England,30/04/2013,GPMS/APMS and PCTMS, Primary Care , BRODBIN & PARTNERS ,153813," 32,094.51 ",BIK000000008,
Department of Health,NHS England,30/04/2013,GPMS/APMS and PCTMS, Primary Care , BRODBIN & PARTNERS ,192378," 43,207.58 ",BIK000000257,
Department of Health,NHS England,30/04/2013,GPMS/APMS and PCTMS, Primary Care , BROKEN CROSS SURGERY ,163356,"-31,330.68 ",CH000000127,
Department of Health,NHS England,30/04/2013,GPMS/APMS and PCTMS, Primary Care , BROKEN CROSS SURGERY ,163357," 40,151.62 ",CH000000128,
Department of Health,NHS England,30/04/2013,GPMS/APMS and PCTMS, Primary Care , BROMLEY COMMON PRACTICE ,164748," 54,011.68 ",LNT000000013,
Department of Health,NHS England,30/04/2013,Purchase of healthcare from non-NHS bodies, Secondary and Community Dental Care , BROMLEY HEALTHCARE CIC LTD ,170259," 96,583.00 ",EM001,
Department of Health,NHS England,30/04/2013,GPMS/APMS and PCTMS, Primary Care , BRONDESBURY MEDICAL CENTRE ,151678,"-31,654.29 ",LND000000005,
Department of Health,NHS England,30/04/2013,GPMS/APMS and PCTMS, Primary Care , BRONDESBURY MEDICAL CENTRE ,177256," 30,226.21 ",LND000000133,
Department of Health,NHS England,30/04/2013,GPMS/APMS and PCTMS, Primary Care , BRONDESBURY MEDICAL CENTRE ,151679," 143,047.04 ",LND000000006,
Department of Health,NHS England,30/04/2013,Prescribing costs, Primary Care , BROOK GREEN MEDICAL CENTRE ,190195," 1,122.81 ",LNM000000008,
Department of Health,NHS England,30/04/2013,GPMS/APMS and PCTMS, Primary Care , BROOK GREEN MEDICAL CENTRE ,190195," 166,643.99 ",LNM000000008,
Department of Health,NHS England,30/04/2013,GPMS/APMS and PCTMS, Primary Care , BROOK HEALTH CENTRE ,204247,"-27,062.86 ",NO000000263,
Department of Health,NHS England,30/04/2013,GPMS/APMS and PCTMS, Primary Care , BROOK HEALTH CENTRE ,204248," 66,517.75 ",NO000000264,
Department of Health,NHS England,30/04/2013,GPMS/APMS and PCTMS, Primary Care , BROOK HEALTH CENTRE ,151886," 93,889.61 ",NO000000045,
Department of Health,NHS England,30/04/2013,GPMS/APMS and PCTMS, Primary Care , BROOK HOUSE SURGERY ,178917," 53,006.00 ",SO000000401,
Department of Health,NHS England,30/04/2013,GPMS/APMS and PCTMS, Primary Care , BROOK LANE SURGERY ,177991," 92,825.91 ",SO000000403,
Department of Health,NHS England,30/04/2013,GPMS/APMS and PCTMS, Primary Care , BROOK MEDICAL CENTRE ,195127," 36,626.68 ",NO000000188,
Department of Health,NHS England,30/04/2013,GPMS/APMS and PCTMS, Primary Care , BROOKE ROAD SURGERY ,179081," 29,328.79 ",LNA000000140,
Department of Health,NHS England,30/04/2013,GPMS/APMS and PCTMS, Primary Care , BROOKE SURGERY ,198132,"-91,813.33 ",GMK000000137,
Department of Health,NHS England,30/04/2013,Prescribing costs, Primary Care , BROOKE SURGERY ,198133," 3,489.62 ",GMK000000138,
Department of Health,NHS England,30/04/2013,GPMS/APMS and PCTMS, Primary Care , BROOKE SURGERY ,140694," 70,000.00 ",GMK000000003,
Department of Health,NHS England,30/04/2013,GPMS/APMS and PCTMS, Primary Care , BROOKE SURGERY ,198133," 88,579.58 ",GMK000000138,
Department of Health,NHS England,30/04/2013,GPMS/APMS and PCTMS, Primary Care , BROOKES & LEE ,167068,"-42,404.97 ",LIP000000148,
Department of Health,NHS England,30/04/2013,GPMS/APMS and PCTMS, Primary Care , BROOKES & LEE ,167069," 77,003.58 ",LIP000000149,
Department of Health,NHS England,30/04/2013,GPMS/APMS and PCTMS, Primary Care , BROOKFIELD SURGERY ,187083,"-43,111.18 ",CH000000417,
Department of Health,NHS England,30/04/2013,GPMS/APMS and PCTMS, Primary Care , BROOKFIELD SURGERY ,187084," 62,330.82 ",CH000000418,
Department of Health,NHS England,30/04/2013,GPMS/APMS and PCTMS, Primary Care , BROOKHOUSE MEDICAL CENTRE ,195900," 41,170.19 ",LA000000203,
Department of Health,NHS England,30/04/2013,GPMS/APMS and PCTMS, Primary Care , BROOKSIDE GROUP PRACTICE ,176577,"-40,076.73 ",BE000000196,
Department of Health,NHS England,30/04/2013,GPMS/APMS and PCTMS, Primary Care , BROOKSIDE GROUP PRACTICE ,176578," 245,384.34 ",BE000000197,
Department of Health,NHS England,30/04/2013,GPMS/APMS and PCTMS, Primary Care , BROOKSIDE HEALTH CENTRE ,178919," 99,242.78 ",SO000000405,
Department of Health,NHS England,30/04/2013,GPMS/APMS and PCTMS, Primary Care , BROOKSIDE SURGERY ,209100,"-26,616.27 ",WA000000386,
Department of Health,NHS England,30/04/2013,GPMS/APMS and PCTMS, Primary Care , BROOKSIDE SURGERY ,209101," 65,640.01 ",WA000000387,
Department of Health,NHS England,30/04/2013,GPMS/APMS and PCTMS, Primary Care , BROOM LEYS SURGERY ,140551," 75,246.16 ",LD000000040,
Department of Health,NHS England,30/04/2013,Prescribing costs, Primary Care , BROOMHILL SURGERY ,194832," 2,589.53 ",SHE000000188,
Department of Health,NHS England,30/04/2013,GPMS/APMS and PCTMS, Primary Care , BROOMHILL SURGERY ,194832," 62,086.63 ",SHE000000188,
Department of Health,NHS England,30/04/2013,GPMS/APMS and PCTMS, Primary Care , BROOMWOOD ROAD SURGERY ,164750," 78,840.58 ",LNT000000015,
Department of Health,NHS England,30/04/2013,GPMS/APMS and PCTMS, Primary Care , BROSELEY MEDICAL PRACTICE ,179388," 34,643.72 ",SA000000239,
Department of Health,NHS England,30/04/2013,GPMS/APMS and PCTMS, Primary Care , BROUGHTON HOUSE SURGERY ,167966," 34,046.52 ",BU000000091,
Department of Health,NHS England,30/04/2013,GPMS/APMS and PCTMS, Primary Care , BROW MEDICAL CENTRE ,175142," 43,502.67 ",TW000000452,
Department of Health,NHS England,30/04/2013,GPMS/APMS and PCTMS, Primary Care , BROWN B J & PARTNERS ,147144," 41,099.76 ",EX000000048,
Department of Health,NHS England,30/04/2013,GPMS/APMS and PCTMS, Primary Care , BROWN CLEE MEDICAL PRACTICE ,179390," 27,765.13 ",SA000000241,
Department of Health,NHS England,30/04/2013,GPMS/APMS and PCTMS, Primary Care , BROWNHILL SURGERY ,178921," 53,681.83 ",SO000000407,
Department of Health,NHS England,30/04/2013,GPMS/APMS and PCTMS, Primary Care , BROXBOURNE BOROUGH COUNCIL ,156903," 32,263.50 ",100079-10-APR-2013,
Department of Health,NHS England,30/04/2013,GPMS/APMS and PCTMS, Primary Care , BROXBOURNE BOROUGH COUNCIL ,156900," 42,861.00 ",100091-10-APR-2013,
Department of Health,NHS England,30/04/2013,GPMS/APMS and PCTMS, Primary Care , BROXBOURNE BOROUGH COUNCIL ,181482," 42,861.00 ",101259-19-APR-2013,
Department of Health,NHS England,30/04/2013,GPMS/APMS and PCTMS, Primary Care , BROXBOURNE BOROUGH COUNCIL ,156890," 48,513.00 ",100083-10-APR-2013,
Department of Health,NHS England,30/04/2013,GPMS/APMS and PCTMS, Primary Care , BROXBOURNE BOROUGH COUNCIL ,166633," 50,868.00 ",100093-10-APR-2013,
Department of Health,NHS England,30/04/2013,GPMS/APMS and PCTMS, Primary Care , BROXBOURNE BOROUGH COUNCIL ,166634," 62,643.00 ",100082-10-APR-2013,
Department of Health,NHS England,30/04/2013,GPMS/APMS and PCTMS, Primary Care , BRUNE MEDICAL CENTRE ,177993," 90,080.23 ",SO000000409,
Department of Health,NHS England,30/04/2013,GPMS/APMS and PCTMS, Primary Care , BRUNEL MEDICAL PRACTICE BABBACOMBE TORQUAY ,185644," 94,065.83 ",DN000000654,
Department of Health,NHS England,30/04/2013,GPMS/APMS and PCTMS, Primary Care , BRUNEL MEDICAL PRACTICE BABBACOMBE TORQUAY ,210630," 132,360.53 ",DN000001155,
Department of Health,NHS England,30/04/2013,GPMS/APMS and PCTMS, Primary Care , BRUNSWICK HOUSE MEDICAL GROUP ,171675," 130,207.83 ",CU000000113,
Department of Health,NHS England,30/04/2013,GPMS/APMS and PCTMS, Primary Care , BRUNSWICK MEDICAL CENTRE UHPC ,151680," 68,272.80 ",LND000000007,
Department of Health,NHS England,30/04/2013,GPMS/APMS and PCTMS, Primary Care , BRYANT STREET ,164877," 49,902.05 ",KC000000350,
Department of Health,NHS England,30/04/2013,Establishment, NHS England Running Costs , BT GLOBAL SERVICES ,189653,"-112,645.51 ",790090347 ,
Department of Health,NHS England,30/04/2013,Establishment, NHS England Running Costs , BT GLOBAL SERVICES ,189726," 27,365.71 ",790090719 ,
Department of Health,NHS England,30/04/2013,Establishment, NHS England Running Costs , BT GLOBAL SERVICES ,189773," 38,416.22 ",790090846 ,
Department of Health,NHS England,30/04/2013,Establishment, NHS England Running Costs , BT GLOBAL SERVICES ,170292," 52,133.87 ",790090805 ,
Department of Health,NHS England,30/04/2013,Establishment, NHS England Running Costs , BT GLOBAL SERVICES ,170270," 110,967.19 ",790090667 ,
Department of Health,NHS England,30/04/2013,Establishment, NHS England Running Costs , BT GLOBAL SERVICES ,202756," 112,645.51 ",790089207 ,
Department of Health,NHS England,30/04/2013,Establishment, NHS England Running Costs , BT GLOBAL SERVICES ,202751," 122,444.24 ",790089144 ,
Department of Health,NHS England,30/04/2013,Establishment, NHS England Running Costs , BT GLOBAL SERVICES ,156603," 141,995.53 ",790089103 ,
Department of Health,NHS England,30/04/2013,Establishment, NHS England Running Costs , BT GLOBAL SERVICES ,202761," 146,901.86 ",790090195 ,
Department of Health,NHS England,30/04/2013,Establishment, NHS England Running Costs , BT PLC ,202766," 112,645.51 ",790090251 ,
Department of Health,NHS England,30/04/2013,Prescribing costs, Primary Care , BUCHANAN ROAD SURGERY ,194828, 251.40 ,SHE000000184,
Department of Health,NHS England,30/04/2013,GPMS/APMS and PCTMS, Primary Care , BUCHANAN ROAD SURGERY ,194828," 47,219.74 ",SHE000000184,
Department of Health,NHS England,30/04/2013,GPMS/APMS and PCTMS, Primary Care , BUCKFASTLEIGH MEDICAL CENTRE ,185634," 78,686.90 ",DN000000644,
Department of Health,NHS England,30/04/2013,Services from other NHS bodies, Public Health , BUCKINGHAMSHIRE HEALTHCARE NHS TRUST ,160443," 161,011.00 ",100216-11-APR-2013,
Department of Health,NHS England,30/04/2013,Services from other NHS bodies, Primary Care , BUCKINGHAMSHIRE HEALTHCARE NHS TRUST ,160443," 994,923.00 ",100216-11-APR-2013,
Department of Health,NHS England,30/04/2013,Services from other NHS bodies, Specialised Commissioning , BUCKINGHAMSHIRE HEALTHCARE NHS TRUST ,160534," 3,801,120.47 ",100278-11-APR-2013,
Department of Health,NHS England,30/04/2013,GPMS/APMS and PCTMS, Primary Care , BUCKLAND SURGERY ,185636," 27,315.12 ",DN000000646,
Department of Health,NHS England,30/04/2013,GPMS/APMS and PCTMS, Primary Care , BUDBROOKE MEDICAL CENTRE ,209095,"-27,894.87 ",WA000000381,
Department of Health,NHS England,30/04/2013,GPMS/APMS and PCTMS, Primary Care , BUDBROOKE MEDICAL CENTRE ,197980," 30,090.16 ",WA000000216,
Department of Health,NHS England,30/04/2013,GPMS/APMS and PCTMS, Primary Care , BUDBROOKE MEDICAL CENTRE ,209096," 56,228.96 ",WA000000382,
Department of Health,NHS England,30/04/2013,GPMS/APMS and PCTMS, Primary Care , BUDLEIGH SALTERTON MEDICAL CENTRE ,210626," 76,353.97 ",DN000001149,
Department of Health,NHS England,30/04/2013,GPMS/APMS and PCTMS, Primary Care , BUDLEIGH SALTERTON MEDICAL CENTRE ,185638," 84,344.13 ",DN000000648,
Department of Health,NHS England,30/04/2013,GPMS/APMS and PCTMS, Primary Care , BUDSHEAD MEDICAL PRACTICE TAMAR LCG ,185640," 29,048.42 ",DN000000650,
Department of Health,NHS England,30/04/2013,GPMS/APMS and PCTMS, Primary Care , BUDSHEAD MEDICAL PRACTICE TAMAR LCG ,210627," 54,031.39 ",DN000001151,
Department of Health,NHS England,30/04/2013,GPMS/APMS and PCTMS, Primary Care , BUGBROOKE MEDICAL PRACTICE ,204242,"-32,890.05 ",NO000000258,
Department of Health,NHS England,30/04/2013,GPMS/APMS and PCTMS, Primary Care , BUGBROOKE MEDICAL PRACTICE ,204243," 75,381.59 ",NO000000259,
Department of Health,NHS England,30/04/2013,GPMS/APMS and PCTMS, Primary Care , BUGBROOKE MEDICAL PRACTICE ,151881," 107,967.01 ",NO000000040,
Department of Health,NHS England,30/04/2013,GPMS/APMS and PCTMS, Primary Care , BULBANKS MEDICAL CENTRE ,151421," 61,757.78 ",LNW000000023,
Department of Health,NHS England,30/04/2013,GPMS/APMS and PCTMS, Primary Care , BULL BELFITT & GUPTA ,180184," 27,343.47 ",DE000000247,
Department of Health,NHS England,30/04/2013,GPMS/APMS and PCTMS, Primary Care , BUNBURY MEDICAL PRACTICE ,163354,"-54,677.26 ",CH000000125,
Department of Health,NHS England,30/04/2013,GPMS/APMS and PCTMS, Primary Care , BUNBURY MEDICAL PRACTICE ,163355," 72,647.35 ",CH000000126,
Department of Health,NHS England,30/04/2013,GPMS/APMS and PCTMS, Primary Care , BUNTINGFORD MEDICAL CENTRE ,199302," 46,653.70 ",HT000000206,
Department of Health,NHS England,30/04/2013,GPMS/APMS and PCTMS, Primary Care , BURDWOOD SURGERY ,145813," 83,429.20 ",BE000000034,
Department of Health,NHS England,30/04/2013,GPMS/APMS and PCTMS, Primary Care , BURGESS H ,151904," 95,025.08 ",MAN000000006,
Department of Health,NHS England,30/04/2013,GPMS/APMS and PCTMS, Primary Care , BURGESS ROAD SURGERY ,142586,"-82,980.81 ",SO000000076,
Department of Health,NHS England,30/04/2013,GPMS/APMS and PCTMS, Primary Care , BURGESS ROAD SURGERY ,142587," 170,624.94 ",SO000000077,
Department of Health,NHS England,30/04/2013,GPMS/APMS and PCTMS, Primary Care , BURMA HILLS SURGERY ,176576," 30,719.29 ",BE000000195,
Department of Health,NHS England,30/04/2013,GPMS/APMS and PCTMS, Primary Care , BURN BRAE MEDICAL GROUP ,147471," 65,638.29 ",NR000000014,
Department of Health,NHS England,30/04/2013,GPMS/APMS and PCTMS, Primary Care , BURNCROSS SURGERY ,146509," 143,103.67 ",SHE000000087,
Department of Health,NHS England,30/04/2013,GPMS/APMS and PCTMS, Primary Care , BURNGREAVE SURGERY ,146511," 66,586.68 ",SHE000000089,
Department of Health,NHS England,30/04/2013,GPMS/APMS and PCTMS, Primary Care , BURNHAM HEALTH CENTRE ,167962," 141,937.10 ",BU000000087,
Department of Health,NHS England,30/04/2013,Prescribing costs, Primary Care , BURNHAM MEDICAL CENTRE ,197041," 6,160.92 ",SM000000132,
Department of Health,NHS England,30/04/2013,GPMS/APMS and PCTMS, Primary Care , BURNHAM MEDICAL CENTRE ,197041," 149,568.73 ",SM000000132,
Department of Health,NHS England,30/04/2013,GPMS/APMS and PCTMS, Primary Care , BURNLEY WOOD MEDICAL CENTRE ,195892," 42,209.35 ",LA000000195,
Department of Health,NHS England,30/04/2013,GPMS/APMS and PCTMS, Primary Care , BURNS A & PARTNERS ,186226," 84,636.00 ",SY000000368,
Department of Health,NHS England,30/04/2013,GPMS/APMS and PCTMS, Primary Care , BURNTWOOD HEALTH & WELLBEING CENTRE ,147479," 63,143.90 ",ST000000024,
Department of Health,NHS England,30/04/2013,GPMS/APMS and PCTMS, Primary Care , BURRELL & PARTNERS ,146643,"-106,353.81 ",DR000000013,
Department of Health,NHS England,30/04/2013,GPMS/APMS and PCTMS, Primary Care , BURRELL & PARTNERS ,146644," 201,995.00 ",DR000000014,
Department of Health,NHS England,30/04/2013,GPMS/APMS and PCTMS, Primary Care , BURTON & BRANSGORE MEDICAL CENTRES ,144836," 71,997.58 ",DO000000077,
Department of Health,NHS England,30/04/2013,Services from other NHS bodies, Specialised Commissioning , BURTON HOSPITALS NHS FOUNDATION TRUST ,156662," 708,333.00 ",IN0012895941,
Department of Health,NHS England,30/04/2013,GPMS/APMS and PCTMS, Primary Care , BURTON LATIMER HEALTH CENTRE ,151883," 100,723.06 ",NO000000042,
Department of Health,NHS England,30/04/2013,GPMS/APMS and PCTMS, Primary Care , BURVILL HOUSE SURGERY ,147218," 86,674.90 ",HT000000062,
Department of Health,NHS England,30/04/2013,GPMS/APMS and PCTMS, Primary Care , BURWELL SURGERY ,175066," 79,699.82 ",CB000000377,
Department of Health,NHS England,30/04/2013,GPMS/APMS and PCTMS, Primary Care , BURY KNOWLE HEALTH CENTRE ,150342," 116,653.78 ",OX000000014,
Department of Health,NHS England,30/04/2013,GPMS/APMS and PCTMS, Primary Care , BURY ROAD SURGERY ,177967," 32,888.62 ",SO000000395,
Department of Health,NHS England,30/04/2013,GPMS/APMS and PCTMS, Primary Care , BUSH & PARTNERS ,168108,"-113,917.71 ",BIK000000094,
Department of Health,NHS England,30/04/2013,GPMS/APMS and PCTMS, Primary Care , BUSH & PARTNERS ,168109," 186,129.03 ",BIK000000095,
Department of Health,NHS England,30/04/2013,GPMS/APMS and PCTMS, Primary Care , BUSHFIELD HEALTH CENTRE ,175068," 42,495.59 ",CB000000379,
Department of Health,NHS England,30/04/2013,GPMS/APMS and PCTMS, Primary Care , BUTCHERY SURGERY ,164871," 33,045.64 ",KC000000344,
Department of Health,NHS England,30/04/2013,GPMS/APMS and PCTMS, Primary Care , BUTE HOUSE MEDICAL PRACTICE ,196857," 65,032.20 ",BD000000189,
Department of Health,NHS England,30/04/2013,GPMS/APMS and PCTMS, Primary Care , BUTE HOUSE SURGERY ,198120," 33,836.29 ",DO000000419,
Department of Health,NHS England,30/04/2013,GPMS/APMS and PCTMS, Primary Care , BUTE HOUSE SURGERY ,147269," 47,088.91 ",DO000000079,
Department of Health,NHS England,30/04/2013,GPMS/APMS and PCTMS, Primary Care , BUTLER S & PARTNERS ,147142," 101,429.03 ",EX000000046,
Department of Health,NHS England,30/04/2013,GPMS/APMS and PCTMS, Primary Care , BUXTED SURGERY ,180528,"-90,559.68 ",TE000000492,
Department of Health,NHS England,30/04/2013,GPMS/APMS and PCTMS, Primary Care , BUXTED SURGERY ,177150," 106,302.50 ",TE000000281,
Department of Health,NHS England,30/04/2013,GPMS/APMS and PCTMS, Primary Care , BUXTED SURGERY ,180529," 179,869.57 ",TE000000493,
Department of Health,NHS England,30/04/2013,GPMS/APMS and PCTMS, Primary Care , BYFIELD MEDICAL CENTRE ,204245,"-40,733.70 ",NO000000261,
Department of Health,NHS England,30/04/2013,GPMS/APMS and PCTMS, Primary Care , BYFIELD MEDICAL CENTRE ,195125," 44,662.78 ",NO000000186,
Department of Health,NHS England,30/04/2013,GPMS/APMS and PCTMS, Primary Care , BYFIELD MEDICAL CENTRE ,204246," 84,125.78 ",NO000000262,
Department of Health,NHS England,30/04/2013,GPMS/APMS and PCTMS, Primary Care , BYRNE & PARTNERS ,191696,"-36,187.55 ",LIP000000411,
Department of Health,NHS England,30/04/2013,GPMS/APMS and PCTMS, Primary Care , BYRNE & PARTNERS ,191697," 29,281.43 ",LIP000000412,
Department of Health,NHS England,30/04/2013,GPMS/APMS and PCTMS, Primary Care , C J D PEACH ,148942," 103,317.66 ",LNP000000031,
Department of Health,NHS England,30/04/2013,GPMS/APMS and PCTMS, Primary Care , C J ELLIOTT ,148944," 97,272.62 ",LNP000000033,
Department of Health,NHS England,30/04/2013,GPMS/APMS and PCTMS, Primary Care , C M KROLL ,148946," 104,866.36 ",LNP000000035,
Department of Health,NHS England,30/04/2013,GPMS/APMS and PCTMS, Primary Care , C PERERA ,148948," 43,686.82 ",LNP000000037,
Department of Health,NHS England,30/04/2013,GPMS/APMS and PCTMS, Primary Care , C RIBEIRO ,148949,"-35,466.17 ",LNP000000038,
Department of Health,NHS England,30/04/2013,GPMS/APMS and PCTMS, Primary Care , C RIBEIRO ,148950," 80,432.55 ",LNP000000039,
Department of Health,NHS England,30/04/2013,GPMS/APMS and PCTMS, Primary Care , C TRAN ,144876,"-44,672.01 ",LNC000000005,
Department of Health,NHS England,30/04/2013,GPMS/APMS and PCTMS, Primary Care , C TRAN ,144877," 71,582.65 ",LNC000000006,
Department of Health,NHS England,30/04/2013,Prescribing costs, Primary Care , CA STEDALL ,191008, 141.06 ,WAL000000054,
Department of Health,NHS England,30/04/2013,GPMS/APMS and PCTMS, Primary Care , CA STEDALL ,191008," 39,834.18 ",WAL000000054,
Department of Health,NHS England,30/04/2013,GPMS/APMS and PCTMS, Primary Care , CABIN SURGERY ,195896," 32,952.43 ",LA000000199,
Department of Health,NHS England,30/04/2013,GPMS/APMS and PCTMS, Primary Care , CADDINGTON MEDICAL PRACTICE ,196859," 39,978.20 ",BD000000191,
Department of Health,NHS England,30/04/2013,GPMS/APMS and PCTMS, Primary Care , CAEN MEDICAL CENTRE ,210629," 103,792.12 ",DN000001153,
Department of Health,NHS England,30/04/2013,GPMS/APMS and PCTMS, Primary Care , CAEN MEDICAL CENTRE ,185642," 108,335.44 ",DN000000652,
Department of Health,NHS England,30/04/2013,GPMS/APMS and PCTMS, Primary Care , CALCOT MEDICAL CENTRE ,167964," 55,351.63 ",BU000000089,
Department of Health,NHS England,30/04/2013,GPMS/APMS and PCTMS, Primary Care , CALDBECK SURGERY ,203288,"-38,440.60 ",CU000000265,
Department of Health,NHS England,30/04/2013,GPMS/APMS and PCTMS, Primary Care , CALDBECK SURGERY ,171671," 46,938.41 ",CU000000109,
Department of Health,NHS England,30/04/2013,GPMS/APMS and PCTMS, Primary Care , CALDBECK SURGERY ,203289," 83,857.25 ",CU000000266,
Department of Health,NHS England,30/04/2013,Internal audit services, NHS England Running Costs , CALDERDALE & HUDDERSFIELD NHS FOUNDATION TRUST ,151343," 45,394.00 ",4710004984 ,
Department of Health,NHS England,30/04/2013,Services from other NHS bodies, Social Care , CALDERDALE & HUDDERSFIELD NHS FOUNDATION TRUST ,156676," 740,869.00 ",4710006322 ,
Department of Health,NHS England,30/04/2013,Services from other NHS bodies, Social Care , CALDERDALE & HUDDERSFIELD NHS FOUNDATION TRUST ,208241," 740,869.00 ",4710006779 ,
Department of Health,NHS England,30/04/2013,Services from other NHS bodies, Specialised Commissioning , CALDERDALE & HUDDERSFIELD NHS FOUNDATION TRUST ,156689," 1,452,201.00 ",4710006321 ,
Department of Health,NHS England,30/04/2013,GPMS/APMS and PCTMS, Primary Care , Calderdale MBC ,166733," 26,140.50 ",100757-15-APR-2013,
Department of Health,NHS England,30/04/2013,Services from other NHS bodies, Specialised Commissioning , CALDERSTONES PARTNERSHIP NHS FOUNDATION TRUST ,160383," 2,336,636.00 ",M0009369,
Department of Health,NHS England,30/04/2013,GPMS/APMS and PCTMS, Primary Care , CALLAGHAN JM & PARTNERS ,191698,"-67,020.77 ",LIP000000413,
Department of Health,NHS England,30/04/2013,GPMS/APMS and PCTMS, Primary Care , CALLAGHAN JM & PARTNERS ,154095," 51,185.83 ",LIP000000026,
Department of Health,NHS England,30/04/2013,GPMS/APMS and PCTMS, Primary Care , CALLAGHAN JM & PARTNERS ,191699," 61,889.45 ",LIP000000414,
Department of Health,NHS England,30/04/2013,GPMS/APMS and PCTMS, Primary Care , CALLOWLAND SURGERY ,199306," 86,610.43 ",HT000000210,
Department of Health,NHS England,30/04/2013,GPMS/APMS and PCTMS, Primary Care , CAMBERWELL GREEN SURGERY ,192290,"-82,993.85 ",LNS000000500,
Department of Health,NHS England,30/04/2013,GPMS/APMS and PCTMS, Primary Care , CAMBERWELL GREEN SURGERY ,147730," 68,319.39 ",LNS000000016,
Department of Health,NHS England,30/04/2013,GPMS/APMS and PCTMS, Primary Care , CAMBERWELL GREEN SURGERY ,192291," 85,269.22 ",LNS000000501,
Department of Health,NHS England,30/04/2013,GPMS/APMS and PCTMS, Primary Care , CAMBRIDGE AVENUE MEDICAL CENTRE ,192073,"-28,415.83 ",KHU000000169,
Department of Health,NHS England,30/04/2013,GPMS/APMS and PCTMS, Primary Care , CAMBRIDGE AVENUE MEDICAL CENTRE ,192074," 149,822.41 ",KHU000000170,
Department of Health,NHS England,30/04/2013,GPMS/APMS and PCTMS, Primary Care , CAMBRIDGE MEDICAL GROUP ,162719," 51,914.26 ",MID000000027,
Department of Health,NHS England,30/04/2013,Services from other NHS bodies, Specialised Commissioning , CAMBRIDGE UNIVERSITY HOSPITALS NHS FOUNDATION TRUST ,166523," 18,883,267.28 ",70009910 ,
Department of Health,NHS England,30/04/2013,Purchase of healthcare from non-NHS bodies, Specialised Commissioning , CAMBRIDGESHIRE COMMUNITY SERVICES ,185077," 171,333.33 ",8500014333 ,
Department of Health,NHS England,30/04/2013,GPMS/APMS and PCTMS, Primary Care , CAMDEN HEALTH IMPROVEMENT PRACTICE ,151970," 56,625.00 ",LND000000004,
Department of Health,NHS England,30/04/2013,GPMS/APMS and PCTMS, Primary Care , CAMERON & PARTNER ,168110,"-38,079.46 ",BIK000000096,
Department of Health,NHS England,30/04/2013,GPMS/APMS and PCTMS, Primary Care , CAMERON & PARTNER ,168111," 75,565.21 ",BIK000000097,
Department of Health,NHS England,30/04/2013,GPMS/APMS and PCTMS, Primary Care , CAMPBELL SURGERY ,142589," 48,297.05 ",SO000000079,
Department of Health,NHS England,30/04/2013,GPMS/APMS and PCTMS, Primary Care , CAMPHOR IA ,192376," 36,014.99 ",BIK000000255,
Department of Health,NHS England,30/04/2013,GPMS/APMS and PCTMS, Primary Care , CAMROSE MEDICAL PARTNERSHIP ,178915," 93,730.18 ",SO000000397,
Department of Health,NHS England,30/04/2013,GPMS/APMS and PCTMS, Primary Care , CANBURY MEDICAL CENTRE ,185751," 110,172.17 ",LNN000000167,
Department of Health,NHS England,30/04/2013,GPMS/APMS and PCTMS, Primary Care , CANFORD HEATH GROUP PRACTICE ,147265," 92,932.84 ",DO000000075,
Department of Health,NHS England,30/04/2013,GPMS/APMS and PCTMS, Primary Care , CANNINGTON HEALTH CENTRE ,197038,"-64,923.18 ",SM000000129,
Department of Health,NHS England,30/04/2013,GPMS/APMS and PCTMS, Primary Care , CANNINGTON HEALTH CENTRE ,197039," 168,804.27 ",SM000000130,
Department of Health,NHS England,30/04/2013,GPMS/APMS and PCTMS, Primary Care , CANNOCK CHASE DISTRICT COUNCIL ,212612," 29,202.00 ",3026822111031320000 ,
Department of Health,NHS England,30/04/2013,GPMS/APMS and PCTMS, Primary Care , CANTERBURY CITY COUNCIL ,210240," 56,520.00 ",101999-24-APR-2013,
Department of Health,NHS England,30/04/2013,GPMS/APMS and PCTMS, Primary Care , CANTERBURY CITY COUNCIL ,212724," 66,882.00 ",101406-22-APR-2013,
Department of Health,NHS England,30/04/2013,GPMS/APMS and PCTMS, Primary Care , CANUTE SURGERY ,178909," 64,780.36 ",SO000000389,
Department of Health,NHS England,30/04/2013,GPMS/APMS and PCTMS, Primary Care , CAPE ROAD SURGERY ,197982," 30,601.90 ",WA000000218,
Department of Health,NHS England,30/04/2013,GPMS/APMS and PCTMS, Primary Care , CAPELFIELD SURGERY ,149753," 55,759.93 ",SY000000009,
Department of Health,NHS England,30/04/2013,GPMS/APMS and PCTMS, Primary Care , CAPLAN M ,197785," 45,793.66 ",MAN000000138,
Department of Health,NHS England,30/04/2013,GPMS/APMS and PCTMS, Primary Care , CAPTAIN FRENCH LANE SURGERY ,171669," 61,249.87 ",CU000000107,
Department of Health,NHS England,30/04/2013,GPMS/APMS and PCTMS, Primary Care , CARE HOME MEDICAL PRACTICE ,139160," 85,787.50 ",SLF000000014,
Department of Health,NHS England,30/04/2013,Purchase of healthcare from non-NHS bodies, Health & Justice , CARE UK CLINICAL SERVICES LTD ,189673," 184,750.00 ",120009290 ,
Department of Health,NHS England,30/04/2013,GPMS/APMS and PCTMS, Primary Care , CARE UK CLINICAL SERVICES LTD BIRMINGHAM ,176511," 111,506.33 ",BIR000000172,
Department of Health,NHS England,30/04/2013,GPMS/APMS and PCTMS, Primary Care , CARE UK CLINICAL SERVICES LTD SOUTHEND ON SEA ,147140," 93,873.44 ",EX000000044,
Department of Health,NHS England,30/04/2013,Prescribing costs, Primary Care , CAREPOINT PRACTICE ,180464, 748.32 ,LNK000000031,
Department of Health,NHS England,30/04/2013,GPMS/APMS and PCTMS, Primary Care , CAREPOINT PRACTICE ,180464," 35,132.47 ",LNK000000031,
Department of Health,NHS England,30/04/2013,GPMS/APMS and PCTMS, Primary Care , CARFAX HEALTH ENTERPRISE ,153875," 215,498.61 ",WL000000063,
Department of Health,NHS England,30/04/2013,Purchase of healthcare from non-NHS bodies, Specialised Commissioning , CARING HOMES GROUP ,194405," 181,732.50 ",57600829TO57600843,
Department of Health,NHS England,30/04/2013,GPMS/APMS and PCTMS, Primary Care , CARISBROOKE HEALTH CENTRE ,178911," 72,424.70 ",SO000000391,
Department of Health,NHS England,30/04/2013,GPMS/APMS and PCTMS, Primary Care , CARISBROOKE SURGERY ,177148," 76,927.75 ",TE000000279,
Department of Health,NHS England,30/04/2013,GPMS/APMS and PCTMS, Primary Care , CARITAS GENERAL PRACTICE PARTNERSHIP ,147498," 109,657.75 ",SPT000000014,
Department of Health,NHS England,30/04/2013,GPMS/APMS and PCTMS, Primary Care , CARITAS GROUP PRACTICE ,159203," 77,437.49 ",YW000000082,
Department of Health,NHS England,30/04/2013,GPMS/APMS and PCTMS, Primary Care , CARLETON PRACTICE ,195890," 30,409.73 ",LA000000193,
Department of Health,NHS England,30/04/2013,GPMS/APMS and PCTMS, Primary Care , CARLISLE HOUSE SURGERY ,178061," 50,351.70 ",DO000000329,
Department of Health,NHS England,30/04/2013,GPMS/APMS and PCTMS, Primary Care , CARLTON HOUSE SURGERY ,199525," 73,098.46 ",LNE000000243,
Department of Health,NHS England,30/04/2013,GPMS/APMS and PCTMS, Primary Care , CARODOC SURGERY ,191339," 52,722.58 ",DR000000263,
Department of Health,NHS England,30/04/2013,GPMS/APMS and PCTMS, Primary Care , CARRFIELD MEDICAL CENTRE ,146513," 28,150.68 ",SHE000000091,
Department of Health,NHS England,30/04/2013,GPMS/APMS and PCTMS, Primary Care , CARRINGTON HOUSE SURGERY ,167972," 73,661.01 ",BU000000097,
Department of Health,NHS England,30/04/2013,Prescribing costs, Primary Care , CARTERKNOWLE & DORE MEDICAL PRACTICE ,194837," 3,268.23 ",SHE000000193,
Department of Health,NHS England,30/04/2013,GPMS/APMS and PCTMS, Primary Care , CARTERKNOWLE & DORE MEDICAL PRACTICE ,194837," 96,966.00 ",SHE000000193,
Department of Health,NHS England,30/04/2013,GPMS/APMS and PCTMS, Primary Care , CARTMEL SURGERY ,203293," 40,204.52 ",CU000000270,
Department of Health,NHS England,30/04/2013,GPMS/APMS and PCTMS, Primary Care , CASTLE GARDENS MEDICAL CENTRE ,200069," 70,464.76 ",EX000000504,
Department of Health,NHS England,30/04/2013,GPMS/APMS and PCTMS, Primary Care , CASTLE GARDENS SURGERY ,201240,"-28,049.40 ",DN000000967,
Department of Health,NHS England,30/04/2013,GPMS/APMS and PCTMS, Primary Care , CASTLE GARDENS SURGERY ,201241," 60,771.08 ",DN000000968,
Department of Health,NHS England,30/04/2013,GPMS/APMS and PCTMS, Primary Care , CASTLE GARDENS SURGERY ,185319," 102,597.37 ",DN000000674,
Department of Health,NHS England,30/04/2013,GPMS/APMS and PCTMS, Primary Care , CASTLE HEALTH CENTRE ,185919," 155,905.84 ",YN000000224,
Department of Health,NHS England,30/04/2013,Prescribing costs, Primary Care , CASTLE MEADOWS SURGERY ,178054, 533.09 ,DUD000000068,
Department of Health,NHS England,30/04/2013,GPMS/APMS and PCTMS, Primary Care , CASTLE MEADOWS SURGERY ,178054," 43,102.46 ",DUD000000068,
Department of Health,NHS England,30/04/2013,GPMS/APMS and PCTMS, Primary Care , CASTLE MEDICAL CENTRE ,138541," 25,271.68 ",WA000000016,
Department of Health,NHS England,30/04/2013,GPMS/APMS and PCTMS, Primary Care , CASTLE MEDICAL CENTRE ,197990," 66,182.70 ",WA000000226,
Department of Health,NHS England,30/04/2013,GPMS/APMS and PCTMS, Primary Care , CASTLE MEDICAL GROUP ,205174,"-54,937.60 ",LA000000522,
Department of Health,NHS England,30/04/2013,GPMS/APMS and PCTMS, Primary Care , CASTLE MEDICAL GROUP ,195902," 108,673.27 ",LA000000205,
Department of Health,NHS England,30/04/2013,GPMS/APMS and PCTMS, Primary Care , CASTLE MEDICAL GROUP ,205175," 116,088.44 ",LA000000523,
Department of Health,NHS England,30/04/2013,GPMS/APMS and PCTMS, Primary Care , CASTLE PLACE SURGERY TIVERTON ,210641," 125,715.74 ",DN000001171,
Department of Health,NHS England,30/04/2013,GPMS/APMS and PCTMS, Primary Care , CASTLE PLACE SURGERY TIVERTON ,185321," 136,556.85 ",DN000000676,
Department of Health,NHS England,30/04/2013,GPMS/APMS and PCTMS, Primary Care , CASTLE PRACTICE ,140508," 47,278.03 ",CR000000002,
Department of Health,NHS England,30/04/2013,GPMS/APMS and PCTMS, Primary Care , CASTLE ST ,196863," 78,576.66 ",BD000000195,
Department of Health,NHS England,30/04/2013,GPMS/APMS and PCTMS, Primary Care , CASTLEFOROAD MEDICAL PRACTICE ,146329,"-50,752.05 ",WAK000000001,
Department of Health,NHS England,30/04/2013,GPMS/APMS and PCTMS, Primary Care , CASTLEFOROAD MEDICAL PRACTICE ,146330," 104,145.30 ",WAK000000002,
Department of Health,NHS England,30/04/2013,GPMS/APMS and PCTMS, Primary Care , CASTLEGATE SURGERY COCKERMOUTH ,171679," 86,764.14 ",CU000000117,
Department of Health,NHS England,30/04/2013,GPMS/APMS and PCTMS, Primary Care , CASTLEGATE SURGERY HERTFORD ,199372," 45,993.95 ",HT000000222,
Department of Health,NHS England,30/04/2013,GPMS/APMS and PCTMS, Primary Care , CASTLEHEAD MEDICAL CENTRE ,203296," 46,080.13 ",CU000000273,
Department of Health,NHS England,30/04/2013,GPMS/APMS and PCTMS, Primary Care , CASTLEHEAD MEDICAL CENTRE ,171681," 65,669.78 ",CU000000119,
Department of Health,NHS England,30/04/2013,GPMS/APMS and PCTMS, Primary Care , CASTLETON HEALTH CENTRE ,190415," 79,763.32 ",ROC000000082,
Department of Health,NHS England,30/04/2013,GPMS/APMS and PCTMS, Primary Care , CATER STREET SURGERY ,149406," 42,844.10 ",BD000000046,
Department of Health,NHS England,30/04/2013,GPMS/APMS and PCTMS, Primary Care , CATHEDRAL MEDICAL CENTRE ,149512," 52,484.38 ",CB000000066,
Department of Health,NHS England,30/04/2013,GPMS/APMS and PCTMS, Primary Care , CATHEDRAL MEDICAL GROUP ,203073,"-35,318.58 ",TW000000569,
Department of Health,NHS England,30/04/2013,GPMS/APMS and PCTMS, Primary Care , CATHEDRAL MEDICAL GROUP ,203074," 77,825.97 ",TW000000570,
Department of Health,NHS England,30/04/2013,GPMS/APMS and PCTMS, Primary Care , CATHEDRAL MEDICAL GROUP ,148274," 105,205.27 ",TW000000099,
Department of Health,NHS England,30/04/2013,GPMS/APMS and PCTMS, Primary Care , CATHERINE HOUSE SURGERY ,185323," 48,181.31 ",DN000000678,
Department of Health,NHS England,30/04/2013,GPMS/APMS and PCTMS, Primary Care , CATOR MEDICAL CENTRE ,164757,"-69,639.69 ",LNT000000022,
Department of Health,NHS England,30/04/2013,GPMS/APMS and PCTMS, Primary Care , CATOR MEDICAL CENTRE ,164758," 49,507.00 ",LNT000000023,
Department of Health,NHS England,30/04/2013,GPMS/APMS and PCTMS, Primary Care , CATTERICK VILLAGE SURGERY ,143759," 47,651.67 ",YN000000003,
Department of Health,NHS England,30/04/2013,GPMS/APMS and PCTMS, Primary Care , CAUSEWAY MEDICAL CENTRE ,163361,"-36,252.97 ",CH000000133,
Department of Health,NHS England,30/04/2013,GPMS/APMS and PCTMS, Primary Care , CAUSEWAY MEDICAL CENTRE ,163362," 53,662.78 ",CH000000134,
Department of Health,NHS England,30/04/2013,GPMS/APMS and PCTMS, Primary Care , CAVENDISH HEALTH CENTRE ,186362,"-54,134.00 ",LNJ000000202,
Department of Health,NHS England,30/04/2013,GPMS/APMS and PCTMS, Primary Care , CAVENDISH HEALTH CENTRE ,150071," 46,399.00 ",LNJ000000005,
Department of Health,NHS England,30/04/2013,GPMS/APMS and PCTMS, Primary Care , CAVENDISH HEALTH CENTRE ,186363," 59,006.25 ",LNJ000000203,
Department of Health,NHS England,30/04/2013,GPMS/APMS and PCTMS, Primary Care , CAVERSHAM GROUP PRACTICE ,177260," 29,186.88 ",LND000000137,
Department of Health,NHS England,30/04/2013,GPMS/APMS and PCTMS, Primary Care , CAVERSHAM GROUP PRACTICE ,197719," 104,570.53 ",LND000000238,
Department of Health,NHS England,30/04/2013,GPMS/APMS and PCTMS, Primary Care , CAXTON SURGERY ,176028," 102,786.60 ",SA000000097,
Department of Health,NHS England,30/04/2013,GPMS/APMS and PCTMS, Primary Care , CCA CARE PARTNERSHIP ,163363,"-77,139.30 ",CH000000135,
Department of Health,NHS England,30/04/2013,GPMS/APMS and PCTMS, Primary Care , CCA CARE PARTNERSHIP ,163364," 129,655.66 ",CH000000136,
Department of Health,NHS England,30/04/2013,GPMS/APMS and PCTMS, Primary Care , CECIL LOBO ,151229,"-100,637.96 ",LNA000000013,
Department of Health,NHS England,30/04/2013,GPMS/APMS and PCTMS, Primary Care , CECIL LOBO ,151257," 188,653.57 ",LNA000000014,
Department of Health,NHS England,30/04/2013,GPMS/APMS and PCTMS, Primary Care , CEDAR BROOK PRACTICE ,152991," 97,862.41 ",LNK000000004,
Department of Health,NHS England,30/04/2013,GPMS/APMS and PCTMS, Primary Care , CEDAR HOUSE SURGERY ,176584," 27,815.24 ",BE000000203,
Department of Health,NHS England,30/04/2013,Prescribing costs, Primary Care , CEDAR MEDICAL PRACTICE ,192083, 949.32 ,KHU000000179,
Department of Health,NHS England,30/04/2013,GPMS/APMS and PCTMS, Primary Care , CEDAR MEDICAL PRACTICE ,192083," 68,511.82 ",KHU000000179,
Department of Health,NHS England,30/04/2013,GPMS/APMS and PCTMS, Primary Care , CEDAR PRACTICE ,179089," 53,594.15 ",LNA000000148,
Department of Health,NHS England,30/04/2013,GPMS/APMS and PCTMS, Primary Care , CEDARS MEDICAL CENTRE ,187089,"-46,123.75 ",CH000000423,
Department of Health,NHS England,30/04/2013,Prescribing costs, Primary Care , CEDARS MEDICAL CENTRE ,180469," 1,928.75 ",LNK000000036,
Department of Health,NHS England,30/04/2013,GPMS/APMS and PCTMS, Primary Care , CEDARS MEDICAL CENTRE ,180469," 42,225.46 ",LNK000000036,
Department of Health,NHS England,30/04/2013,GPMS/APMS and PCTMS, Primary Care , CEDARS MEDICAL CENTRE ,187090," 65,227.22 ",CH000000424,
Department of Health,NHS England,30/04/2013,GPMS/APMS and PCTMS, Primary Care , CEDARS MEDICAL GROUP ,146647,"-58,464.59 ",DR000000017,
Department of Health,NHS England,30/04/2013,GPMS/APMS and PCTMS, Primary Care , CEDARS MEDICAL GROUP ,146648," 114,326.80 ",DR000000018,
Department of Health,NHS England,30/04/2013,GPMS/APMS and PCTMS, Primary Care , CEDARS SURGERY ,165202," 70,025.59 ",KC000000535,
Department of Health,NHS England,30/04/2013,GPMS/APMS and PCTMS, Primary Care , CEDARS SURGERY MAIDENHEAD ,176586," 79,974.28 ",BE000000205,
Department of Health,NHS England,30/04/2013,GPMS/APMS and PCTMS, Primary Care , CEDARS SURGERY WESTON MARE ,150615," 54,367.56 ",BRS000000060,
Department of Health,NHS England,30/04/2013,Establishment, NHS England Running Costs , CENTERPRISE INTERNATIONAL LTD ,189762," 248,130.96 ",90134851 ,
Department of Health,NHS England,30/04/2013,Services from other NHS bodies, Health & Justice , CENTRAL & NORTH WEST LONDON NHS FOUNDATION TRUST ,202884," 175,140.00 ",S0511576,
Department of Health,NHS England,30/04/2013,Services from other NHS bodies, Specialised Commissioning , CENTRAL & NORTH WEST LONDON NHS FOUNDATION TRUST ,189851," 2,345,131.00 ",S0511578,
Department of Health,NHS England,30/04/2013,GPMS/APMS and PCTMS, Primary Care , CENTRAL BEDFORDSHIRE COUNCIL ,162323," 29,202.00 ",100426-12-APR-2013,
Department of Health,NHS England,30/04/2013,GPMS/APMS and PCTMS, Primary Care , CENTRAL BEDFORDSHIRE COUNCIL ,162332," 29,673.00 ",100413-12-APR-2013,
Department of Health,NHS England,30/04/2013,GPMS/APMS and PCTMS, Primary Care , CENTRAL BEDFORDSHIRE COUNCIL ,162325," 36,253.81 ",100424-12-APR-2013,
Department of Health,NHS England,30/04/2013,Prescribing costs, Primary Care , CENTRAL CLINIC ,178961, 651.11 ,DUD000000033,
Department of Health,NHS England,30/04/2013,GPMS/APMS and PCTMS, Primary Care , CENTRAL CLINIC ,178961," 28,798.86 ",DUD000000033,
Department of Health,NHS England,30/04/2013,Services from other NHS bodies, Health & Justice , CENTRAL LONDON COMMUNITY HEALTHCARE NHS TRUST ,156675," 682,178.00 ",N0017699,
Department of Health,NHS England,30/04/2013,Services from other NHS bodies, Public Health , CENTRAL LONDON COMMUNITY HEALTHCARE NHS TRUST ,208227," 1,388,866.34 ",N0017688,
Department of Health,NHS England,30/04/2013,Services from other NHS bodies, Specialised Commissioning , CENTRAL MANCHESTER UNIVERSITY HOSPITALS NHS FOUNDATION TRUST ,156749," 24,736,609.00 ",203876 ,
Department of Health,NHS England,30/04/2013,GPMS/APMS and PCTMS, Primary Care , CENTRAL MEDICAL CENTRE ,148960," 66,138.51 ",LNP000000049,
Department of Health,NHS England,30/04/2013,GPMS/APMS and PCTMS, Primary Care , CENTRAL PARK SURGERY ,195904," 30,909.10 ",LA000000207,
Department of Health,NHS England,30/04/2013,GPMS/APMS and PCTMS, Primary Care , CENTRAL SURGERY BARTON HUMBER ,192084,"-59,468.28 ",KHU000000180,
Department of Health,NHS England,30/04/2013,GPMS/APMS and PCTMS, Primary Care , CENTRAL SURGERY BARTON HUMBER ,192085," 251,014.00 ",KHU000000181,
Department of Health,NHS England,30/04/2013,GPMS/APMS and PCTMS, Primary Care , CENTRAL SURGERY RUGBY ,198048,"-26,222.31 ",WA000000227,
Department of Health,NHS England,30/04/2013,GPMS/APMS and PCTMS, Primary Care , CENTRAL SURGERY RUGBY ,138542," 42,576.62 ",WA000000017,
Department of Health,NHS England,30/04/2013,GPMS/APMS and PCTMS, Primary Care , CENTRAL SURGERY RUGBY ,198049," 97,852.50 ",WA000000228,
Department of Health,NHS England,30/04/2013,GPMS/APMS and PCTMS, Primary Care , CENTRE PRACTICE (THE) ,177995," 111,264.98 ",SO000000421,
Department of Health,NHS England,30/04/2013,GPMS/APMS and PCTMS, Primary Care , CERNE ABBAS SURGERY ,198126,"-36,233.10 ",DO000000425,
Department of Health,NHS England,30/04/2013,GPMS/APMS and PCTMS, Primary Care , CERNE ABBAS SURGERY ,198127," 92,202.63 ",DO000000426,
Department of Health,NHS England,30/04/2013,GPMS/APMS and PCTMS, Primary Care , CERNE ABBAS SURGERY ,147298," 179,242.19 ",DO000000085,
Department of Health,NHS England,30/04/2013,GPMS/APMS and PCTMS, Primary Care , CESTRIA HEALTH CENTRE ,146649,"-119,754.29 ",DR000000019,
Department of Health,NHS England,30/04/2013,GPMS/APMS and PCTMS, Primary Care , CESTRIA HEALTH CENTRE ,146650," 235,038.41 ",DR000000020,
Department of Health,NHS England,30/04/2013,Prescribing costs, Primary Care , CH MEDICAL ,198137," 2,184.24 ",GMK000000142,
Department of Health,NHS England,30/04/2013,GPMS/APMS and PCTMS, Primary Care , CH MEDICAL ,198137," 61,705.66 ",GMK000000142,
Department of Health,NHS England,30/04/2013,GPMS/APMS and PCTMS, Primary Care , CHADSFIELD MEDICAL PRACTICE ,198640," 51,902.52 ",SPT000000054,
Department of Health,NHS England,30/04/2013,GPMS/APMS and PCTMS, Primary Care , CHADWELL HEATH HEALTH CENTRE ,179788," 41,241.69 ",LNC000000074,
Department of Health,NHS England,30/04/2013,GPMS/APMS and PCTMS, Primary Care , CHADWELL HEATH SURGERY ,144866," 61,626.42 ",LNB000000008,
Department of Health,NHS England,30/04/2013,GPMS/APMS and PCTMS, Primary Care , CHAGFORD HEALTH CENTRE ,185325," 25,962.35 ",DN000000680,
Department of Health,NHS England,30/04/2013,GPMS/APMS and PCTMS, Primary Care , CHAGFORD HEALTH CENTRE ,210643," 29,683.20 ",DN000001173,
Department of Health,NHS England,30/04/2013,GPMS/APMS and PCTMS, Primary Care , CHAGGAR ,158963," 48,709.91 ",WBH000000018,
Department of Health,NHS England,30/04/2013,Prescribing costs, Primary Care , CHAJED G C & PARTNERS ,200071," 12,006.29 ",EX000000506,
Department of Health,NHS England,30/04/2013,GPMS/APMS and PCTMS, Primary Care , CHAJED G C & PARTNERS ,200071," 89,692.63 ",EX000000506,
Department of Health,NHS England,30/04/2013,GPMS/APMS and PCTMS, Primary Care , CHALABI & KHAN ,151258,"-78,109.01 ",LNA000000015,
Department of Health,NHS England,30/04/2013,GPMS/APMS and PCTMS, Primary Care , CHALABI & KHAN ,151259," 138,837.96 ",LNA000000016,
Department of Health,NHS England,30/04/2013,GPMS/APMS and PCTMS, Primary Care , CHALFONT ROAD SURGERY ,199534," 25,977.36 ",LNE000000252,
Department of Health,NHS England,30/04/2013,GPMS/APMS and PCTMS, Primary Care , CHANA & PARTNERS ,167562,"-27,666.69 ",STL000000101,
Department of Health,NHS England,30/04/2013,GPMS/APMS and PCTMS, Primary Care , CHANA & PARTNERS ,167563," 68,801.32 ",STL000000102,
Department of Health,NHS England,30/04/2013,GPMS/APMS and PCTMS, Primary Care , CHANCERY LANE PRACTICE ,198051," 36,963.57 ",WA000000230,
Department of Health,NHS England,30/04/2013,GPMS/APMS and PCTMS, Primary Care , CHAND NARULA & SPOONER ,145412," 26,394.24 ",DE000000066,
Department of Health,NHS England,30/04/2013,GPMS/APMS and PCTMS, Primary Care , CHANDRA REDDY P ,147154," 29,176.51 ",EX000000058,
Department of Health,NHS England,30/04/2013,GPMS/APMS and PCTMS, Primary Care , CHANDRASHEKHAR & PARTNER ,167074,"-33,801.98 ",LIP000000154,
Department of Health,NHS England,30/04/2013,GPMS/APMS and PCTMS, Primary Care , CHANDRASHEKHAR & PARTNER ,167075," 53,009.58 ",LIP000000155,
Department of Health,NHS England,30/04/2013,GPMS/APMS and PCTMS, Primary Care , CHANDY J ,146651,"-85,283.92 ",DR000000021,
Department of Health,NHS England,30/04/2013,Prescribing costs, Primary Care , CHANDY J ,146652," 1,107.67 ",DR000000022,
Department of Health,NHS England,30/04/2013,GPMS/APMS and PCTMS, Primary Care , CHANDY J ,169180," 26,537.00 ",DR000000238,
Department of Health,NHS England,30/04/2013,GPMS/APMS and PCTMS, Primary Care , CHANDY J ,146652," 115,862.02 ",DR000000022,
Department of Health,NHS England,30/04/2013,GPMS/APMS and PCTMS, Primary Care , CHANG & PARTNERS ,185757," 50,570.88 ",LNN000000173,
Department of Health,NHS England,30/04/2013,GPMS/APMS and PCTMS, Primary Care , CHANNEL VIEW SURGERY TEIGNMOUTH ,210644," 74,143.80 ",DN000001175,
Department of Health,NHS England,30/04/2013,GPMS/APMS and PCTMS, Primary Care , CHANNEL VIEW SURGERY TEIGNMOUTH ,185327," 85,922.93 ",DN000000682,
Department of Health,NHS England,30/04/2013,GPMS/APMS and PCTMS, Primary Care , CHAPEL ROW SURGERY ,203400,"-53,653.20 ",BE000000387,
Department of Health,NHS England,30/04/2013,GPMS/APMS and PCTMS, Primary Care , CHAPEL ROW SURGERY ,176642," 71,933.53 ",BE000000207,
Department of Health,NHS England,30/04/2013,GPMS/APMS and PCTMS, Primary Care , CHAPEL ROW SURGERY ,203401," 113,834.33 ",BE000000388,
Department of Health,NHS England,30/04/2013,Prescribing costs, Primary Care , CHAPEL STREET MEDICAL PRACTICE ASHTON LYNE ,199124, 939.24 ,GMK000000022,
Department of Health,NHS England,30/04/2013,GPMS/APMS and PCTMS, Primary Care , CHAPEL STREET MEDICAL PRACTICE ASHTON LYNE ,199124," 44,011.01 ",GMK000000022,
Department of Health,NHS England,30/04/2013,GPMS/APMS and PCTMS, Primary Care , CHAPEL STREET MEDICAL PRACTICE DERBY ,180188," 97,035.21 ",DE000000251,
Department of Health,NHS England,30/04/2013,GPMS/APMS and PCTMS, Primary Care , CHAPEL STREET SURGERY NEWHAVEN ,177156," 56,020.39 ",TE000000287,
Department of Health,NHS England,30/04/2013,GPMS/APMS and PCTMS, Primary Care , CHARING SURGERY ,203936,"-65,291.95 ",KC000000832,
Department of Health,NHS England,30/04/2013,GPMS/APMS and PCTMS, Primary Care , CHARING SURGERY ,164879," 66,608.69 ",KC000000352,
Department of Health,NHS England,30/04/2013,GPMS/APMS and PCTMS, Primary Care , CHARING SURGERY ,203937," 168,333.83 ",KC000000833,
Department of Health,NHS England,30/04/2013,GPMS/APMS and PCTMS, Primary Care , CHARLBURY MEDCIAL CENTRE ,198233," 44,306.73 ",OX000000128,
Department of Health,NHS England,30/04/2013,GPMS/APMS and PCTMS, Primary Care , CHARLESTOWN MEDICAL PRACTICE ,201192," 32,419.41 ",MAN000000287,
Department of Health,NHS England,30/04/2013,GPMS/APMS and PCTMS, Primary Care , CHARLTON & PARTNERS ,146645,"-71,903.13 ",DR000000015,
Department of Health,NHS England,30/04/2013,GPMS/APMS and PCTMS, Primary Care , CHARLTON & PARTNERS ,146646," 144,742.53 ",DR000000016,
Department of Health,NHS England,30/04/2013,GPMS/APMS and PCTMS, Primary Care , CHARLTON HILL SURGERY ,178923," 76,009.39 ",SO000000411,
Department of Health,NHS England,30/04/2013,GPMS/APMS and PCTMS, Primary Care , CHARLTON HOUSE MEDICAL CENTRE ,199530," 42,621.81 ",LNE000000248,
Department of Health,NHS England,30/04/2013,GPMS/APMS and PCTMS, Primary Care , CHARLTON MEDICAL CENTRE ,179392," 78,201.01 ",SA000000243,
Department of Health,NHS England,30/04/2013,Prescribing costs, Primary Care , CHARNOCK HEALTH PRIMARY CARE CENTRE ,194834, 464.71 ,SHE000000190,
Department of Health,NHS England,30/04/2013,GPMS/APMS and PCTMS, Primary Care , CHARNOCK HEALTH PRIMARY CARE CENTRE ,194834," 39,085.06 ",SHE000000190,
Department of Health,NHS England,30/04/2013,GPMS/APMS and PCTMS, Primary Care , CHAROAD ROAD SURGERY STBUDEAUX TAMAR LCG ,185646," 31,413.05 ",DN000000656,
Department of Health,NHS England,30/04/2013,GPMS/APMS and PCTMS, Primary Care , CHAROAD ROAD SURGERY STBUDEAUX TAMAR LCG ,210631," 69,636.17 ",DN000001157,
Department of Health,NHS England,30/04/2013,GPMS/APMS and PCTMS, Primary Care , CHARTERHOUSE SURGERY ,164752," 61,765.71 ",LNT000000017,
Department of Health,NHS England,30/04/2013,GPMS/APMS and PCTMS, Primary Care , CHASTLETON MEDICAL GROUP ,191341," 98,841.17 ",DR000000265,
Department of Health,NHS England,30/04/2013,GPMS/APMS and PCTMS, Primary Care , CHATHAM STREET SURGERY ,145815," 68,144.42 ",BE000000036,
Department of Health,NHS England,30/04/2013,GPMS/APMS and PCTMS, Primary Care , CHATTERJEE PC ,197791," 62,242.41 ",MAN000000144,
Department of Health,NHS England,30/04/2013,GPMS/APMS and PCTMS, Primary Care , CHAUDHURY P K ,200063," 26,283.35 ",EX000000498,
Department of Health,NHS England,30/04/2013,GPMS/APMS and PCTMS, Primary Care , CHAWLA & PARTNER ,158957," 34,261.60 ",WBH000000012,
Department of Health,NHS England,30/04/2013,GPMS/APMS and PCTMS, Primary Care , CHAWTON HOUSE SURGERY ,178925," 61,537.60 ",SO000000413,
Department of Health,NHS England,30/04/2013,GPMS/APMS and PCTMS, Primary Care , CHAWTON PARK SURGERY ,205706,"-25,037.23 ",SO000000979,
Department of Health,NHS England,30/04/2013,GPMS/APMS and PCTMS, Primary Care , CHAWTON PARK SURGERY ,205707," 53,586.69 ",SO000000980,
Department of Health,NHS England,30/04/2013,GPMS/APMS and PCTMS, Primary Care , CHAWTON PARK SURGERY ,178927," 88,660.45 ",SO000000415,
Department of Health,NHS England,30/04/2013,GPMS/APMS and PCTMS, Primary Care , CHEADLE HULME HEALTH CENTRE - DR SEABROOK ,147504," 89,097.01 ",SPT000000020,
Department of Health,NHS England,30/04/2013,GPMS/APMS and PCTMS, Primary Care , CHEADLE HULME HEALTH CENTRE - DR SHIPSTON ,147506," 83,343.18 ",SPT000000022,
Department of Health,NHS England,30/04/2013,GPMS/APMS and PCTMS, Primary Care , CHEADLE MEDICAL PRACTICE ,198636," 82,658.38 ",SPT000000050,
Department of Health,NHS England,30/04/2013,Purchase of healthcare from non-NHS bodies, Specialised Commissioning , CHEADLE ROYAL HOSPITAL ,194392,"-385,068.00 ",C2900000359,
Department of Health,NHS England,30/04/2013,Purchase of healthcare from non-NHS bodies, Specialised Commissioning , CHEADLE ROYAL HOSPITAL ,208223," 385,068.00 ",2900000359 ,
Department of Health,NHS England,30/04/2013,Purchase of healthcare from non-NHS bodies, Primary Care , CHEADLE ROYAL HOSPITAL ,208242," 385,068.00 ",2900000359A,
Department of Health,NHS England,30/04/2013,GPMS/APMS and PCTMS, Primary Care , CHEAM FAMILY PRACTICE ,148954," 94,626.25 ",LNP000000043,
Department of Health,NHS England,30/04/2013,Prescribing costs, Primary Care , CHEDDAR MEDICAL CENTRE ROYNON WAY CHEDDAR ,197043, 431.97 ,SM000000134,
Department of Health,NHS England,30/04/2013,GPMS/APMS and PCTMS, Primary Care , CHEDDAR MEDICAL CENTRE ROYNON WAY CHEDDAR ,197043," 68,885.17 ",SM000000134,
Department of Health,NHS England,30/04/2013,GPMS/APMS and PCTMS, Primary Care , CHELFORD SURGERY ,163358,"-46,509.23 ",CH000000129,
Department of Health,NHS England,30/04/2013,GPMS/APMS and PCTMS, Primary Care , CHELFORD SURGERY ,163359," 56,267.30 ",CH000000130,
Department of Health,NHS England,30/04/2013,GPMS/APMS and PCTMS, Primary Care , CHELLS WAY SURGERY ,199310," 99,462.63 ",HT000000214,
Department of Health,NHS England,30/04/2013,GPMS/APMS and PCTMS, Primary Care , CHELMSFORD BOROUGH COUNCIL ,170347," 75,713.25 ",100940-17-APR-2013,
Department of Health,NHS England,30/04/2013,GPMS/APMS and PCTMS, Primary Care , CHELMSFORD BOROUGH COUNCIL ,174645," 462,370.50 ",100939-17-APR-2013,
Department of Health,NHS England,30/04/2013,Services from other NHS bodies, Specialised Commissioning , CHELSEA AND WESTMINSTER HOSPITAL NHS FOUNDATION TRUST ,178051," 7,251,147.00 ",Man RFT 2001,
Department of Health,NHS England,30/04/2013,GPMS/APMS and PCTMS, Primary Care , CHELSEA PRACTICE ,186360,"-29,997.50 ",LNJ000000200,
Department of Health,NHS England,30/04/2013,GPMS/APMS and PCTMS, Primary Care , CHELSEA PRACTICE ,150069," 25,584.00 ",LNJ000000004,
Department of Health,NHS England,30/04/2013,GPMS/APMS and PCTMS, Primary Care , CHELSEA PRACTICE ,186361," 52,173.28 ",LNJ000000201,
Department of Health,NHS England,30/04/2013,GPMS/APMS and PCTMS, Primary Care , CHELSFIELD SURGERY ,164754," 61,305.49 ",LNT000000019,
Department of Health,NHS England,30/04/2013,GPMS/APMS and PCTMS, Primary Care , CHELSTON HALL SURGERY ,185307," 59,667.41 ",DN000000662,
Department of Health,NHS England,30/04/2013,GPMS/APMS and PCTMS, NHS England Running Costs , CHELTENHAM BOROUGH COUNCIL ,166478," 27,553.50 ",803216607031327000 ,
Department of Health,NHS England,30/04/2013,GPMS/APMS and PCTMS, NHS England Running Costs , CHELTENHAM BOROUGH COUNCIL ,166484," 31,557.00 ",805522907031331000 ,
Department of Health,NHS England,30/04/2013,GPMS/APMS and PCTMS, NHS England Running Costs , CHELTENHAM BOROUGH COUNCIL ,166476," 38,390.99 ",803069307031338000 ,
Department of Health,NHS England,30/04/2013,GPMS/APMS and PCTMS, Primary Care , CHERITON BISHOP SURGERY ,201234,"-42,514.02 ",DN000000961,
Department of Health,NHS England,30/04/2013,GPMS/APMS and PCTMS, Primary Care , CHERITON BISHOP SURGERY ,185309," 43,604.57 ",DN000000664,
Department of Health,NHS England,30/04/2013,GPMS/APMS and PCTMS, Primary Care , CHERITON BISHOP SURGERY ,210636," 44,288.17 ",DN000001163,
Department of Health,NHS England,30/04/2013,GPMS/APMS and PCTMS, Primary Care , CHERITON BISHOP SURGERY ,201235," 90,187.41 ",DN000000962,
Department of Health,NHS England,30/04/2013,GPMS/APMS and PCTMS, Primary Care , CHERRY MEDICAL PRACTICE ,139158," 46,565.07 ",SLF000000016,
Department of Health,NHS England,30/04/2013,GPMS/APMS and PCTMS, Primary Care , CHERRYBROOK MEDICAL CENTRE ,185311," 28,057.09 ",DN000000666,
Department of Health,NHS England,30/04/2013,GPMS/APMS and PCTMS, Primary Care , CHERRYMEAD SURGERY ,167968," 69,394.16 ",BU000000093,
Department of Health,NHS England,30/04/2013,Services from other NHS bodies, Specialised Commissioning , CHESHIRE & WIRRAL PARTNERSHIP NHS FOUNDATION TRUST ,156750," 1,045,940.00 ",8710001071 ,
Department of Health,NHS England,30/04/2013,GPMS/APMS and PCTMS, Primary Care , CHESHIRE EAST BOROUGH COUNCIL ,166834," 38,386.50 ",100906-16-APR-2013,
Department of Health,NHS England,30/04/2013,GPMS/APMS and PCTMS, Primary Care , CHESSEL PRACTICE ,178931," 152,706.31 ",SO000000419,
Department of Health,NHS England,30/04/2013,GPMS/APMS and PCTMS, Primary Care , CHESTER WALK IN CENTRE ,163360,"-108,506.25 ",CH000000131,
Department of Health,NHS England,30/04/2013,GPMS/APMS and PCTMS, Primary Care , CHESTER WALK IN CENTRE ,161502," 134,814.30 ",CH000000132,
Department of Health,NHS England,30/04/2013,Services from other NHS bodies, Public Health , CHESTERFIELD ROYAL HOSPITAL NHS FOUNDATION TRUST ,160537," 138,000.00 ",100304-11-APR-2013,
Department of Health,NHS England,30/04/2013,Services from other NHS bodies, Secondary and Community Dental Care , CHESTERFIELD ROYAL HOSPITAL NHS FOUNDATION TRUST ,160537," 185,000.00 ",100304-11-APR-2013,
Department of Health,NHS England,30/04/2013,Prescribing costs, Primary Care , CHESTNUT PRACTICE ,190197," 1,680.81 ",LNM000000010,
Department of Health,NHS England,30/04/2013,GPMS/APMS and PCTMS, Primary Care , CHESTNUT PRACTICE ,190197," 51,100.23 ",LNM000000010,
Department of Health,NHS England,30/04/2013,GPMS/APMS and PCTMS, Primary Care , CHESTNUTS SURGERY ,164883," 65,674.23 ",KC000000356,
Department of Health,NHS England,30/04/2013,Purchase of healthcare from non-NHS bodies, Specialised Commissioning , CHESWOLD PARK HOSPITAL ,189754," 1,149,053.75 ",3222 ,
Department of Health,NHS England,30/04/2013,GPMS/APMS and PCTMS, Primary Care , CHET VALLEY MEDICAL PRACTICE ,186712,"-51,292.57 ",NF000000200,
Department of Health,NHS England,30/04/2013,GPMS/APMS and PCTMS, Primary Care , CHET VALLEY MEDICAL PRACTICE ,186713," 251,714.22 ",NF000000201,
Department of Health,NHS England,30/04/2013,GPMS/APMS and PCTMS, Primary Care , CHEVELEY PARK MEDICAL CENTRE ,191345," 34,678.16 ",DR000000269,
Department of Health,NHS England,30/04/2013,GPMS/APMS and PCTMS, Primary Care , CHEW MEDICAL PRACTICE ,197473,"-94,808.40 ",BRS000000286,
Department of Health,NHS England,30/04/2013,GPMS/APMS and PCTMS, Primary Care , CHEW MEDICAL PRACTICE ,150607," 94,431.55 ",BRS000000052,
Department of Health,NHS England,30/04/2013,GPMS/APMS and PCTMS, Primary Care , CHEW MEDICAL PRACTICE ,197474," 191,845.30 ",BRS000000287,
Department of Health,NHS England,30/04/2013,GPMS/APMS and PCTMS, Primary Care , CHIBBER & GUPTA ,179786," 31,348.90 ",LNC000000072,
Department of Health,NHS England,30/04/2013,GPMS/APMS and PCTMS, Primary Care , CHICHESTER PRACTICE ,146265," 42,339.11 ",GAT000000006,
Department of Health,NHS England,30/04/2013,GPMS/APMS and PCTMS, Primary Care , CHIDDENBROOK SURGERY CREDITON ,210637," 64,195.83 ",DN000001165,
Department of Health,NHS England,30/04/2013,GPMS/APMS and PCTMS, Primary Care , CHIDDENBROOK SURGERY CREDITON ,185313," 77,931.66 ",DN000000668,
Department of Health,NHS England,30/04/2013,GPMS/APMS and PCTMS, Primary Care , CHILCOTE SURGERY TORQUAY ,185315," 30,423.15 ",DN000000670,
Department of Health,NHS England,30/04/2013,GPMS/APMS and PCTMS, Primary Care , CHILCOTE SURGERY TORQUAY ,210638," 93,827.89 ",DN000001167,
Department of Health,NHS England,30/04/2013,GPMS/APMS and PCTMS, Primary Care , CHILD S W & PARTNER ,147148," 45,419.71 ",EX000000052,
Department of Health,NHS England,30/04/2013,GPMS/APMS and PCTMS, Primary Care , CHILDS & PARTNERS ,185755," 34,044.09 ",LNN000000171,
Department of Health,NHS England,30/04/2013,GPMS/APMS and PCTMS, Primary Care , CHILTERN HILLS PRACTICE ,149403,"-33,302.61 ",BD000000043,
Department of Health,NHS England,30/04/2013,GPMS/APMS and PCTMS, Primary Care , CHILTERN HILLS PRACTICE ,149404," 67,281.01 ",BD000000044,
Department of Health,NHS England,30/04/2013,GPMS/APMS and PCTMS, Primary Care , CHILTERN HOUSE MEDICAL CENTRE ,167970," 68,785.55 ",BU000000095,
Department of Health,NHS England,30/04/2013,GPMS/APMS and PCTMS, Primary Care , CHILTERN SURGERY ,198235," 68,630.14 ",OX000000130,
Department of Health,NHS England,30/04/2013,GPMS/APMS and PCTMS, Primary Care , CHILVERS & MCCREA LTD ,150609," 101,890.11 ",BRS000000054,
Department of Health,NHS England,30/04/2013,GPMS/APMS and PCTMS, Primary Care , CHINBROOK SURGERY ,192302,"-62,642.42 ",LNS000000512,
Department of Health,NHS England,30/04/2013,GPMS/APMS and PCTMS, Primary Care , CHINBROOK SURGERY ,147736," 57,235.84 ",LNS000000022,
Department of Health,NHS England,30/04/2013,GPMS/APMS and PCTMS, Primary Care , CHINBROOK SURGERY ,192303," 74,538.36 ",LNS000000513,
Department of Health,NHS England,30/04/2013,GPMS/APMS and PCTMS, Primary Care , CHINEHAM MEDICAL PRACTICE ,142592,"-78,310.11 ",SO000000082,
Department of Health,NHS England,30/04/2013,GPMS/APMS and PCTMS, Primary Care , CHINEHAM MEDICAL PRACTICE ,142593," 148,029.88 ",SO000000083,
Department of Health,NHS England,30/04/2013,GPMS/APMS and PCTMS, Primary Care , CHINGFORD MEDICAL PRACTICE ,178604," 69,359.58 ",LNB000000092,
Department of Health,NHS England,30/04/2013,GPMS/APMS and PCTMS, Primary Care , CHISLEHURST MEDICAL PRACTICE ,164756," 120,021.03 ",LNT000000021,
Department of Health,NHS England,30/04/2013,Prescribing costs, Primary Care , CHISNELL P & PARTNERS ,190449," 6,843.14 ",EX000000395,
Department of Health,NHS England,30/04/2013,GPMS/APMS and PCTMS, Primary Care , CHISNELL P & PARTNERS ,190449," 28,590.87 ",EX000000395,
Department of Health,NHS England,30/04/2013,GPMS/APMS and PCTMS, Primary Care , CHISNELL P & PARTNERS ,147150," 83,585.63 ",EX000000054,
Department of Health,NHS England,30/04/2013,GPMS/APMS and PCTMS, Primary Care , CHIU C ,197852," 41,443.30 ",MAN000000150,
Department of Health,NHS England,30/04/2013,GPMS/APMS and PCTMS, Primary Care , CHOBHAM & WEST END MEDICAL PRACTICE ,186228," 117,461.36 ",SY000000370,
Department of Health,NHS England,30/04/2013,GPMS/APMS and PCTMS, Primary Care , CHOLMLEY GARDENS MEDICAL CENTRE ,151682," 38,160.87 ",LND000000009,
Department of Health,NHS England,30/04/2013,GPMS/APMS and PCTMS, Primary Care , CHOPRA R ,167561," 59,567.96 ",STL000000100,
Department of Health,NHS England,30/04/2013,GPMS/APMS and PCTMS, Primary Care , CHORLEYWOOD HEALTH CENTRE ,199366," 51,039.60 ",HT000000216,
Department of Health,NHS England,30/04/2013,GPMS/APMS and PCTMS, Primary Care , CHOUDHARY & PARTNER ,158961," 25,279.29 ",WBH000000016,
Department of Health,NHS England,30/04/2013,GPMS/APMS and PCTMS, Primary Care , CHRISP STREET HEALTH CENTRE ,179085," 119,383.45 ",LNA000000144,
Department of Health,NHS England,30/04/2013,GPMS/APMS and PCTMS, Primary Care , CHRISTCHURCH FAMILY MEDICAL CENTRE ,150611," 97,883.92 ",BRS000000056,
Department of Health,NHS England,30/04/2013,GPMS/APMS and PCTMS, Primary Care , CHRISTIE CL & PARTNERS ,148956," 43,960.43 ",LNP000000045,
Department of Health,NHS England,30/04/2013,Services from other NHS bodies, Specialised Commissioning , CHRISTIE HOSPITAL NHS FOUNDATION TRUST ,156684," 11,927,549.00 ",16417 ,
Department of Health,NHS England,30/04/2013,GPMS/APMS and PCTMS, Primary Care , CHRISTMAS MALTINGS & CLEMENTS PRACTICE ,146030,"-134,875.02 ",SU000000050,
Department of Health,NHS England,30/04/2013,GPMS/APMS and PCTMS, Primary Care , CHRISTMAS MALTINGS & CLEMENTS PRACTICE ,199669,"-31,991.65 ",SU000000345,
Department of Health,NHS England,30/04/2013,GPMS/APMS and PCTMS, Primary Care , CHRISTMAS MALTINGS & CLEMENTS PRACTICE ,199670," 65,032.76 ",SU000000346,
Department of Health,NHS England,30/04/2013,GPMS/APMS and PCTMS, Primary Care , CHRISTMAS MALTINGS & CLEMENTS PRACTICE ,146031," 306,458.35 ",SU000000051,
Department of Health,NHS England,30/04/2013,GPMS/APMS and PCTMS, Primary Care , CHRISTMAS MALTINGS SURGERY DR MOHAN ,146032,"-65,502.32 ",SU000000052,
Department of Health,NHS England,30/04/2013,GPMS/APMS and PCTMS, Primary Care , CHRISTMAS MALTINGS SURGERY DR MOHAN ,146033," 146,212.27 ",SU000000053,
Department of Health,NHS England,30/04/2013,GPMS/APMS and PCTMS, Primary Care , CHUKWU A C & PARTNERS ,187961," 31,321.50 ",EX000000396,
Department of Health,NHS England,30/04/2013,GPMS/APMS and PCTMS, Primary Care , CHUKWU A C & PARTNERS ,147152," 79,298.62 ",EX000000056,
Department of Health,NHS England,30/04/2013,GPMS/APMS and PCTMS, Primary Care , CHUNG & PARTNERS ,167072,"-73,565.32 ",LIP000000152,
Department of Health,NHS England,30/04/2013,GPMS/APMS and PCTMS, Primary Care , CHUNG & PARTNERS ,167073," 113,565.05 ",LIP000000153,
Department of Health,NHS England,30/04/2013,GPMS/APMS and PCTMS, Primary Care , CHURCH CLOSE SURGERY ,179396," 38,650.92 ",SA000000247,
Department of Health,NHS England,30/04/2013,GPMS/APMS and PCTMS, Primary Care , CHURCH FARM SURGERY ,190560," 39,152.70 ",SU000000258,
Department of Health,NHS England,30/04/2013,GPMS/APMS and PCTMS, Primary Care , CHURCH HOUSE SURGERY ,198972," 26,643.01 ",LNH000000157,
Department of Health,NHS England,30/04/2013,Prescribing costs, Primary Care , CHURCH LANE MEDICAL CENTRE ,192079," 2,217.38 ",KHU000000175,
Department of Health,NHS England,30/04/2013,GPMS/APMS and PCTMS, Primary Care , CHURCH LANE MEDICAL CENTRE ,192079," 69,573.19 ",KHU000000175,
Department of Health,NHS England,30/04/2013,GPMS/APMS and PCTMS, Primary Care , CHURCH LANE PRACTICE ,148958," 116,557.74 ",LNP000000047,
Department of Health,NHS England,30/04/2013,GPMS/APMS and PCTMS, Primary Care , CHURCH LANE SURGERY BRIGHOUSE ,196458," 79,081.80 ",YW000000204,
Department of Health,NHS England,30/04/2013,GPMS/APMS and PCTMS, Primary Care , CHURCH LANE SURGERY NEW ROMNEY ,164885," 79,048.73 ",KC000000358,
Department of Health,NHS England,30/04/2013,GPMS/APMS and PCTMS, Primary Care , CHURCH LANE SURGERY YORK ,185916,"-82,960.13 ",YN000000221,
Department of Health,NHS England,30/04/2013,GPMS/APMS and PCTMS, Primary Care , CHURCH LANE SURGERY YORK ,185917," 251,565.91 ",YN000000222,
Department of Health,NHS England,30/04/2013,Prescribing costs, Primary Care , CHURCH ROAD SURGERY ,180465, 182.56 ,LNK000000032,
Department of Health,NHS England,30/04/2013,GPMS/APMS and PCTMS, Primary Care , CHURCH ROAD SURGERY ,180465," 43,028.90 ",LNK000000032,
Department of Health,NHS England,30/04/2013,GPMS/APMS and PCTMS, Primary Care , CHURCH STREET PARTNERSHIP ,176513," 43,445.05 ",BIR000000174,
Department of Health,NHS England,30/04/2013,GPMS/APMS and PCTMS, Primary Care , CHURCH STREET PRACTICE ,149757," 86,065.31 ",SY000000013,
Department of Health,NHS England,30/04/2013,GPMS/APMS and PCTMS, Primary Care , CHURCH STREET PRACTICE ,150344," 93,133.08 ",OX000000016,
Department of Health,NHS England,30/04/2013,GPMS/APMS and PCTMS, Primary Care , CHURCH STREET SURGERY BISHOPS STORT ,199368," 110,989.87 ",HT000000218,
Department of Health,NHS England,30/04/2013,GPMS/APMS and PCTMS, Primary Care , CHURCH STREET SURGERY CHURCH STREET MARTOCK ,149668," 119,061.61 ",SM000000025,
Department of Health,NHS England,30/04/2013,GPMS/APMS and PCTMS, Primary Care , CHURCH STREET SURGERY WARE ,199370," 72,519.06 ",HT000000220,
Department of Health,NHS England,30/04/2013,GPMS/APMS and PCTMS, Primary Care , CHURCH STRETTON MEDICAL PRACTICE ,179398," 62,336.08 ",SA000000249,
Department of Health,NHS England,30/04/2013,GPMS/APMS and PCTMS, Primary Care , CHURCH VIEW MEDICAL CENTRE ,146981," 63,149.59 ",SUN000000004,
Department of Health,NHS England,30/04/2013,GPMS/APMS and PCTMS, Primary Care , CHURCH VIEW PRACTICE ,164887," 40,655.77 ",KC000000360,
Department of Health,NHS England,30/04/2013,GPMS/APMS and PCTMS, Primary Care , CHURCH VIEW SURGERY HEDON ,192080,"-118,333.31 ",KHU000000176,
Department of Health,NHS England,30/04/2013,GPMS/APMS and PCTMS, Primary Care , CHURCH VIEW SURGERY HEDON ,192081," 359,592.34 ",KHU000000177,
Department of Health,NHS England,30/04/2013,GPMS/APMS and PCTMS, Primary Care , CHURCH VIEW SURGERY ILMINSTER ,197047," 59,604.73 ",SM000000138,
Department of Health,NHS England,30/04/2013,GPMS/APMS and PCTMS, Primary Care , CHURCH VIEW SURGERY PLYMSTOCK ,185317," 43,150.83 ",DN000000672,
Department of Health,NHS England,30/04/2013,GPMS/APMS and PCTMS, Primary Care , CHURCH VIEW SURGERY PLYMSTOCK ,210640," 94,476.43 ",DN000001169,
Department of Health,NHS England,30/04/2013,GPMS/APMS and PCTMS, Primary Care , CHURCHFIELD MEDICAL PRACTICE ,170541," 63,896.41 ",NN000000337,
Department of Health,NHS England,30/04/2013,Prescribing costs, Primary Care , CHURCHFIELD SURGERY DRS SN & SSJ DATTA ,190199, 522.82 ,LNM000000012,
Department of Health,NHS England,30/04/2013,GPMS/APMS and PCTMS, Primary Care , CHURCHFIELD SURGERY DRS SN & SSJ DATTA ,190199," 26,227.93 ",LNM000000012,
Department of Health,NHS England,30/04/2013,Prescribing costs, Primary Care , CHURCHGATE SURGERY ,199122," 2,356.38 ",GMK000000020,
Department of Health,NHS England,30/04/2013,GPMS/APMS and PCTMS, Primary Care , CHURCHGATE SURGERY ,199122," 60,657.21 ",GMK000000020,
Department of Health,NHS England,30/04/2013,GPMS/APMS and PCTMS, Primary Care , CHURCHILL HEALTHCARE LTD ,144864," 135,421.99 ",LNB000000006,
Department of Health,NHS England,30/04/2013,GPMS/APMS and PCTMS, Primary Care , CHURCHILL MEDICAL CENTRE ,144862,"-27,878.58 ",LNN000000006,
Department of Health,NHS England,30/04/2013,GPMS/APMS and PCTMS, Primary Care , CHURCHILL MEDICAL CENTRE ,144867," 138,490.08 ",LNN000000007,
Department of Health,NHS England,30/04/2013,GPMS/APMS and PCTMS, Primary Care , CHURCHWOOD MEDICAL PRACTICE ,177152," 45,089.74 ",TE000000283,
Department of Health,NHS England,30/04/2013,GPMS/APMS and PCTMS, Primary Care , CINDERHILL LANE SURGERY ,187085,"-27,410.13 ",CH000000419,
Department of Health,NHS England,30/04/2013,GPMS/APMS and PCTMS, Primary Care , CINDERHILL LANE SURGERY ,187086," 38,382.89 ",CH000000420,
Department of Health,NHS England,30/04/2013,GPMS/APMS and PCTMS, Primary Care , CIRCUIT LANE SURGERY ,145817," 90,616.72 ",BE000000038,
Department of Health,NHS England,30/04/2013,GPMS/APMS and PCTMS, Primary Care , CITY CENTRE HEALTH CENTRE ,201193,"-43,219.42 ",MAN000000288,
Department of Health,NHS England,30/04/2013,GPMS/APMS and PCTMS, Primary Care , CITY CENTRE HEALTH CENTRE ,197854," 44,106.87 ",MAN000000152,
Department of Health,NHS England,30/04/2013,GPMS/APMS and PCTMS, Primary Care , CITY CENTRE HEALTH CENTRE ,201194," 141,458.00 ",MAN000000289,
Department of Health,NHS England,30/04/2013,Purchase of healthcare from non-NHS bodies, Primary Care , CITY HEALTH CARE PARTNERSHIP CIC ,208313," 27,800.00 ",90006650 ,
Department of Health,NHS England,30/04/2013,Purchase of healthcare from non-NHS bodies, Primary Care , CITY HEALTH CARE PARTNERSHIP CIC ,189837," 29,800.00 ",90006652 ,
Department of Health,NHS England,30/04/2013,Purchase of healthcare from non-NHS bodies, Primary Care , CITY HEALTH CARE PARTNERSHIP CIC ,189835," 53,900.00 ",90006649 ,
Department of Health,NHS England,30/04/2013,Services from other NHS bodies, Health & Justice , CITY HEALTH CARE PARTNERSHIP CIC ,208314," 243,100.00 ",90006653 ,
Department of Health,NHS England,30/04/2013,Purchase of healthcare from non-NHS bodies, Public Health , CITY HEALTH CARE PARTNERSHIP CIC ,209469," 405,100.00 ",90006648 ,
Department of Health,NHS England,30/04/2013,Services from other NHS bodies, Secondary and Community Dental Care , CITY HOSPITALS SUNDERLAND FOUNDATION NHS TRUST ,156990," 169,441.00 ",RFT rej 1026,
Department of Health,NHS England,30/04/2013,Services from other NHS bodies, Primary Care , CITY HOSPITALS SUNDERLAND FOUNDATION NHS TRUST ,166604," 437,610.00 ",205249 ,
Department of Health,NHS England,30/04/2013,Services from other NHS bodies, Specialised Commissioning , CITY HOSPITALS SUNDERLAND FOUNDATION NHS TRUST ,160402," 2,535,808.00 ",205017 ,
Department of Health,NHS England,30/04/2013,GPMS/APMS and PCTMS, Primary Care , CITY ROAD MEDICAL CENTRE ,163048," 29,731.68 ",LND000000060,
Department of Health,NHS England,30/04/2013,GPMS/APMS and PCTMS, Primary Care , CITY ROAD MEDICAL CENTRE ,197717," 57,449.02 ",LND000000236,
Department of Health,NHS England,30/04/2013,GPMS/APMS and PCTMS, Primary Care , CITY VIEW MEDICAL PRACTICE ,147925,"-94,409.51 ",LDS000000003,
Department of Health,NHS England,30/04/2013,GPMS/APMS and PCTMS, Primary Care , CITY VIEW MEDICAL PRACTICE ,147926," 178,516.62 ",LDS000000004,
Department of Health,NHS England,30/04/2013,GPMS/APMS and PCTMS, Primary Care , CITY WALLS MEDICAL CENTRE ,187087,"-104,213.54 ",CH000000421,
Department of Health,NHS England,30/04/2013,GPMS/APMS and PCTMS, Primary Care , CITY WALLS MEDICAL CENTRE ,187088," 144,689.71 ",CH000000422,
Department of Health,NHS England,30/04/2013,GPMS/APMS and PCTMS, Primary Care , CITY WAY MEDICAL PRACTICE ,164891," 79,321.79 ",KC000000364,
Department of Health,NHS England,30/04/2013,GPMS/APMS and PCTMS, Primary Care , CITY WELLBEING PRACTICE ,179087," 44,410.09 ",LNA000000146,
Department of Health,NHS England,30/04/2013,GPMS/APMS and PCTMS, Primary Care , CLAASSEN & PARTNER ,151663," 43,622.10 ",LNH000000002,
Department of Health,NHS England,30/04/2013,GPMS/APMS and PCTMS, Primary Care , CLANFIELD PRACTICE ,178929," 50,387.35 ",SO000000417,
Department of Health,NHS England,30/04/2013,GPMS/APMS and PCTMS, Primary Care , CLANRICARDE MEDICAL CENTRE ,164881," 81,571.07 ",KC000000354,
Department of Health,NHS England,30/04/2013,GPMS/APMS and PCTMS, Primary Care , CLAPHAM FAMILY PRACTICE ,192298,"-100,864.08 ",LNS000000508,
Department of Health,NHS England,30/04/2013,GPMS/APMS and PCTMS, Primary Care , CLAPHAM FAMILY PRACTICE ,164986," 42,867.08 ",LNS000000195,
Department of Health,NHS England,30/04/2013,GPMS/APMS and PCTMS, Primary Care , CLAPHAM FAMILY PRACTICE ,147734," 74,710.69 ",LNS000000020,
Department of Health,NHS England,30/04/2013,GPMS/APMS and PCTMS, Primary Care , CLAPHAM FAMILY PRACTICE ,192299," 100,932.93 ",LNS000000509,
Department of Health,NHS England,30/04/2013,GPMS/APMS and PCTMS, Primary Care , CLAPHAM JUNCTION MEDICAL PRACTICE ,185261," 31,953.88 ",LNP000000434,
Department of Health,NHS England,30/04/2013,GPMS/APMS and PCTMS, Primary Care , CLAPHAM PARK GROUP PRACTICE ,192300,"-86,450.39 ",LNS000000510,
Department of Health,NHS England,30/04/2013,GPMS/APMS and PCTMS, Primary Care , CLAPHAM PARK GROUP PRACTICE ,147735," 76,204.52 ",LNS000000021,
Department of Health,NHS England,30/04/2013,GPMS/APMS and PCTMS, Primary Care , CLAPHAM PARK GROUP PRACTICE ,192301," 97,359.59 ",LNS000000511,
Department of Health,NHS England,30/04/2013,GPMS/APMS and PCTMS, Primary Care , CLAPHAM ROAD SURGERY ,196860,"-56,876.80 ",BD000000192,
Department of Health,NHS England,30/04/2013,GPMS/APMS and PCTMS, Primary Care , CLAPHAM ROAD SURGERY ,196861," 100,231.52 ",BD000000193,
Department of Health,NHS England,30/04/2013,GPMS/APMS and PCTMS, Primary Care , CLAPTON SURGERY ,179083," 44,528.45 ",LNA000000142,
Department of Health,NHS England,30/04/2013,GPMS/APMS and PCTMS, Primary Care , CLARE HOUSE SURGERY ,210633," 78,570.60 ",DN000001159,
Department of Health,NHS England,30/04/2013,GPMS/APMS and PCTMS, Primary Care , CLARE HOUSE SURGERY ,185648," 92,025.38 ",DN000000658,
Department of Health,NHS England,30/04/2013,GPMS/APMS and PCTMS, Primary Care , CLAREMONT BANK SURGERY ,179394," 52,043.13 ",SA000000245,
Department of Health,NHS England,30/04/2013,GPMS/APMS and PCTMS, Primary Care , CLAREMONT CLINIC ,150988,"-94,530.63 ",LNA000000011,
Department of Health,NHS England,30/04/2013,GPMS/APMS and PCTMS, Primary Care , CLAREMONT CLINIC ,151132," 172,907.38 ",LNA000000012,
Department of Health,NHS England,30/04/2013,Purchase of healthcare from non-NHS bodies, Specialised Commissioning , CLAREMONT HOSPITAL ,156626," 326,612.27 ",MAN40001,
Department of Health,NHS England,30/04/2013,GPMS/APMS and PCTMS, Primary Care , CLAREMONT MEDICAL CENTRE LONDON ,178600," 25,792.45 ",LNB000000088,
Department of Health,NHS England,30/04/2013,GPMS/APMS and PCTMS, Primary Care , CLAREMONT MEDICAL CENTRE SURBITON ,185753," 55,191.48 ",LNN000000169,
Department of Health,NHS England,30/04/2013,GPMS/APMS and PCTMS, Primary Care , CLAREMONT MEDICAL PRACTICE ,201232," 33,665.10 ",DN000000959,
Department of Health,NHS England,30/04/2013,GPMS/APMS and PCTMS, Primary Care , CLAREMONT MEDICAL PRACTICE ,210635," 101,346.12 ",DN000001161,
Department of Health,NHS England,30/04/2013,GPMS/APMS and PCTMS, Primary Care , CLAREMONT MEDICAL PRACTICE ,185650," 109,898.00 ",DN000000660,
Department of Health,NHS England,30/04/2013,GPMS/APMS and PCTMS, Primary Care , CLAREMONT SURGERY MAIDENHEAD ,176580," 116,767.71 ",BE000000199,
Department of Health,NHS England,30/04/2013,GPMS/APMS and PCTMS, Primary Care , CLAREMONT SURGERY SCARBOROUGH ,185915," 46,951.30 ",YN000000220,
Department of Health,NHS England,30/04/2013,GPMS/APMS and PCTMS, Primary Care , CLARENCE AVENUE SURGERY ,195129," 25,238.12 ",NO000000190,
Department of Health,NHS England,30/04/2013,GPMS/APMS and PCTMS, Primary Care , CLARENCE MEDICAL CENTRE ,176582," 99,714.97 ",BE000000201,
Department of Health,NHS England,30/04/2013,GPMS/APMS and PCTMS, Primary Care , CLARENCE PARK SURGERY ,150605," 45,073.07 ",BRS000000050,
Department of Health,NHS England,30/04/2013,GPMS/APMS and PCTMS, Primary Care , CLARENDON LODGE ,197988," 66,664.11 ",WA000000224,
Department of Health,NHS England,30/04/2013,GPMS/APMS and PCTMS, Primary Care , CLARENDON MEDICAL PRACTICE ,198134,"-67,307.00 ",GMK000000139,
Department of Health,NHS England,30/04/2013,Prescribing costs, Primary Care , CLARENDON MEDICAL PRACTICE ,198135," 1,698.88 ",GMK000000140,
Department of Health,NHS England,30/04/2013,GPMS/APMS and PCTMS, Primary Care , CLARENDON MEDICAL PRACTICE ,140695," 56,000.00 ",GMK000000004,
Department of Health,NHS England,30/04/2013,GPMS/APMS and PCTMS, Primary Care , CLARENDON MEDICAL PRACTICE ,198135," 66,727.41 ",GMK000000140,
Department of Health,NHS England,30/04/2013,GPMS/APMS and PCTMS, Primary Care , CLARIDGE P M & PARTNERS ,200065," 73,690.24 ",EX000000500,
Department of Health,NHS England,30/04/2013,Services from other NHS bodies, Specialised Commissioning , CLATTERBRIDGE CANCER CENTRE NHS FT ,160384," 6,500,298.00 ",9010000001 ,
Department of Health,NHS England,30/04/2013,GPMS/APMS and PCTMS, Primary Care , CLAY CROSS MEDICAL CENTRE ,180186," 42,550.91 ",DE000000249,
Department of Health,NHS England,30/04/2013,GPMS/APMS and PCTMS, Primary Care , CLAYHALL CLINIC ,178602," 37,573.41 ",LNB000000090,
Department of Health,NHS England,30/04/2013,GPMS/APMS and PCTMS, Primary Care , CLAYPATH & UNIVERSITY MEDICAL GROUP ,191342,"-28,751.34 ",DR000000266,
Department of Health,NHS England,30/04/2013,GPMS/APMS and PCTMS, Primary Care , CLAYPATH & UNIVERSITY MEDICAL GROUP ,191343," 248,218.66 ",DR000000267,
Department of Health,NHS England,30/04/2013,Prescribing costs, Primary Care , CLEMENT ROAD MEDICAL CENTRE ,186562," 1,445.74 ",DUD000000109,
Department of Health,NHS England,30/04/2013,GPMS/APMS and PCTMS, Primary Care , CLEMENT ROAD MEDICAL CENTRE ,186562," 26,172.26 ",DUD000000109,
Department of Health,NHS England,30/04/2013,GPMS/APMS and PCTMS, Primary Care , CLEMENTS & PARTNERS ,162723," 41,737.94 ",MID000000031,
Department of Health,NHS England,30/04/2013,GPMS/APMS and PCTMS, Primary Care , CLEOBURY MORTIMER MEDICAL CENTRE ,176030," 50,901.53 ",SA000000099,
Department of Health,NHS England,30/04/2013,GPMS/APMS and PCTMS, Primary Care , CLERKENWELL MEDICAL PRACTICE ,163051," 31,363.05 ",LND000000063,
Department of Health,NHS England,30/04/2013,GPMS/APMS and PCTMS, Primary Care , CLERKENWELL MEDICAL PRACTICE ,197721," 51,594.15 ",LND000000240,
Department of Health,NHS England,30/04/2013,GPMS/APMS and PCTMS, Primary Care , CLEVEDON RIVERSIDE GROUP ,150904," 83,184.53 ",BRS000000071,
Department of Health,NHS England,30/04/2013,GPMS/APMS and PCTMS, Primary Care , CLEVELEYS GROUP PRACTICE ,149919," 120,461.12 ",LA000000030,
Department of Health,NHS England,30/04/2013,GPMS/APMS and PCTMS, Primary Care , CLIFT SURGERY ,205708,"-48,456.43 ",SO000000981,
Department of Health,NHS England,30/04/2013,GPMS/APMS and PCTMS, Primary Care , CLIFT SURGERY ,178939," 48,848.24 ",SO000000429,
Department of Health,NHS England,30/04/2013,GPMS/APMS and PCTMS, Primary Care , CLIFT SURGERY ,205709," 100,341.96 ",SO000000982,
Department of Health,NHS England,30/04/2013,GPMS/APMS and PCTMS, Primary Care , CLIFTON COURT PRACTICE ,146655,"-125,812.56 ",DR000000025,
Department of Health,NHS England,30/04/2013,GPMS/APMS and PCTMS, Primary Care , CLIFTON COURT PRACTICE ,146656," 213,817.23 ",DR000000026,
Department of Health,NHS England,30/04/2013,GPMS/APMS and PCTMS, Primary Care , CLIFTON MEDICAL PRACTICE NOTTINGHAM ,147901," 62,622.26 ",NN000000014,
Department of Health,NHS England,30/04/2013,GPMS/APMS and PCTMS, Primary Care , CLIFTON MEDICAL PRACTICE ST ANNES ,195908," 49,251.65 ",LA000000211,
Department of Health,NHS England,30/04/2013,GPMS/APMS and PCTMS, Primary Care , CLIFTON MEDICAL PRACTICE YORK ,186164," 37,319.56 ",YN000000228,
Department of Health,NHS England,30/04/2013,GPMS/APMS and PCTMS, Primary Care , CLIFTON RISE PRACTICE ,192310,"-28,251.74 ",LNS000000520,
Department of Health,NHS England,30/04/2013,GPMS/APMS and PCTMS, Primary Care , CLIFTON RISE PRACTICE ,147740," 28,230.41 ",LNS000000026,
Department of Health,NHS England,30/04/2013,GPMS/APMS and PCTMS, Primary Care , CLIFTON RISE PRACTICE ,192311," 55,657.15 ",LNS000000521,
Department of Health,NHS England,30/04/2013,GPMS/APMS and PCTMS, Primary Care , CLIFTON ROAD PRACTICE ,198055," 37,440.40 ",WA000000234,
Department of Health,NHS England,30/04/2013,GPMS/APMS and PCTMS, Primary Care , CLIFTON ROAD SURGERY ,192963," 67,843.40 ",WA000000236,
Department of Health,NHS England,30/04/2013,GPMS/APMS and PCTMS, Primary Care , CLIFTON SURGERY ,186166," 51,302.69 ",YN000000230,
Department of Health,NHS England,30/04/2013,GPMS/APMS and PCTMS, Primary Care , CLIFTON VILLAGE PRACTICE ,150906," 26,727.04 ",BRS000000073,
Department of Health,NHS England,30/04/2013,GPMS/APMS and PCTMS, Primary Care , CLIVE SURGERY ,179402," 36,209.20 ",SA000000253,
Department of Health,NHS England,30/04/2013,GPMS/APMS and PCTMS, Primary Care , CLOCK TOWER PRACTICE ,210651," 38,060.34 ",DN000001184,
Department of Health,NHS England,30/04/2013,GPMS/APMS and PCTMS, Primary Care , CLOSE FARM SURGERY ,197545," 25,302.12 ",BRS000000303,
Department of Health,NHS England,30/04/2013,GPMS/APMS and PCTMS, Primary Care , CLOSE FARM SURGERY ,150908," 59,142.07 ",BRS000000075,
Department of Health,NHS England,30/04/2013,GPMS/APMS and PCTMS, Primary Care , CLOVER GROUP PRACTICE ,151393," 245,250.00 ",100030-09-APR-2013,
